{"text_format":"1","workbook":"xlsx","n_sheets":15,"sheets":["Summary of scores (2)","Introduction","Instructions","Foire aux questions","Lignes directrices pour les AJF","Gestion de programme","Mise en œuvre de programme","TOUT – Toute incidence","Incidence MODÉRÉE","Incidence ÉLEVÉE","Résultats de programme ","Résumé des notes","Étapes suivantes","Bibliographie","Acronymes"],"not_rendered":{"charts":12,"images":1,"macros":1,"external_links":0,"defined_names":38,"comments":1,"pivot_tables":0},"unopened":[],"bounds":{"document_bytes":16777216,"sheet_cells":100000,"rows_first":2000,"rows_last":500,"rows_between":2000,"halvings":0,"cell_chars":16384,"cell_head_chars":4096},"cells_cut":0,"cells_raw":0,"read":"whole","date_system":"1900"}

{"sheet":"Summary of scores (2)","index":0,"n_rows":142,"n_cols":6,"rows_kept":142,"cut":false,"hidden":true,"merged":[[74,3,75,3],[2,2,67,2],[2,3,23,3],[24,3,45,3],[46,3,67,3],[109,2,141,2],[109,3,136,3],[137,3,141,3],[1,2,1,6],[68,2,74,2],[68,3,71,3],[72,3,73,3],[76,2,108,2],[93,3,97,3],[99,3,100,3],[101,3,108,3],[76,3,79,3],[80,3,82,3],[83,3,86,3],[87,3,89,3],[90,3,92,3]]}
[]
[null,null,"Summary of scores"]
[null,null,"Prevention\nPackages","AGYW Prevention Package\n(HIGH Incidence Locations)",null,"Risk Assessment / Profiling"]
[null,null,null,null,null,"Male and female condoms and lubricants "]
[null,null,null,null,null,"HIV testing, treatment, counselling and support"]
[null,null,null,null,null,"Pre-exposure Prophylaxis"]
[null,null,null,null,null,"STI diagnosis & service integration"]
[null,null,null,null,null,"SRH services incl. contraceptive mix"]
[null,null,null,null,null,"GBV services, post-rape care "]
[null,null,null,null,null,"Antenatal care (ANC) including PMTCT"]
[null,null,null,null,null,"Clinical service package for sex partners of AGYW"]
[null,null,null,null,null,"Accessible services"]
[null,null,null,null,null,"Youth-friendly/Acceptable services"]
[null,null,null,null,null,"Sensitisation"]
[null,null,null,null,null,"School-based prevention campaigns"]
[null,null,null,null,null,"Comprehensive sexuality education"]
[null,null,null,null,null,"Keeping girls in school"]
[null,null,null,null,null,"Community Mobilisation & demand generation"]
[null,null,null,null,null,"Increasing access to justice (policy and legal) "]
[null,null,null,null,null,"Gender-based violence prevention and management "]
[null,null,null,null,null,"Social protection & Social Asset Building"]
[null,null,null,null,null,"Economic Empowerment & Incentives"]
[null,null,null,null,null,"Increasing access to education for young women "]
[null,null,null,null,null,"Transforming harmful cultural and gender norms through community platforms"]
[null,null,null,"AGYW Prevention Package\n(VERY HIGH Incidence Locations)",null,"Risk Assessment / Profiling"]
[null,null,null,null,null,"Male and female condoms and lubricants "]
[null,null,null,null,null,"HIV testing, treatment, counselling and support"]
[null,null,null,null,null,"Pre-exposure Prophylaxis"]
[null,null,null,null,null,"STI diagnosis & service integration"]
[null,null,null,null,null,"SRH services incl. contraceptive mix"]
[null,null,null,null,null,"GBV services, post-rape care "]
[null,null,null,null,null,"Antenatal care (ANC) including PMTCT"]
[null,null,null,null,null,"Clinical service package for sex partners of AGYW"]
[null,null,null,null,null,"Accessible services"]
[null,null,null,null,null,"Youth-friendly/Acceptable services"]
[null,null,null,null,null,"Sensitisation"]
[null,null,null,null,null,"School-based prevention campaigns"]
[null,null,null,null,null,"Comprehensive sexuality education"]
[null,null,null,null,null,"Keeping girls in school"]
[null,null,null,null,null,"Community Mobilisation & demand generation"]
[null,null,null,null,null,"Increasing access to justice (policy and legal) "]
[null,null,null,null,null,"Gender-based violence prevention and management "]
[null,null,null,null,null,"Social protection & Social Asset Building"]
[null,null,null,null,null,"Economic Empowerment & Incentives"]
[null,null,null,null,null,"Increasing access to education for young women "]
[null,null,null,null,null,"Transforming harmful cultural and gender norms through community platforms"]
[null,null,null,"AGYW Prevention Package\n(EXTREMELY HIGH Incidence Locations)",null,"Risk Assessment / Profiling"]
[null,null,null,null,null,"Male and female condoms and lubricants "]
[null,null,null,null,null,"HIV testing, treatment, counselling and support"]
[null,null,null,null,null,"Pre-exposure Prophylaxis"]
[null,null,null,null,null,"STI diagnosis & service integration"]
[null,null,null,null,null,"SRH services incl. contraceptive mix"]
[null,null,null,null,null,"GBV services, post-rape care "]
[null,null,null,null,null,"Antenatal care (ANC) including PMTCT"]
[null,null,null,null,null,"Clinical service package for sex partners of AGYW"]
[null,null,null,null,null,"Accessible services"]
[null,null,null,null,null,"Youth-friendly/Acceptable services"]
[null,null,null,null,null,"Sensitisation"]
[null,null,null,null,null,"School-based prevention campaigns"]
[null,null,null,null,null,"Comprehensive sexuality education"]
[null,null,null,null,null,"Keeping girls in school"]
[null,null,null,null,null,"Community Mobilisation & demand generation"]
[null,null,null,null,null,"Increasing access to justice (policy and legal) "]
[null,null,null,null,null,"Gender-based violence prevention and management "]
[null,null,null,null,null,"Social protection & Social Asset Building"]
[null,null,null,null,null,"Economic Empowerment & Incentives"]
[null,null,null,null,null,"Increasing access to education for young women "]
[null,null,null,null,null,"Transforming harmful cultural and gender norms through community platforms"]
[null,null,"Programme Management","1. Leadership & coordination",null,"National Strategy and Strategic Plan"]
[null,null,null,null,null,"National Technical working group (TWG) for AGYW/Youth Prevention"]
[null,null,null,null,null,"Accountability"]
[null,null,null,null,null,"National and Sub-National plans"]
[null,null,null,"2. Strategy, Policy & regulation",null,"Policies"]
[null,null,null,null,null,"Guidelines"]
[null,null,null,"3. Financing",null,"Costing"]
[null,null,null,null,null,"Budget planning"]
[null,null,"Programme Implementation","4. Step One: Targeting & planning",null,"Demographic assessment & disaggregation"]
[null,null,null,null,null,"Needs assessment"]
[null,null,null,null,null,"Characterisation of male partners of AGYW"]
[null,null,null,null,null,"Target setting"]
[null,null,null,"5. Step Two: Population size estimation by HIV Incidence Level",null,"AGYW PSE - high incidence settings"]
[null,null,null,null,null,"AGYW PSE - very high incidence settings"]
[null,null,null,null,null,"AGYW PSE - extremely incidence settings"]
[null,null,null,"6. Step Three: Identify the groups \"most vulnerable\" or \"most in need\"",null,"Epidemiological assessment (sero-prevalence survey & determinants of risk)"]
[null,null,null,null,null,"Behavoural risk factors"]
[null,null,null,null,null,"Biological risk factors"]
[null,null,null,null,null,"Structural risk factors"]
[null,null,null,"7. Step Four: Review available programme elements and their coverage",null,"Health sector platforms (facilities, service delivery points)"]
[null,null,null,null,null,"Education platforms (schools, universities)"]
[null,null,null,null,null,"Community platforms (NGOs, CSOs)"]
[null,null,null,"8. Step Five: Develop a Results Framework (Theory of Change)",null,"Define & prioritise HIV prevention packages per applicable incidence category"]
[null,null,null,null,null,"Include Programmatic coverage targets"]
[null,null,null,null,null,"Include Cross-cutting activities & complementary action"]
[null,null,null,"9. Step Six: Define/Develop Delivery Systems",null,"Develop/ensure health platforms"]
[null,null,null,null,null,"Develop/ensure education platforms"]
[null,null,null,null,null,"Develop/ensure Community platforms"]
[null,null,null,null,null,"Peer outreach educators (POE), Peer testers and Community Health Workers (CHWs)"]
[null,null,null,null,null,"Meaningful engagement of affected communities in leadership & coordination"]
[null,null,null,"10. Step Seven: Define Management Mechanism",null,"National & Sub National Management systems"]
[null,null,null,"11. Step Eight: Develop Costed Operational Plan",null,"Operational plan"]
[null,null,null,null,null,"Available Resources"]
[null,null,null,"12. Step Nine: Develop M&E Plan",null,"Routine monitoring"]
[null,null,null,null,null,"Referral system tracking"]
[null,null,null,null,null,"Quality assessment"]
[null,null,null,null,null,"Surveillance "]
[null,null,null,null,null,"Data flow"]
[null,null,null,null,null,"Data for decision making"]
[null,null,null,null,null,"The use of Unique Identifier Code for program monitoring"]
[null,null,null,null,null,"Budget monitoring"]
[null,null,"Programme Outcomes","13. Outcomes for AGYW Prevention",null,"Number of new HIV infections per 1000 uninfected population"]
[null,null,null,null,null,"Number and % of people living with HIV "]
[null,null,null,null,null,"Number of AIDS related deaths per 100,000 population"]
[null,null,null,null,null,"Percentage of (estimated) people living with HIV who have been tested HIV-positive"]
[null,null,null,null,null,"Percentage of adults and children with HIV, known to be on treatment 12 months after initiation of antiretroviral therapy"]
[null,null,null,null,null,"Percentage of people living with HIV and on ART who are virologically suppressed"]
[null,null,null,null,null,"Percentage of ever-married or partnered women aged 15-49 who experienced physical or sexual violence from a male intimate partner in the past 12 months"]
[null,null,null,null,null,"Percentage of sexually active young women age 15 - 24 who had multiple sexual partners."]
[null,null,null,null,null,"Percentage of sexually active men age 15-49 who had multiple sexual partners."]
[null,null,null,null,null,"Knows a formal source for condoms (young women 15-24)"]
[null,null,null,null,null,"Knows a formal source for condoms (young men 15-24)"]
[null,null,null,null,null,"Condom use with non-regular partners (young women, 15-24)"]
[null,null,null,null,null,"Condom use with non regular partners (young men, 15-24)"]
[null,null,null,null,null,"Percentage of females age 15-24 who report unintended pregnancy of of current pregnancy or most recent births (teen pregnancy)"]
[null,null,null,null,null,"Percentage of youth neither in employment nor in education or training (NEET)"]
[null,null,null,null,null,"Percentage of females aged 15 - 24 who dropped out of school in the last year"]
[null,null,null,null,null,"Percentage of young people aged 10–24 years reached by life skills–based HIV education in schools"]
[null,null,null,null,null,"Percentage of priority districts (administrative areas) with dedicated programs for young women & male partners (full package) "]
[null,null,null,null,null,"Percentage of adolescent girls and young women in high-HIV incidence communities reached with two interventions in the past three months"]
[null,null,null,null,null,"Percentage of adolescent girls and young women (AGYW) who received PEP"]
[null,null,null,null,null,"PrEP Indicator - tbc"]
[null,null,null,null,null,"SRHR access indicator(s) - tbc"]
[null,null,null,null,null,"Number of AGYW who received GBV related services (e.g. referral for legal or medical care e.g. PEP, post violence care & support services)"]
[null,null,null,null,null,"Percentage of AGYW who received livelihood support (cash transfer or other economic empowerment approaches)"]
[null,null,null,null,null,"Percentage of AGYW who reached with \"keeping girls in school\" initiatives (including education subsidy and others)"]
[null,null,null,null,null,"Number of medical male circumcisions performed according to national standards"]
[null,null,null,null,null,"Percentage of people living with HIV that initiated ART with a CD4 count of <200 cells/mm3"]
[null,null,null,null,null,"Percentage of people living with HIV and on antiretroviral therapy who have a suppressed viral load at 12 months (<1000 copies/ml)"]
[null,null,null,"14. Sustainability",null,"Resource mobilisation and financing"]
[null,null,null,null,null,"Domestic resourcing"]
[null,null,null,null,null,"Social contracting"]
[null,null,null,null,null,"Capacity building and TA Plan"]
[null,null,null,null,null,"Sustainability plan and transition roadmap"]

{"sheet":"Introduction","index":1,"n_rows":2,"n_cols":3,"rows_kept":2,"cut":false,"hidden":false,"merged":[[1,2,1,22]]}
[]
[null,null,"Que sont les Outils d’auto-évaluation pour la prévention du VIH (OAEP) ?"]

{"sheet":"Instructions","index":2,"n_rows":57,"n_cols":19,"rows_kept":57,"cut":false,"hidden":false,"merged":[[2,2,2,17]]}
[]
[]
[null,null,"Comment compléter l’outil d’auto-évaluation pour la prévention (OAEP) ?"]
[]
[]
[]
[]
[]
[]
[]
[]
[]
[]
[]
[]
[]
[]
[]
[]
[]
[]
[]
[]
[]
[]
[]
[]
[]
[]
[]
[]
[]
[]
[]
[]
[]
[]
[]
[]
[]
[]
[]
[]
[]
[]
[]
[]
[]
[]
[]
[]
[]
[]
[]
[]
[]
[null,null,null,null,null,null,null,null,null,null,null,null,null,null,null,null,null,null,"I"]

{"sheet":"Foire aux questions","index":3,"n_rows":2,"n_cols":3,"rows_kept":2,"cut":false,"hidden":false,"merged":[[1,2,1,22]]}
[]
[null,null,"Foire aux questions"]

{"sheet":"Lignes directrices pour les AJF","index":4,"n_rows":2,"n_cols":3,"rows_kept":2,"cut":false,"hidden":false,"merged":[[1,2,1,22]]}
[]
[null,null,"Prévention combinée pour les adolescentes, les jeunes femmes et leurs partenaires masculins dans les régions à prévalence élevée"]

{"sheet":"Gestion de programme","index":5,"n_rows":90,"n_cols":16,"rows_kept":90,"cut":false,"hidden":false,"merged":[[18,3,18,4],[19,2,29,2],[19,3,19,4],[1,2,1,9],[3,3,3,4],[5,2,17,2],[5,3,5,4],[5,9,17,9],[4,2,4,10],[19,9,29,9],[5,5,5,8],[19,5,19,8],[64,9,73,9],[30,9,38,9],[82,3,82,4],[52,2,63,2],[52,3,52,4],[52,9,63,9],[64,3,64,4],[75,9,77,9],[82,5,82,8],[74,9,74,10],[52,6,52,8],[64,6,64,8],[80,2,81,2],[80,9,81,9],[75,2,77,2],[82,9,85,9],[51,9,51,10],[39,2,46,2],[47,2,50,2],[39,9,46,9],[47,9,50,9],[82,2,85,2],[30,3,30,4],[75,3,75,4],[30,2,38,2],[30,5,30,8],[64,2,73,2]]}
[]
[null,null,"Gestion de programme"]
[]
[null,null,"Élément","Critères",null,"S/O","Absent","Présent mais non optimal","Présent et fonctionnel","Moyenne de l’élément","Commentaires (le cas échéant)","Absent","Present","Optimal","Average","Sustainability Single Figure"]
[null,null,"Leadership et coordination"]
[null,null,"Stratégie nationale et Plan stratégique","Il existe une stratégie/politique nationale et un plan stratégique pour la prévention du VIH chez les AJF ou ils sont bien inclus dans d’autres plans de prévention du VIH et :",null,null,null,null,null,{"$f":"IFERROR(O6,\"-\")","v":"-"},null,null,null,null,{"$f":"IFERROR(ROUND(AVERAGEIF(L7:N18,\"<>0\",L7:N18),0),\"-\")","v":"-"}]
[null,null,null,"○","Des AJF ont été consultées dans l’élaboration de stratégies/plans de prévention du VIH chez les AJF",null,null,null,null,null,null,{"$f":"IF(ISBLANK(G7),0,1)","v":0},{"$f":"IF(ISBLANK(H7),0,3)","v":0},{"$f":"IF(ISBLANK(I7),0,5)","v":0}]
[null,null,null,"○","Les buts, objectifs et cibles ont été clairement définis et articulés pour le programme de prévention du VIH chez les AJF (et leurs partenaires masculins)",null,null,null,null,null,null,0,0,0]
[null,null,null,"○","Les programmes de prévention du VIH chez les AJF reconnaissent les vulnérabilités spécifiques des AJF en raison du sexe, de l’âge, du lieu, du statut socioéconomique et du niveau d’éducation, entre autres",null,null,null,null,null,null,0,0,0]
[null,null,null,"○","Un modèle logique clair ou une théorie du changement est présenté(e) dans la stratégie ou dans le plan pour guider les programmes de prévention du VIH chez les AJF",null,null,null,null,null,null,0,0,0]
[null,null,null,"○","La stratégie ou le plan comprend un paquet complet d’interventions et d’activités, alignées sur des données probantes disponibles et des lignes directrices mondiales actuelles",null,null,null,null,null,null,0,0,0]
[null,null,null,"○","Un paquet complet et différencié d’interventions est défini par district/comté/région/État à l’appui d’une évaluation épidémiologique de l’incidence/prévalence du VIH et d’une compréhension des sous-groupes d’AJF dans toute leur diversité",null,null,null,null,null,null,0,0,0]
[null,null,null,"○","Des plans clairs de mise à l’échelle ont été définis, avec attribution de responsabilités",null,null,null,null,null,null,0,0,0]
[null,null,null,"○","Un cadre de suivi et d’évaluation est inclus, avec des indicateurs et des cibles de base pour la prévention du VIH chez les AJF",null,null,null,null,null,null,0,0,0]
[null,null,null,"○","Des mécanismes de mise en œuvre et des systèmes de gestion/coordination sont clairement définis aux niveaux national et infranational pour les AJF ",null,null,null,null,null,null,0,0,0]
[null,null,null,"○","Des cycles de planification sont clairement définis et soutenus par des analyses d’impact rigoureuses",null,null,null,null,null,null,0,0,0]
[null,null,null,"○","Des recommandations issues d’autres évaluations/stratégies/processus liés aux AJF (ex. : indice de stigmatisation, évaluation de la sexospécificité, etc.) sont incluses dans la Stratégie nationale et le Plan stratégique",null,null,null,null,null,null,{"$f":"IF(ISBLANK(G17),0,1)","v":0},{"$f":"IF(ISBLANK(H17),0,3)","v":0},{"$f":"IF(ISBLANK(I17),0,5)","v":0}]
[null,null,null,"○","Incluent ou son liés à un plan multisectoriel qui répond aux exigences de participation, d’adhésion et de contribution de tous les groupes de parties prenantes (gouvernement, agences, responsables de la mise en œuvre, bailleurs de fonds, AJF) qui sont nécessaires au succès d’une approche multidimensionnelle des programmes de prévention du VIH chez les AJF",null,null,null,null,null,null,0,0,0]
[null,null,"Plans nationaux et infranationaux","Des paquets d’interventions fondées sur des données probantes pour la prévention du VIH chez les AJF, en fonction de l’incidence de l’infection par le VIH dans chaque district/comté/région/État, ont été inclus dans les plans de performance annuels nationaux et provinciaux ",null,null,null,null,null,{"$f":"IFERROR(O19,\"-\")","v":"-"},null,{"$f":"IF(ISBLANK(G19),0,1)","v":0},{"$f":"IF(ISBLANK(H19),0,3)","v":0},{"$f":"IF(ISBLANK(I19),0,5)","v":0},{"$f":"IFERROR(IF(ISBLANK(G19),ROUND(AVERAGEIF(L19:N19,\"<>0\",L19:N19),0),L19),\"-\")","v":"-"}]
[null,null,"Groupe de travail technique national (GTT) sur la prévention du VIH chez les AJF","Un groupe de travail technique (GTT) a été créé au niveau national et des comités consultatifs ont été créés au niveau infranational :",null,null,null,null,null,{"$f":"IFERROR(O20,\"-\")","v":"-"},null,null,null,null,{"$f":"IFERROR(ROUND(AVERAGEIF(L21:N30,\"<>0\",L21:N30),0),\"-\")","v":"-"}]
[null,null,null,"○","Le GTT national et/ou les comités consultatifs ont un mandat ou un champ d’action défini qui décrit également le lien avec d’autres processus et groupes traitant de la prévention du VIH et des jeunes",null,null,null,null,null,null,0,0,0]
[null,null,null,"○","Le mandat/champ d’action des comités nationaux est dûment priorisé et aligné sur les plans, objectifs et cibles nationaux",null,null,null,null,null,null,0,0,0]
[null,null,null,"○","Le GTT national et/ou les comités consultatifs se réunissent au moins une fois par trimestre",null,null,null,null,null,null,0,0,0]
[null,null,null,"○","Le GTT national et/ou les comités consultatifs sont complets et comprennent des organisations de la société civile (OSC), des partenaires de mise en œuvre, des membres de réseaux d’AJF et des représentants bilatéraux et gouvernementaux",null,null,null,null,null,null,0,0,0]
[null,null,null,"○","Ils ont mis en place des mécanismes de communication interne et externe ",null,null,null,null,null,null,0,0,0]
[null,null,null,"○","Des représentants de groupes d’AJF figurent parmi les rangs du GTT national et/ou des comités consultatifs",null,null,null,null,null,null,0,0,0]
[null,null,null,"○","Les AJF sont soutenues et leurs capacités sont renforcées afin de garantir leur participation à égalité avec les autres membres",null,null,null,null,null,null,0,0,0]
[null,null,null,"○","Le groupe de travail technique utilise des données issues d’activités de surveillance pour informer la prise de décision",null,null,null,null,null,null,0,0,0]
[null,null,null,"○","Les priorités ont été bien définies et la majorité des actions sont réalisées de façon routinière",null,null,null,null,null,null,0,0,0]
[null,null,null,"○","Des GTT et/ou comités consultatifs infranationaux sont établis et actifs",null,null,null,null,null,null,{"$f":"IF(ISBLANK(G30),0,1)","v":0},{"$f":"IF(ISBLANK(H30),0,3)","v":0},{"$f":"IF(ISBLANK(I30),0,5)","v":0}]
[null,null,"Obligation de rendre compte","Le département/ministère responsable de la réussite des programmes de prévention du VIH chez les AJF a été identifié et jouit d'un bon leadership et d'une forte autorité :",null,null,null,null,null,{"$f":"IFERROR(O31,\"-\")","v":"-"},null,null,null,null,{"$f":"IFERROR(ROUND(AVERAGEIF(L32:N39,\"<>0\",L32:N39),0),\"-\")","v":"-"}]
[null,null,null,"○","Tous les programmes de prévention du VIH destinés aux AJF dans le pays communiquent régulièrement des données au gouvernement aux niveaux infranational et national en utilisant des indicateurs communs alignés sur les stratégies nationales et les référentiels mondiaux de prévention du VIH",null,null,null,null,null,null,0,0,0]
[null,null,null,"○","Dans les rapports, les données sont anonymisées et sécurisées afin de protéger l’identité des AJF",null,null,null,null,null,null,0,0,0]
[null,null,null,"○","Des examens de routine sont pratiqués à partir des données de surveillance des AJF",null,null,null,null,null,null,0,0,0]
[null,null,null,"○","Un représentant du gouvernement désigné par le département/ministère responsable est chargé de représenter le programme AJF lors des réunions multisectorielles organisées régulièrement",null,null,null,null,null,null,0,0,0]
[null,null,null,"○","Le groupe de travail technique AJF est impliqué dans le respect de l’obligation de rendre compte, notamment par la collecte de données",null,null,null,null,null,null,0,0,0]
[null,null,null,"○","Un examen annuel des performances et une boucle de rétroaction ont été mis en place pour responsabiliser les personnes de référence (pourrait être coordonné par le groupe de travail technique)",null,null,null,null,null,null,0,0,0]
[null,null,null,"○","Des lobbyistes actifs de la société civile participent aux dialogues nationaux, aux processus politiques, à la planification/révision des programmes et aux processus de planification stratégique liés à la prévention du VIH chez les AJF",null,null,null,null,null,null,0,0,0]
[null,null,null,"○","Des groupes communautaires d’AJF sont impliqués dans le suivi mené par la communauté selon les lignes directrices de l’ONUSIDA et dans la collecte de données menée par la communauté",null,null,null,null,null,null,{"$f":"IF(ISBLANK(G39),0,1)","v":0},{"$f":"IF(ISBLANK(H39),0,3)","v":0},{"$f":"IF(ISBLANK(I39),0,5)","v":0}]
[null,null,"Plan de renforcement des capacités et d’assistance technique","○","Un plan d’assistance technique est en place et : ",null,null,null,null,{"$f":"IFERROR(O40,\"-\")","v":"-"},null,null,null,null,{"$f":"IFERROR(ROUND(AVERAGEIF(L41:N47,\"<>0\",L41:N47),0),\"-\")","v":"-"}]
[null,null,null,"○","A été élaboré à l’appui d’une évaluation ",null,null,null,null,null,null,0,0,0,null,{"$f":"IF(MAX(L41:N41)=0,\"\",MAX(L41:N41))","v":""}]
[null,null,null,"○","A recours à des experts techniques nationaux et internationaux, notamment pour le développement des capacités et l’assistance technique entre pairs",null,null,null,null,null,null,0,0,0,null,""]
[null,null,null,"○","A priorisé les composantes du programme et les questions politiques ",null,null,null,null,null,null,0,0,0,null,""]
[null,null,null,"○","Facilite l’établissement et le renforcement des réseaux d’exécutants ",null,null,null,null,null,null,0,0,0,null,""]
[null,null,null,"○","Identifie les lacunes et élabore des demandes d’assistance consolidées lorsque l’expertise du pays fait défaut ",null,null,null,null,null,null,0,0,0,null,""]
[null,null,null,"○","Facilite le développement de la capacité de la communauté d’AJF à s’approprier les programmes AJF ",null,null,null,null,null,null,0,0,0,null,""]
[null,null,null,"○","Inclut une assistance technique interne",null,null,null,null,null,null,0,0,0,null,""]
[null,null,"Plan de durabilité et feuille de route de transition","○","Un plan complet de durabilité et une feuille de route de transition, décrivant la transition accusée par les pays entre les interventions soutenues par les donateurs et les interventions soutenues au niveau national, sont en place et prennent en compte toutes les ressources, notamment : ",null,null,null,null,{"$f":"IFERROR(O48,\"-\")","v":"-"},null,null,null,null,{"$f":"IFERROR(ROUND(AVERAGEIF(L49:N51,\"<>0\",L49:N51),0),\"-\")","v":"-"}]
[null,null,null,"○","Ressources financières",null,null,null,null,null,null,0,0,0,null,{"$f":"IF(MAX(L49:N49)=0,\"\",MAX(L49:N49))","v":""}]
[null,null,null,"○","Ressources humaines et ",null,null,null,null,null,null,0,0,0,null,{"$f":"IF(MAX(L50:N50)=0,\"\",MAX(L50:N50))","v":""}]
[null,null,null,"○","Infrastructures",null,null,null,null,null,null,0,0,0,null,{"$f":"IF(MAX(L51:N51)=0,\"\",MAX(L51:N51))","v":""}]
[null,null,"Stratégie, politique et réglementation"]
[null,null,"Politiques et lois","Des politiques promeuvent activement le bon fonctionnement du programme de prévention du VIH chez les AJF : ",null,null,null,null,null,{"$f":"IFERROR(O53,\"-\")","v":"-"},null,null,null,null,{"$f":"IFERROR(ROUND(AVERAGEIF(L54:N64,\"<>0\",L54:N64),0),\"-\")","v":"-"}]
[null,null,null,"○","Le soutien fiscal et administratif pour faire avancer la mise en œuvre des instruments politiques pertinents est cohérent",null,null,null,null,null,null,{"$f":"IF(ISBLANK(G54),0,1)","v":0},{"$f":"IF(ISBLANK(H54),0,3)","v":0},{"$f":"IF(ISBLANK(I54),0,5)","v":0}]
[null,null,null,"○","Les politiques favorisent activement l’accès des AJF aux services et tiennent compte des obstacles financiers",null,null,null,null,null,null,0,0,0]
[null,null,null,"○","Des politiques et des lois sur les services adaptés aux adolescents, tenant compte des vulnérabilités liées à l’âge et autorisant la confidentialité et le consentement des adolescents, ont été adoptées",null,null,null,null,null,null,0,0,0]
[null,null,null,"○","Le mariage des enfants est illégal ",null,null,null,null,null,null,0,0,0]
[null,null,null,"○","L’âge du consentement et/ou le consentement parental ne constituent pas des obstacles à la mise en œuvre des services destinés aux AJF",null,null,null,null,null,null,0,0,0]
[null,null,null,"○","Des politiques contre la violence domestique ou la violence sexiste ont été adoptées",null,null,null,null,null,null,0,0,0]
[null,null,null,"○","Des politiques visant à garantir l’accès universel à l’enseignement primaire et secondaire ont été adoptées",null,null,null,null,null,null,0,0,0]
[null,null,null,"○","Une éducation sexuelle complète a été adoptée et un programme éducatif national a été élaboré",null,null,null,null,null,null,0,0,0]
[null,null,null,"○","Des politiques visant à réintégrer les adolescentes enceintes à l’école ont été adoptées",null,null,null,null,null,null,{"$f":"IF(ISBLANK(G62),0,1)","v":0},{"$f":"IF(ISBLANK(H62),0,3)","v":0},{"$f":"IF(ISBLANK(I62),0,5)","v":0}]
[null,null,null,"○","Des politiques visant à traiter/réduire la séparation des conjoints ont été adoptées",null,null,null,null,null,null,{"$f":"IF(ISBLANK(G63),0,1)","v":0},{"$f":"IF(ISBLANK(H63),0,3)","v":0},{"$f":"IF(ISBLANK(I63),0,5)","v":0}]
[null,null,null,"○","Les lois discriminatoires à l’égard des AJF issues de groupes de Population clé sont supprimées et des lois protégeant contre la discrimination fondée sur l’âge, le sexe, l’identité de genre, l’orientation sexuelle et l’état civil existent",null,null,null,null,null,null,0,0,0]
[null,null,"Lignes directrices","Les normes programmatiques ou lignes directrices nationales suivantes existent et définissent clairement les étapes d’une mise en œuvre réussie d’un programme de prévention du VIH chez les AJF, conformément aux pratiques fondées sur des données probantes :",null,null,null,null,null,{"$f":"IFERROR(O65,\"-\")","v":"-"},null,null,null,null,{"$f":"IFERROR(ROUND(AVERAGEIF(L66:N74,\"<>0\",L66:N73),0),\"-\")","v":"-"}]
[null,null,null,"○","Des lignes directrices nationales existent pour chacune des interventions et services biomédicaux, comportementaux et structurels, qui répondent aux besoins spécifiques des AJF, ou, en l’absence de lignes directrices nationales, toutes les politiques et tous les documents stratégiques font référence aux lignes directrices internationales actuellement disponibles pour les interventions du programme de prévention AJF",null,null,null,null,null,null,0,0,0]
[null,null,null,"○","Des lignes directrices ont été élaborées en concertation avec des AJF",null,null,null,null,null,null,0,0,0]
[null,null,null,"○","Les lignes directrices nationales pour le dépistage et le traitement du VIH, les infections sexuellement transmissibles (IST) et la prophylaxie avant exposition (PaP) considèrent les AJF comme une population cible spécifique",null,null,null,null,null,null,0,0,0]
[null,null,null,"○","Les lignes directrices nationales pour la réduction des risques ainsi que les procédures opérationnelles permanentes pour la thérapie médicalement assistée pour les personnes qui s’injectent des drogues considèrent les AJF comme une sous-population spécifique",null,null,null,null,null,null,0,0,0]
[null,null,null,"○","Les lignes directrices relatives à la santé sexuelle et reproductive et aux droits connexes (SSRDC) établissent clairement le lien et l’intégration avec la prévention du VIH",null,null,null,null,null,null,0,0,0]
[null,null,null,"○","Les lignes directrices relatives à l’éducation sexuelle complète (ESC) incluent des programmes éducatifs, des aides pédagogiques et des plans de formation",null,null,null,null,null,null,0,0,0]
[null,null,null,"○","L’âge du consentement a été harmonisé dans toutes les lignes directrices",null,null,null,null,null,null,0,0,0]
[null,null,null,"○","Il n’y a pas de lignes directrices contradictoires en place",null,null,null,null,null,null,0,0,0]
[null,null,null,"○","Les mesures de prévention et de contrôle de l’infection COVID-19 sont intégrées dans l’ensemble des stratégies, plans et lignes directrices de prévention du VIH chez les AJF",null,null,null,null,null,null,{"$f":"IF(ISBLANK(G74),0,1)","v":0},{"$f":"IF(ISBLANK(H74),0,3)","v":0},{"$f":"IF(ISBLANK(I74),0,5)","v":0}]
[null,null,"Financement"]
[null,null,"Calcul des coûts","Le pays est transparent et a une compréhension détaillée des besoins totaux estimatifs en ressources pour le pays, informés par le calcul des coûts et la modélisation d’un paquet standard de services de prévention du VIH chez les AJF",null,null,null,null,null,{"$f":"IFERROR(O76,\"-\")","v":"-"},null,null,null,null,{"$f":"IFERROR(ROUND(AVERAGEIF(L77:N78,\"<>0\",L77:N78),0),\"-\")","v":"-"}]
[null,null,null,"○","Un récent exercice national de calcul des coûts a été réalisé pour estimer le coût du paquet standard de services selon les lignes directrices et des ressources totales nécessaires à la mise en œuvre, compte tenu des objectifs de couverture",null,null,null,null,null,null,{"$f":"IF(ISBLANK(G77),0,1)","v":0},{"$f":"IF(ISBLANK(H77),0,3)","v":0},{"$f":"IF(ISBLANK(I77),0,5)","v":0}]
[null,null,null,"○","Les coûts sont coordonnés et normalisés entre les différents secteurs et partenaires qui financent et mettent en œuvre un paquet standard de services de prévention du VIH chez les AJF",null,null,null,null,null,null,0,0,0]
[null,null,"Mobilisation des ressources et financement","○","Le financement est suffisant pour répondre aux besoins de programmation définis et des fonds nationaux sont disponibles",null,null,null,null,{"$f":"IFERROR(O79,\"-\")","v":"-"},null,{"$f":"IF(ISBLANK(G79),0,1)","v":0},{"$f":"IF(ISBLANK(H79),0,3)","v":0},{"$f":"IF(ISBLANK(I79),0,5)","v":0},{"$f":"IFERROR(IF(ISBLANK(G79),ROUND(AVERAGEIF(L79:N79,\"<>0\",L79:N79),0),L79),\"-\")","v":"-"},{"$f":"IF(MAX(L79:N79)=0,\"\",MAX(L79:N79))","v":""}]
[null,null,"Ressourcement national","○","Plus de 20 % (pays à faible revenu) et de 50 % (pays à revenu intermédiaire) des ressources humaines et financières nécessaires au soutien des programmes proviennent de sources nationales",null,null,null,null,{"$f":"IFERROR(O80,\"-\")","v":"-"},null,{"$f":"IF(ISBLANK(G80),0,1)","v":0},{"$f":"IF(ISBLANK(H80),0,3)","v":0},{"$f":"IF(ISBLANK(I80),0,5)","v":0},{"$f":"IFERROR(IF(ISBLANK(G80),ROUND(AVERAGEIF(L80:N80,\"<>0\",L80:N80),0),L80),\"-\")","v":"-"},{"$f":"IF(MAX(L80:N80)=0,\"\",MAX(L80:N80))","v":""}]
[null,null,"Contrats sociaux","○","Les mécanismes de contrats sociaux ont été bien développés et sont mis en œuvre et financés par des sources nationales",null,null,null,null,{"$f":"IFERROR(O81,\"-\")","v":"-"},null,0,0,0,{"$f":"IFERROR(ROUND(AVERAGEIF(L81:N82,\"<>0\",L81:N82),0),\"-\")","v":"-"},{"$f":"IF(MAX(L81:N81)=0,\"\",MAX(L81:N81))","v":""}]
[null,null,null,"○","Les opportunités de financement sont largement diffusées afin de permettre aux partenaires locaux de mise en œuvre et aux organisations dirigées par des AJF d’accéder au financement. Les organisations de la société civile (OSC) sont soutenues au niveau de l’accès au financement",null,null,null,null,null,null,0,0,0,null,{"$f":"IF(MAX(L82:N82)=0,\"\",MAX(L82:N82))","v":""}]
[null,null,"Planification budgétaire","Un processus de planification budgétaire intersectoriel bien géré est en place pour les programmes de prévention du VIH chez les AJF et une évaluation des ressources disponibles est en cours pour tenter d’identifier les lacunes et d’allouer un budget au programme AJF :",null,null,null,null,null,{"$f":"IFERROR(O83,\"-\")","v":"-"},null,null,null,null,{"$f":"IFERROR(ROUND(AVERAGEIF(L84:N86,\"<>0\",L84:N86),0),\"-\")","v":"-"}]
[null,null,null,"○","Les cycles de planification budgétaire pour les programmes de prévention du VIH chez les AJF sont systématiquement et promptement alignés sur les cycles budgétaires et les processus décisionnels fiscaux nationaux et infranationaux",null,null,null,null,null,null,0,0,0]
[null,null,null,"○","La planification budgétaire distingue les types de financement/budget disponibles pour une réponse globale à la prévention AJF ",null,null,null,null,null,null,0,0,0]
[null,null,null,"○","Une analyse des lacunes financières a été réalisée pour le programme national de prévention du VIH chez les AJF",null,null,null,null,null,null,0,0,0,null,{"$f":"IF(MAX(L86:N86)=0,\"\",MAX(L86:N86))","v":""}]
[]
[null,null,null,null,null,null,null,null,null,null,null,null,{"$f":"COUNTIF(O6:O87,\"-\")","v":13}]
[null,null,null,null,null,null,null,null,null,null,null,null,{"$f":"COUNTIF(O6:O87,\">0\")","v":0}]
[null,null,null,null,null,null,null,null,null,null,null,"Achèvement de la feuille",{"$f":"M89/(M88+M89)","v":0},{"$f":"1-M90","v":1}]

{"sheet":"Mise en œuvre de programme","index":6,"n_rows":237,"n_cols":16,"rows_kept":237,"cut":false,"hidden":false,"merged":[[226,9,229,9],[212,2,220,2],[212,3,212,4],[212,9,220,9],[221,2,225,2],[221,3,221,4],[221,9,225,9],[177,9,177,10],[201,9,205,9],[206,2,211,2],[206,3,206,4],[206,9,211,9],[178,2,187,2],[178,3,178,4],[178,9,187,9],[188,2,194,2],[188,3,188,4],[188,9,194,9],[195,2,200,2],[195,3,195,4],[195,9,200,9],[178,5,178,8],[188,5,188,8],[195,5,195,8],[133,2,136,2],[133,3,133,4],[133,9,136,9],[137,2,145,2],[137,3,137,4],[137,9,145,9],[146,2,149,2],[146,3,146,4],[146,9,149,9],[133,5,133,8],[137,5,137,8],[146,5,146,8],[151,5,151,8],[166,5,166,8],[170,5,170,8],[150,9,150,10],[151,2,164,2],[151,3,151,4],[151,9,164,9],[166,2,169,2],[166,3,166,4],[165,9,165,10],[170,2,176,2],[170,3,170,4],[170,9,176,9],[166,9,169,9],[107,2,116,2],[107,3,107,4],[107,9,116,9],[117,2,124,2],[117,3,117,4],[117,9,124,9],[125,2,132,2],[125,3,125,4],[125,9,132,9],[83,2,91,2],[83,3,83,4],[83,9,91,9],[93,2,101,2],[93,3,93,4],[93,9,101,9],[102,2,106,2],[102,3,102,4],[102,9,106,9],[92,9,92,10],[78,3,78,4],[78,2,82,2],[78,9,82,9],[48,2,58,2],[48,3,48,4],[48,9,58,9],[59,2,63,2],[59,3,59,4],[59,9,63,9],[64,2,75,2],[64,3,64,4],[64,9,75,9],[33,2,36,2],[33,3,33,4],[33,9,36,9],[38,2,47,2],[38,3,38,4],[38,9,47,9],[42,3,42,4],[77,3,77,4],[37,2,37,10],[15,2,19,2],[15,3,15,4],[15,9,19,9],[20,2,27,2],[20,3,20,4],[20,9,27,9],[29,2,32,2],[29,3,29,4],[29,9,32,9],[28,2,28,10],[1,2,1,9],[3,3,3,4],[5,2,10,2],[5,3,5,4],[5,9,10,9],[11,2,14,2],[11,3,11,4],[11,9,14,9],[4,2,4,10],[5,5,5,8],[201,5,201,8],[206,5,206,8],[212,5,212,8],[221,5,221,8],[226,5,226,8],[226,2,229,2],[226,3,226,4],[201,2,205,2],[201,3,201,4]]}
[]
[null,null,"Mise en œuvre de programme"]
[]
[null,null,"Élément","Critères",null,"S/O","Absent","Présent mais non optimal","Présent et fonctionnel","Moyenne de l’élément","Commentaires (le cas échéant)","Absent","Present","Optimal","Average","Sustainability Single Figure"]
[null,null,"Ciblage et planification"]
[null,null,"Évaluation démographique et désagrégation","Des données nationales sur l’incidence du VIH sont disponibles à partir de sources et de modèles mathématiques appropriés (à savoir des estimations infranationales de l’ONUSIDA)",null,null,null,null,null,{"$f":"IFERROR(O6,\"-\")","v":"-"},null,null,null,null,{"$f":"IFERROR(ROUND(AVERAGEIF(L7:N11,\"<>0\",L7:N11),0),\"-\")","v":"-"}]
[null,null,null,"○","Les données sont désagrégées par âge, sexe et lieu",null,null,null,null,null,null,{"$f":"IF(ISBLANK(G7),0,1)","v":0},{"$f":"IF(ISBLANK(H7),0,3)","v":0},{"$f":"IF(ISBLANK(I7),0,5)","v":0}]
[null,null,null,"○","Les schémas d’incidence/transmission au niveau national sont identifiés et analysés, y compris les interactions possibles entre les AJF et d’autres groupes d’âge de femmes et d’hommes",null,null,null,null,null,null,{"$f":"IF(ISBLANK(G8),0,1)","v":0},{"$f":"IF(ISBLANK(H8),0,3)","v":0},{"$f":"IF(ISBLANK(I8),0,5)","v":0}]
[null,null,null,"○","Les informations sont utilisées pour déterminer les besoins en matière de prestation de services dans les domaines de la santé, de l’éducation et des plateformes communautaires",null,null,null,null,null,null,{"$f":"IF(ISBLANK(G9),0,1)","v":0},{"$f":"IF(ISBLANK(H9),0,3)","v":0},{"$f":"IF(ISBLANK(I9),0,5)","v":0}]
[null,null,null,"○","Ces informations sont utilisées pour estimer les besoins de financement et fixer des cibles",null,null,null,null,null,null,{"$f":"IF(ISBLANK(G10),0,1)","v":0},{"$f":"IF(ISBLANK(H10),0,3)","v":0},{"$f":"IF(ISBLANK(I10),0,5)","v":0}]
[null,null,null,"○","Ces informations sont utilisées pour déterminer quel paquet d’interventions est mis en œuvre dans quel district/comté/région/État",null,null,null,null,null,null,{"$f":"IF(ISBLANK(G11),0,1)","v":0},{"$f":"IF(ISBLANK(H11),0,3)","v":0},{"$f":"IF(ISBLANK(I11),0,5)","v":0}]
[null,null,"Évaluation des besoins","Une évaluation des besoins des AJF a été réalisée :",null,null,null,null,null,{"$f":"IFERROR(O12,\"-\")","v":"-"},null,null,null,null,{"$f":"IFERROR(ROUND(AVERAGEIF(L13:N15,\"<>0\",L13:N15),0),\"-\")","v":"-"}]
[null,null,null,"○","Engagement adéquat avec les organisations ou réseaux d’AJF ou dirigés par des AJF sur les besoins",null,null,null,null,null,null,{"$f":"IF(ISBLANK(G13),0,1)","v":0},{"$f":"IF(ISBLANK(H13),0,3)","v":0},{"$f":"IF(ISBLANK(I13),0,5)","v":0}]
[null,null,null,"○","Informations suffisantes sur les services dont les AJF ont besoin, sur la manière dont elles préfèrent accéder aux services et sur les personnes qui devraient fournir ces services",null,null,null,null,null,null,{"$f":"IF(ISBLANK(G14),0,1)","v":0},{"$f":"IF(ISBLANK(H14),0,3)","v":0},{"$f":"IF(ISBLANK(I14),0,5)","v":0}]
[null,null,null,"○","Il existe suffisamment d’informations pour une segmentation (BASÉE SUR LES BESOINS/PSYCHOGRAPHIQUE) des AJF les plus à risque et « les plus vulnérables »",null,null,null,null,null,null,{"$f":"IF(ISBLANK(G15),0,1)","v":0},{"$f":"IF(ISBLANK(H15),0,3)","v":0},{"$f":"IF(ISBLANK(I15),0,5)","v":0}]
[null,null,"Caractérisation des partenaires masculins des AJF","Le programme a caractérisé les partenaires sexuels des AJF afin de les cibler par des services de lutte contre le VIH très efficaces : ",null,null,null,null,null,{"$f":"IFERROR(O16,\"-\")","v":"-"},null,null,null,null,{"$f":"IFERROR(ROUND(AVERAGEIF(L17:N20,\"<>0\",L17:N20),0),\"-\")","v":"-"}]
[null,null,null,"○","Examen complet des enquêtes et évaluations visant à comprendre les caractéristiques des partenaires sexuels masculins des AJF, en particulier dans les zones à incidence élevée ",null,null,null,null,null,null,{"$f":"IF(ISBLANK(G17),0,1)","v":0},{"$f":"IF(ISBLANK(H17),0,3)","v":0},{"$f":"IF(ISBLANK(I17),0,5)","v":0}]
[null,null,null,"○","Les caractéristiques des partenaires masculins ont été segmentées afin d’aider à concevoir et à cibler les interventions de manière appropriée",null,null,null,null,null,null,{"$f":"IF(ISBLANK(G18),0,1)","v":0},{"$f":"IF(ISBLANK(H18),0,3)","v":0},{"$f":"IF(ISBLANK(I18),0,5)","v":0}]
[null,null,null,"○","Les AJF et leurs partenaires masculins ont été consultés lors des exercices de segmentation",null,null,null,null,null,null,{"$f":"IF(ISBLANK(G19),0,1)","v":0},{"$f":"IF(ISBLANK(H19),0,3)","v":0},{"$f":"IF(ISBLANK(I19),0,5)","v":0}]
[null,null,null,"○","Les résultats sont utilisés pour informer la programmation",null,null,null,null,null,null,{"$f":"IF(ISBLANK(G20),0,1)","v":0},{"$f":"IF(ISBLANK(H20),0,3)","v":0},{"$f":"IF(ISBLANK(I20),0,5)","v":0}]
[null,null,"Définition de cibles","Des cibles de couverture des services pour les AJF et leurs partenaires masculins ont été clairement définies et :",null,null,null,null,null,{"$f":"IFERROR(O21,\"-\")","v":"-"},null,null,null,null,{"$f":"IFERROR(ROUND(AVERAGEIF(L22:N28,\"<>0\",L22:N28),0),\"-\")","v":"-"}]
[null,null,null,"○","Sont basées sur l’estimation de la taille, l’évaluation du risque et des données de séroprévalence",null,null,null,null,null,null,{"$f":"IF(ISBLANK(G22),0,1)","v":0},{"$f":"IF(ISBLANK(H22),0,3)","v":0},{"$f":"IF(ISBLANK(I22),0,5)","v":0}]
[null,null,null,"○","Sont spécifiées pour les AJF par tranches d’âge (15-19, 20-24 et 25-29 ans)",null,null,null,null,null,null,0,0,0]
[null,null,null,"○","Sont spécifiées aux niveaux national et infranational ",null,null,null,null,null,null,0,0,0]
[null,null,null,"○","Incluent des résultats intermédiaires et finaux",null,null,null,null,null,null,0,0,0]
[null,null,null,"○","Sont élaborées en concertation avec les exécutants afin de s’assurer qu’elles sont réalistes",null,null,null,null,null,null,0,0,0]
[null,null,null,"○","Correspondent aux budgets et aux accords formels avec les exécutants locaux",null,null,null,null,null,null,0,0,0]
[null,null,null,"○","Incluent des cibles pour les partenaires masculins des AJF, y compris pour les circoncisions masculines médicales volontaires, les préservatifs et les services de dépistage du VIH",null,null,null,null,null,null,0,0,0]
[null,null,"Estimation de la taille de la population en fonction des niveaux d’incidence du VIH"]
[null,null,"Estimation de la taille de la population - incidence modérée","Estimation de la taille de la population complétée pour l’intervalle d’incidence 0,3 - <1,0 et :",null,null,null,null,null,{"$f":"IFERROR(O30,\"-\")","v":"-"},null,null,null,null,{"$f":"IFERROR(ROUND(AVERAGEIF(L31:N33,\"<>0\",L31:N33),0),\"-\")","v":"-"}]
[null,null,null,"○","Désagrégée en tranches d’âge pour les AJF (15-19, 20-24 et 25-29 ans)",null,null,null,null,null,null,{"$f":"IF(ISBLANK(G31),0,1)","v":0},{"$f":"IF(ISBLANK(H31),0,3)","v":0},{"$f":"IF(ISBLANK(I31),0,5)","v":0}]
[null,null,null,"○","Basée sur le site (niveau local, par opposition au pays ou à la province)",null,null,null,null,null,null,{"$f":"IF(ISBLANK(G32),0,1)","v":0},{"$f":"IF(ISBLANK(H32),0,3)","v":0},{"$f":"IF(ISBLANK(I32),0,5)","v":0}]
[null,null,null,"○","Mise à jour annuellement ou à l’issue d’une enquête biocomportementale",null,null,null,null,null,null,{"$f":"IF(ISBLANK(G33),0,1)","v":0},{"$f":"IF(ISBLANK(H33),0,3)","v":0},{"$f":"IF(ISBLANK(I33),0,5)","v":0}]
[null,null,"Estimation de la taille de la population - incidence élevée","Estimation de la taille de la population complétée pour l’intervalle d’incidence 1,0 < et :",null,null,null,null,null,{"$f":"IFERROR(O34,\"-\")","v":"-"},null,null,null,null,{"$f":"IFERROR(ROUND(AVERAGEIF(L35:N37,\"<>0\",L35:N37),0),\"-\")","v":"-"}]
[null,null,null,"○","Désagrégée en tranches d’âge pour les AJF (15-19, 20-24 et 25-29 ans)",null,null,null,null,null,null,{"$f":"IF(ISBLANK(G35),0,1)","v":0},{"$f":"IF(ISBLANK(H35),0,3)","v":0},{"$f":"IF(ISBLANK(I35),0,5)","v":0}]
[null,null,null,"○","Basée sur le site (niveau local, par opposition au pays ou à la province)",null,null,null,null,null,null,{"$f":"IF(ISBLANK(G36),0,1)","v":0},{"$f":"IF(ISBLANK(H36),0,3)","v":0},{"$f":"IF(ISBLANK(I36),0,5)","v":0}]
[null,null,null,"○","Mise à jour annuellement ou à l’issue d’une enquête biocomportementale",null,null,null,null,null,null,{"$f":"IF(ISBLANK(G37),0,1)","v":0},{"$f":"IF(ISBLANK(H37),0,3)","v":0},{"$f":"IF(ISBLANK(I37),0,5)","v":0}]
[null,null,"Identifier les groupes « les plus vulnérables » ou « les plus à risque »"]
[null,null,"Évaluation épidémiologique (enquête de séroprévalence et déterminants du risque)","Des estimations de séroprévalence sont disponibles et :",null,null,null,null,null,{"$f":"IFERROR(O39,\"-\")","v":"-"},null,null,null,null,{"$f":"IFERROR(ROUND(AVERAGEIF(L40:N48,\"<>0\",L40:N48),0),\"-\")","v":"-"}]
[null,null,null,"○","Sont basées sur une surveillance récente et/ou continue (estimations modélisées mises à jour annuellement ou données d’enquête mises à jour tous les 3-5 ans)",null,null,null,null,null,null,{"$f":"IF(ISBLANK(G40),0,1)","v":0},{"$f":"IF(ISBLANK(H40),0,3)","v":0},{"$f":"IF(ISBLANK(I40),0,5)","v":0}]
[null,null,null,"○","Peuvent être désagrégées en tranches d’âge pour les AJF (15-19, 20-24 et 25-29 ans)",null,null,null,null,null,null,0,0,0]
[null,null,null,"○","Les résultats sont précis, la taille de l’échantillon est statistiquement représentative (puissance appropriée) et la méthode d’échantillonnage est appropriée pour les AJF",null,null,null,null,null,null,0,0,0]
[null,null,null,"Des évaluations des déterminants du risque ont été régulièrement menées pour les AJF afin d’informer les programmes et :",null,null,null,null,null,null,null,0,0,0]
[null,null,null,"○","Incluent un examen complet des Enquêtes démographiques et sanitaires, des enquêtes d’Analyse de l’impact du VIH sur la population et des Enquêtes sur la violence à l’encontre des enfants",null,null,null,null,null,null,0,0,0]
[null,null,null,"○","Elles sont spécifiques aux AJF et prennent en compte les comportements spécifiques à l’âge et au sexe ",null,null,null,null,null,null,0,0,0]
[null,null,null,"○","Les études sont de bonne qualité et fournissent de nombreuses informations  ",null,null,null,null,null,null,0,0,0]
[null,null,null,"○","Les résultats sont précis, la taille de l’échantillon est statistiquement représentative (puissance appropriée) et la méthode d’échantillonnage est appropriée pour les AJF",null,null,null,null,null,null,0,0,0]
[null,null,null,"○","Ces informations sont également utilisées pour déterminer quel paquet d’interventions est mis en œuvre dans quel district/comté/région/État et permettent de modifier les programmes/interventions en fonction de l’évolution des vulnérabilités au fil du temps",null,null,null,null,null,null,0,0,0]
[null,null,"Facteurs de risque comportementaux","Pour comprendre quelles stratégies de prévention sont plus/moins importantes, des données sont disponibles sur les facteurs comportementaux d’acquisition du VIH par les AJF dans le pays et/ou les zones infranationales prioritaires, y compris :",null,null,null,null,null,{"$f":"IFERROR(O49,\"-\")","v":"-"},null,null,null,null,{"$f":"IFERROR(ROUND(AVERAGEIF(L50:N59,\"<>0\",L50:N59),0),\"-\")","v":"-"}]
[null,null,null,"○","Rapports sexuels différenciés selon l’âge",null,null,null,null,null,null,{"$f":"IF(ISBLANK(G50),0,1)","v":0},{"$f":"IF(ISBLANK(H50),0,3)","v":0},{"$f":"IF(ISBLANK(I50),0,5)","v":0}]
[null,null,null,"○","Partenaires multiples",null,null,null,null,null,null,0,0,0]
[null,null,null,"○","Travail sexuel",null,null,null,null,null,null,0,0,0]
[null,null,null,"○","Exploitation sexuelle",null,null,null,null,null,null,0,0,0]
[null,null,null,"○","Sexe transactionnel",null,null,null,null,null,null,0,0,0]
[null,null,null,"○","Début précoce de la vie sexuelle",null,null,null,null,null,null,0,0,0]
[null,null,null,"○","Déficit de connaissances ",null,null,null,null,null,null,0,0,0]
[null,null,null,"○","Perception limitée des risques",null,null,null,null,null,null,0,0,0]
[null,null,null,"○","Consommation d’alcool",null,null,null,null,null,null,0,0,0]
[null,null,null,"○","Consommation de drogues",null,null,null,null,null,null,0,0,0]
[null,null,"Facteurs de risque biologiques","Pour comprendre quelles stratégies de prévention sont plus/moins importantes, des données sont disponibles sur les facteurs biologiques d’acquisition du VIH par les AJF dans le pays et/ou les zones infranationales prioritaires, y compris :",null,null,null,null,null,{"$f":"IFERROR(O60,\"-\")","v":"-"},null,null,null,null,{"$f":"IFERROR(ROUND(AVERAGEIF(L61:N64,\"<>0\",L61:N64),0),\"-\")","v":"-"}]
[null,null,null,"○","Susceptibilité biologique des femmes et des adolescentes",null,null,null,null,null,null,{"$f":"IF(ISBLANK(G61),0,1)","v":0},{"$f":"IF(ISBLANK(H61),0,3)","v":0},{"$f":"IF(ISBLANK(I61),0,5)","v":0}]
[null,null,null,"○","Charge virale du VIH chez les partenaires masculins (par tranche d’âge)",null,null,null,null,null,null,{"$f":"IF(ISBLANK(G62),0,1)","v":0},{"$f":"IF(ISBLANK(H62),0,3)","v":0},{"$f":"IF(ISBLANK(I62),0,5)","v":0}]
[null,null,null,"○","Faible prévalence de la circoncision masculine",null,null,null,null,null,null,{"$f":"IF(ISBLANK(G63),0,1)","v":0},{"$f":"IF(ISBLANK(H63),0,3)","v":0},{"$f":"IF(ISBLANK(I63),0,5)","v":0}]
[null,null,null,"○","Prévalence des infections sexuellement transmissibles et autres co-infections",null,null,null,null,null,null,{"$f":"IF(ISBLANK(G64),0,1)","v":0},{"$f":"IF(ISBLANK(H64),0,3)","v":0},{"$f":"IF(ISBLANK(I64),0,5)","v":0}]
[null,null,"Facteurs de risque structurels","Pour comprendre quelles stratégies de prévention sont plus/moins importantes, des données sont disponibles sur les facteurs structurels d’acquisition du VIH par les AJF dans le pays et/ou les zones infranationales prioritaires, y compris :",null,null,null,null,null,{"$f":"IFERROR(O65,\"-\")","v":"-"},null,null,null,null,{"$f":"IFERROR(ROUND(AVERAGEIF(L66:N76,\"<>0\",L66:N76),0),\"-\")","v":"-"}]
[null,null,null,"○","Normes sociales et de genre néfastes",null,null,null,null,null,null,{"$f":"IF(ISBLANK(G66),0,1)","v":0},{"$f":"IF(ISBLANK(H66),0,3)","v":0},{"$f":"IF(ISBLANK(I66),0,5)","v":0}]
[null,null,null,"○","Inégalité des sexes et rapport de force inégal",null,null,null,null,null,null,0,0,0]
[null,null,null,"○","Faible fréquentation de l’enseignement secondaire / taux d’abandon élevé",null,null,null,null,null,null,0,0,0]
[null,null,null,"○","Manque d’autonomie économique / chômage élevé",null,null,null,null,null,null,0,0,0]
[null,null,null,"○","Migration de main-d’œuvre et séparation des conjoints",null,null,null,null,null,null,0,0,0]
[null,null,null,"○","Obstacles à l’accès aux services de santé sexuelle et reproductive et aux services liés au VIH",null,null,null,null,null,null,0,0,0]
[null,null,null,"○","Orphelins",null,null,null,null,null,null,0,0,0]
[null,null,null,"○","Abus sexuels sur enfants",null,null,null,null,null,null,0,0,0]
[null,null,null,"○","Violence fondée sur le genre",null,null,null,null,null,null,0,0,0]
[null,null,null,"○"," Criminalisation de l’activité sexuelle entre personnes du même sexe, de la diversité des genres, du travail du sexe et de la consommation de drogue",null,null,null,null,null,null,null,0]
[null,null,null,"○","Modèles nuptiaux",null,null,null,null,null,null,{"$f":"IF(ISBLANK(G76),0,1)","v":0},{"$f":"IF(ISBLANK(H76),0,3)","v":0},{"$f":"IF(ISBLANK(I76),0,5)","v":0}]
[null,null,"Élaborer un cadre de résultats (théorie du changement)"]
[null,null,"Définir et prioriser les paquets de prévention du VIH par catégorie d’incidence applicable\n","La matrice de priorisation et d’investissement et l’aide à la prise de décision ont été utilisées pour déterminer les paquets de prévention du VIH qui ont été mis en œuvre sur différents sites en fonction du niveau de risque",null,null,null,null,null,{"$f":"IFERROR(O78,\"-\")","v":"-"},null,{"$f":"IF(ISBLANK(G78),0,1)","v":0},{"$f":"IF(ISBLANK(H78),0,3)","v":0},{"$f":"IF(ISBLANK(I78),0,5)","v":0},{"$f":"IFERROR(ROUND(AVERAGEIF(L78:N78,\"<>0\",L78:N78),0),\"-\")","v":"-"}]
[null,null,"Cadre de résultats/Théorie du changement comprenant des cibles de couverture du programme","Des cibles programmatiques sont fixées pour la prévention du VIH sur les sites à incidence modérée et élevée",null,null,null,null,null,{"$f":"IFERROR(O79,\"-\")","v":"-"},null,null,null,null,{"$f":"IFERROR(ROUND(AVERAGEIF(L80:N83,\"<>0\",L80:N83),0),\"-\")","v":"-"}]
[null,null,null,"○","Des cibles de résultats ont été définies et sont formulées de manière à avoir un impact direct sur l’incidence du VIH chez les AJF",null,null,null,null,null,null,{"$f":"IF(ISBLANK(G80),0,1)","v":0},{"$f":"IF(ISBLANK(H80),0,3)","v":0},{"$f":"IF(ISBLANK(I80),0,5)","v":0}]
[null,null,null,"○","Les résultats intermédiaires sont clairement définis et contribuent aux résultats de niveau supérieur, qui à leur tour affectent l’incidence du VIH",null,null,null,null,null,null,{"$f":"IF(ISBLANK(G81),0,1)","v":0},{"$f":"IF(ISBLANK(H81),0,3)","v":0},{"$f":"IF(ISBLANK(I81),0,5)","v":0}]
[null,null,null,"○","Des cibles de couverture sont définies et adéquates en termes d’échelle et de portée pour atteindre les cibles de résultats",null,null,null,null,null,null,{"$f":"IF(ISBLANK(G82),0,1)","v":0},{"$f":"IF(ISBLANK(H82),0,3)","v":0},{"$f":"IF(ISBLANK(I82),0,5)","v":0}]
[null,null,null,"○","Les cibles sont désagrégées et suivies pour les différents groupes d’âge (15-19, 20-24 et 25-29 ans)",null,null,null,null,null,null,{"$f":"IF(ISBLANK(G83),0,1)","v":0},{"$f":"IF(ISBLANK(H83),0,3)","v":0},{"$f":"IF(ISBLANK(I83),0,5)","v":0}]
[null,null,"Cadre de résultats/Théorie du changement comprenant des activités transversales et des actions complémentaires","Le cadre de résultats/théorie du changement pour les AJF est corrélé(e) à des efforts plus larges dans les domaines suivants :",null,null,null,null,null,{"$f":"IFERROR(O84,\"-\")","v":"-"},null,null,null,null,{"$f":"IFERROR(ROUND(AVERAGEIF(L85:N92,\"<>0\",L85:N92),0),\"-\")","v":"-"}]
[null,null,null,"○","Prévention du VIH",null,null,null,null,null,null,{"$f":"IF(ISBLANK(G85),0,1)","v":0},{"$f":"IF(ISBLANK(H85),0,3)","v":0},{"$f":"IF(ISBLANK(I85),0,5)","v":0}]
[null,null,null,"○","Services de dépistage du VIH et orientation vers d’autres services",null,null,null,null,null,null,0,0,0]
[null,null,null,"○","Santé sexuelle et reproductive",null,null,null,null,null,null,0,0,0]
[null,null,null,"○","Santé et bien-être des adolescents et des femmes",null,null,null,null,null,null,0,0,0]
[null,null,null,"○","Prévention et riposte de la violence sexiste",null,null,null,null,null,null,0,0,0]
[null,null,null,"○","Protection sociale",null,null,null,null,null,null,0,0,0]
[null,null,null,"○","Éducation",null,null,null,null,null,null,0,0,0]
[null,null,null,"○","Autres activités de développement",null,null,null,null,null,null,0,0,0]
[null,null,"Définir/Élaborer des systèmes de prestation"]
[null,null,"Élaborer/Assurer des plateformes de santé","Les plateformes du secteur de la santé sont équipées pour offrir systématiquement des interventions de base sur tous les sites",null,null,null,null,null,{"$f":"IFERROR(O94,\"-\")","v":"-"},null,null,null,null,{"$f":"IFERROR(ROUND(AVERAGEIF(L95:N102,\"<>0\",L95:N102),0),\"-\")","v":"-"}]
[null,null,null,"○","Le rôle des plateformes de santé dans les réponses de prévention chez les AJF est clairement défini (dans les politiques, lignes directrices et plans opérationnels applicables)",null,null,null,null,null,null,{"$f":"IF(ISBLANK(G95),0,1)","v":0},{"$f":"IF(ISBLANK(H95),0,3)","v":0},{"$f":"IF(ISBLANK(I95),0,5)","v":0}]
[null,null,null,"○","Un personnel et une supervision appropriés sont en place ",null,null,null,null,null,null,0,0,0]
[null,null,null,"○","La plateforme n’est pas stigmatisante ",null,null,null,null,null,null,0,0,0]
[null,null,null,"○","Les prestataires sensibilisés proposent des conseils de prévention, des préservatifs, des lubrifiants, des services de santé sexuelle et reproductive, de prophylaxie avant exposition (PaP) et d’autres services ciblés de prévention du VIH",null,null,null,null,null,null,0,0,0]
[null,null,null,"○","Fournit des services communautaires de prévention du VIH axés sur la génération de la demande et la sensibilisation ",null,null,null,null,null,null,0,0,0]
[null,null,null,"○","Génère une demande active de PaP chez les jeunes femmes les plus exposées",null,null,null,null,null,null,0,0,0]
[null,null,null,"○","Des systèmes/ressources de suivi communautaire existent pour obtenir un retour d’information sur la qualité des services fournis par cette plateforme",null,null,null,null,null,null,0,0,0]
[null,null,null,"○","Il existe des voies d’orientation actives entre cette plateforme et d’autres (éducation, communauté)",null,null,null,null,null,null,0,0,0]
[null,null,"Élaborer/Assurer des plateformes d’éducation","Les plateformes d’éducation sont équipées pour offrir systématiquement des interventions de base sur tous les sites",null,null,null,null,null,{"$f":"IFERROR(O103,\"-\")","v":"-"},null,null,null,null,{"$f":"IFERROR(ROUND(AVERAGEIF(L104:N107,\"<>0\",L104:N107),0),\"-\")","v":"-"}]
[null,null,null,"○","Des systèmes sont en place pour s’assurer que les AJF sont inscrites dans l’enseignement secondaire",null,null,null,null,null,null,{"$f":"IF(ISBLANK(G104),0,1)","v":0},{"$f":"IF(ISBLANK(H104),0,3)","v":0},{"$f":"IF(ISBLANK(I104),0,5)","v":0}]
[null,null,null,"○","Le rôle des plateformes d’éducation dans les réponses de prévention chez les AJF est clairement défini (dans les politiques, lignes directrices et plans opérationnels applicables)",null,null,null,null,null,null,{"$f":"IF(ISBLANK(G105),0,1)","v":0},{"$f":"IF(ISBLANK(H105),0,3)","v":0},{"$f":"IF(ISBLANK(I105),0,5)","v":0}]
[null,null,null,"○","Des campagnes de prévention du VIH en milieu scolaire sont définies et mises en œuvre dans les écoles et les établissements d’enseignement supérieur",null,null,null,null,null,null,{"$f":"IF(ISBLANK(G106),0,1)","v":0},{"$f":"IF(ISBLANK(H106),0,3)","v":0},{"$f":"IF(ISBLANK(I106),0,5)","v":0}]
[null,null,null,"○","Liens clairement définis avec la prestation de services au sein ou à proximité de l’école (conseil et dépistage, distribution et promotion de préservatifs et de lubrifiants, orientation vers d’autres services de prévention, etc.)",null,null,null,null,null,null,{"$f":"IF(ISBLANK(G107),0,1)","v":0},{"$f":"IF(ISBLANK(H107),0,3)","v":0},{"$f":"IF(ISBLANK(I107),0,5)","v":0}]
[null,null,"Développer/Assurer des plateformes communautaires (dirigées par des organisations non gouvernementales (ONG)/organisations de la société civile (OSC)) ","Les plateformes communautaires sont équipées pour offrir systématiquement des interventions de base sur tous les sites",null,null,null,null,null,{"$f":"IFERROR(O108,\"-\")","v":"-"},null,null,null,null,{"$f":"IFERROR(ROUND(AVERAGEIF(L109:N117,\"<>0\",L109:N117),0),\"-\")","v":"-"}]
[null,null,null,"○","Le rôle des plateformes communautaires dans les réponses de prévention chez les AJF est clairement défini (dans les politiques, lignes directrices et plans opérationnels applicables)",null,null,null,null,null,null,{"$f":"IF(ISBLANK(G109),0,1)","v":0},{"$f":"IF(ISBLANK(H109),0,3)","v":0},{"$f":"IF(ISBLANK(I109),0,5)","v":0}]
[null,null,null,"○","Un personnel et une supervision appropriés sont en place ",null,null,null,null,null,null,0,0,0]
[null,null,null,"○","Les plateformes communautaires ont clairement défini des stratégies de génération de la demande pour les programmes de prévention du VIH destinés aux AJF",null,null,null,null,null,null,0,0,0]
[null,null,null,"○","Le rôle des ONG/OSC dans la prestation de services de prévention du VIH pour les AJF est clairement défini – y compris les liens avec les plateformes de santé et d’éducation",null,null,null,null,null,null,0,0,0]
[null,null,null,"○","Assure une mobilisation communautaire et une communication interpersonnelle sur les connaissances de base en matière de prévention du VIH, la perception des risques et la transformation des normes communautaires et de genre liées au VIH",null,null,null,null,null,null,0,0,0]
[null,null,null,"○","Un système de mise en œuvre communautaire et une division du travail entre les ONG/OSC sont en place pour permettre une mise à l’échelle",null,null,null,null,null,null,0,0,0]
[null,null,null,"○","Des systèmes/ressources de suivi communautaire existent pour obtenir un retour d’information sur la qualité des services fournis par cette plateforme",null,null,null,null,null,null,0,0,0]
[null,null,null,"○","Travaille en étroite collaboration avec les dirigeants communautaires",null,null,null,null,null,null,0,0,0]
[null,null,null,"○","A recours à des pairs-éducateurs de proximité et à des agents de santé communautaires",null,null,null,null,null,null,0,0,0]
[null,null,"Services accessibles","Les services sont accessibles aux communautés d’AJF et :",null,null,null,null,null,{"$f":"IFERROR(O118,\"-\")","v":"-"},null,null,null,null,{"$f":"IFERROR(ROUND(AVERAGEIF(L119:N125,\"<>0\",L119:N125),0),\"-\")","v":"-"}]
[null,null,null,"○","Sont conçus et développés à l’appui de la recherche formative menée dans le cadre de l’évaluation des besoins ",null,null,null,null,null,null,{"$f":"IF(ISBLANK(G119),0,1)","v":0},{"$f":"IF(ISBLANK(H119),0,3)","v":0},{"$f":"IF(ISBLANK(I119),0,5)","v":0}]
[null,null,null,"○","Incluent des modèles de prestation de services différenciés pour répondre aux besoins des AJF dans leur diversité",null,null,null,null,null,null,0,0,0]
[null,null,null,"○","Les horaires d’ouverture sont adaptés aux AJF ciblées par les services",null,null,null,null,null,null,0,0,0]
[null,null,null,"○","Sont intégrés au système de santé général et fournissent des paniers de soins complets ",null,null,null,null,null,null,0,0,0]
[null,null,null,"○","Bénéficient d’un approvisionnement régulier en services et en produits",null,null,null,null,null,null,0,0,0]
[null,null,null,"○","Les services sont fournis de la manière la plus accessible (ex. : en tenant compte de l’âge du consentement aux services, avec l’engagement des parents dans la mesure du possible)",null,null,null,null,null,null,0,0,0]
[null,null,null,"○","Les AJF savent où elles peuvent obtenir les services de santé dont elles ont besoin et ont à la fois la capacité et la volonté de le faire en cas de besoin",null,null,null,null,null,null,0,0,0]
[null,null,"Services adaptés aux jeunes/acceptables","Les services sont acceptables par les AJF et :",null,null,null,null,null,{"$f":"IFERROR(O126,\"-\")","v":"-"},null,null,null,null,{"$f":"IFERROR(ROUND(AVERAGEIF(L127:N133,\"<>0\",L127:N133),0),\"-\")","v":"-"}]
[null,null,null,"○","Sont confidentiels (même pour les adolescentes)",null,null,null,null,null,null,{"$f":"IF(ISBLANK(G127),0,1)","v":0},{"$f":"IF(ISBLANK(H127),0,3)","v":0},{"$f":"IF(ISBLANK(I127),0,5)","v":0}]
[null,null,null,"○","Les prestataires sont sensibles aux besoins des AJF dans leur diversité, ne portent pas de jugement et ne stigmatisent pas",null,null,null,null,null,null,0,0,0]
[null,null,null,"○","Les prestataires sont formés pour être en mesure d’offrir un paquet complet d’interventions spécifiques aux AJF ",null,null,null,null,null,null,0,0,0]
[null,null,null,"○","Les prestataires assurent des liens pour répondre aux besoins spécifiques des jeunes femmes enceintes, handicapées, toxicomanes et d’autres groupes particulièrement vulnérables d’AJF\n",null,null,null,null,null,null,0,0,0]
[null,null,null,"○","Instaurent un environnement sûr et favorable ",null,null,null,null,null,null,0,0,0]
[null,null,null,"○","Les prestataires organisent des groupes de soutien pour les AJF",null,null,null,null,null,null,0,0,0]
[null,null,null,"○","Les interventions en ligne sont menées de manière éthique et respectent la vie privée et la confidentialité des clients",null,null,null,null,null,null,0,0,0]
[null,null,"Services sur-mesure/appropriés","L’offre de services tient compte des risques et des niveaux de séroprévalence propres aux AJF :",null,null,null,null,null,{"$f":"IFERROR(O134,\"-\")","v":"-"},null,null,null,null,{"$f":"IFERROR(ROUND(AVERAGEIF(L135:N137,\"<>0\",L135:N137),0),\"-\")","v":"-"}]
[null,null,null,"○","Les prestataires de services utilisent des outils d’évaluation des risques pour offrir des services appropriés et prioritaires aux AJF et à leurs partenaires dans les environnements les plus appropriés",null,null,null,null,null,null,{"$f":"IF(ISBLANK(G135),0,1)","v":0},{"$f":"IF(ISBLANK(H135),0,3)","v":0},{"$f":"IF(ISBLANK(I135),0,5)","v":0}]
[null,null,null,"○","Le paquet des services disponibles est adapté au niveau d’incidence du milieu environnant (modérée, élevée)",null,null,null,null,null,null,{"$f":"IF(ISBLANK(G136),0,1)","v":0},{"$f":"IF(ISBLANK(H136),0,3)","v":0},{"$f":"IF(ISBLANK(I136),0,5)","v":0}]
[null,null,null,"○","L’offre de services est adaptée aux risques et aux besoins des AJF au fil du temps",null,null,null,null,null,null,{"$f":"IF(ISBLANK(G137),0,1)","v":0},{"$f":"IF(ISBLANK(H137),0,3)","v":0},{"$f":"IF(ISBLANK(I137),0,5)","v":0}]
[null,null,"Pairs-éducateurs de proximité (PEP), agents de santé communautaires et autres cadres concernés par les programmes AJF","Des pairs-éducateurs de proximité, des agents de santé communautaires et d’autres cadres concernés par les programmes AJF sont employés efficacement dans le programme :\n",null,null,null,null,null,{"$f":"IFERROR(O138,\"-\")","v":"-"},null,null,null,null,{"$f":"IFERROR(ROUND(AVERAGEIF(L139:N146,\"<>0\",L139:N146),0),\"-\")","v":"-"}]
[null,null,null,"○","Ils sont issus de la communauté AJF qu’ils représentent ou servent",null,null,null,null,null,null,{"$f":"IF(ISBLANK(G139),0,1)","v":0},{"$f":"IF(ISBLANK(H139),0,3)","v":0},{"$f":"IF(ISBLANK(I139),0,5)","v":0}]
[null,null,null,"○","Programme de formation disponible, complet, approprié et actualisé ",null,null,null,null,null,null,0,0,0]
[null,null,null,"○","Un plan de formation à plusieurs niveaux est en place pour améliorer les compétences, la confiance et le leadership des pairs-éducateurs de proximité ",null,null,null,null,null,null,0,0,0]
[null,null,null,"○","Les pairs-éducateurs de proximité sont rémunérés",null,null,null,null,null,null,0,0,0]
[null,null,null,"○","Outils de sensibilisation disponibles pour la mobilisation communautaire afin de promouvoir l’accès aux services",null,null,null,null,null,null,0,0,0]
[null,null,null,"○","Utilisent des messages et des supports de communication fondés sur des données probantes",null,null,null,null,null,null,0,0,0]
[null,null,null,"○","Fournissent des informations sur les services disponibles et orientent les bénéficiaires vers ces services ",null,null,null,null,null,null,0,0,0]
[null,null,null,"○","Prodiguent des conseils et un soutien émotionnel pour étayer le traitement, la poursuite de la PaP, la planification familiale et les autres services auxquels les bénéficiaires sont liées",null,null,null,null,null,null,0,0,0]
[null,null,"Engagement significatif des communautés affectées dans le leadership et la coordination","Les AJF sont représentées dans les organes de coordination nationaux et infranationaux et dans les GTT \n",null,null,null,null,null,{"$f":"IFERROR(O147,\"-\")","v":"-"},null,null,null,null,{"$f":"IFERROR(ROUND(AVERAGEIF(L148:N150,\"<>0\",L148:N150),0),\"-\")","v":"-"}]
[null,null,null,"○","Elles participent activement aux processus décisionnels en tant que partenaires à pied d’égalité ",null,null,null,null,null,null,{"$f":"IF(ISBLANK(G148),0,1)","v":0},{"$f":"IF(ISBLANK(H148),0,3)","v":0},{"$f":"IF(ISBLANK(I148),0,5)","v":0}]
[null,null,null,"○","Elles sont soutenues pour solliciter un retour d’information et rendre compte des décisions clés aux groupes qu’elles représentent",null,null,null,null,null,null,{"$f":"IF(ISBLANK(G149),0,1)","v":0},{"$f":"IF(ISBLANK(H149),0,3)","v":0},{"$f":"IF(ISBLANK(I149),0,5)","v":0}]
[null,null,null,"○","Il est prouvé que le retour d’information, la contribution et les conseils d’experts fournis par l’organisation dirigée par les AJF sont pris en compte",null,null,null,null,null,null,{"$f":"IF(ISBLANK(G150),0,1)","v":0},{"$f":"IF(ISBLANK(H150),0,3)","v":0},{"$f":"IF(ISBLANK(I150),0,5)","v":0}]
[null,null,"Définir le mécanisme de gestion",null,null,null,null,null,null,null,null,{"$f":"IF(ISBLANK(G151),0,1)","v":0}]
[null,null,"Systèmes de gestion nationaux et infranationaux","Les systèmes, processus et plans aux niveaux national et infranational gèrent activement et contribuent à une riposte programmatique efficace et appropriée",null,null,null,null,null,{"$f":"IFERROR(O152,\"-\")","v":"-"},null,null,null,null,{"$f":"IFERROR(ROUND(AVERAGEIF(L153:N165,\"<>0\",L153:N165),0),\"-\")","v":"-"}]
[null,null,null,"○","Une coordination entre les partenaires de financement (au niveau national), les programmes locaux, les représentants des AJF, les partenaires de mise en œuvre, les ministères/départements gouvernementaux (aux niveaux national et infranational) a été réalisée",null,null,null,null,null,null,{"$f":"IF(ISBLANK(G153),0,1)","v":0},{"$f":"IF(ISBLANK(H153),0,3)","v":0},{"$f":"IF(ISBLANK(I153),0,5)","v":0}]
[null,null,null,"○","Une coordination multisectorielle avec tous les autres ministères/départements (ex. : finances et application de la loi) a été réalisée et tous les départements du gouvernement sont engagés",null,null,null,null,null,null,0,0,0]
[null,null,null,"○","Une approche rigoureuse, équitable et documentée est appliquée pour sélectionner et contracter les organisations non gouvernementales locales partenaires et les autres prestataires de services externes responsables de la mise en œuvre au niveau infranational",null,null,null,null,null,null,0,0,0]
[null,null,null,"○","Les dirigeants des conseils nationaux, provinciaux et de district sur le sida sont régulièrement en contact avec les ONG partenaires et les prestataires de services",null,null,null,null,null,null,0,0,0]
[null,null,null,"○","Les systèmes de gestion appliquent une approche structurée (corrélée aux plans stratégiques et opérationnels nationaux) avec une certaine souplesse pour l’adaptation locale et la fixation des priorités",null,null,null,null,null,null,0,0,0]
[null,null,null,"○","Il existe des forums d’examen trimestriel des programmes par les pairs au niveau infranational, ainsi qu’un forum d’examen annuel aux niveaux infranational et national",null,null,null,null,null,null,0,0,0]
[null,null,null,"○","Des représentants de groupes d’AJF sont inclus",null,null,null,null,null,null,0,0,0]
[null,null,null,"○","Une planification avec les dirigeants locaux et des évaluations participatives au niveau des districts sont pratiquées régulièrement",null,null,null,null,null,null,0,0,0]
[null,null,null,"○","Des cibles de couverture sont définies et régulièrement révisées et les programmes sont mis en œuvre en conséquence",null,null,null,null,null,null,0,0,0]
[null,null,null,"○","Il existe des systèmes gouvernementaux de gestion des données et d’information pour le suivi et le reporting des résultats/indicateurs de prévention AJF",null,null,null,null,null,null,0,0,0]
[null,null,null,"○","Les priorités ont été bien définies et la majorité des cibles sont atteintes de façon routinière",null,null,null,null,null,null,0,0,0]
[null,null,null,"○","Des évaluations semestrielles sont pratiquées au niveau des résultats",null,null,null,null,null,null,0,0,0]
[null,null,null,"○","Des analyses rigoureuses de l’impact sont réalisées, conformément aux cycles de planification nationaux",null,null,null,null,null,null,0,0,0]
[null,null,"Élaborer un plan opérationnel chiffré"]
[null,null,"Plan opérationnel","Un plan opérationnel clair et chiffré, assorti d’un calendrier, a été établi",null,null,null,null,null,{"$f":"IFERROR(O167,\"-\")","v":"-"},null,null,null,null,{"$f":"IFERROR(ROUND(AVERAGEIF(L168:N170,\"<>0\",L168:N170),0),\"-\")","v":"-"}]
[null,null,null,"○","Le plan est actuel et régulièrement mis à jour",null,null,null,null,null,null,{"$f":"IF(ISBLANK(G168),0,1)","v":0},{"$f":"IF(ISBLANK(H168),0,3)","v":0},{"$f":"IF(ISBLANK(I168),0,5)","v":0}]
[null,null,null,"○","Les plans opérationnels sont partagés avec des partenaires/départements de mise en œuvre nationaux et infranationaux",null,null,null,null,null,null,{"$f":"IF(ISBLANK(G169),0,1)","v":0},{"$f":"IF(ISBLANK(H169),0,3)","v":0},{"$f":"IF(ISBLANK(I169),0,5)","v":0}]
[null,null,null,"○","Des AJF sont impliquées dans les processus de planification opérationnelle",null,null,null,null,null,null,{"$f":"IF(ISBLANK(G170),0,1)","v":0},{"$f":"IF(ISBLANK(H170),0,3)","v":0},{"$f":"IF(ISBLANK(I170),0,5)","v":0}]
[null,null,"Calcul des coûts et ressources disponibles","Des plans de financement sont en place",null,null,null,null,null,{"$f":"IFERROR(O171,\"-\")","v":"-"},null,null,null,null,{"$f":"IFERROR(ROUND(AVERAGEIF(L172:N177,\"<>0\",L172:N177),0),\"-\")","v":"-"}]
[null,null,null,"○","L’allocation des ressources a été priorisée en fonction de l’impact attendu du programme",null,null,null,null,null,null,{"$f":"IF(ISBLANK(G172),0,1)","v":0},{"$f":"IF(ISBLANK(H172),0,3)","v":0},{"$f":"IF(ISBLANK(I172),0,5)","v":0}]
[null,null,null,"○","La réponse de prévention AJF bénéficie de multiples sources de financement (financement de la prévention du VIH, autre financement VIH, autre financement de santé publique et de développement)",null,null,null,null,null,null,0,0,0]
[null,null,null,"○","Des coûts unitaires sont établis pour tous les éléments du programme",null,null,null,null,null,null,0,0,0]
[null,null,null,"○","Le paysage du financement intérieur et extérieur est cartographié",null,null,null,null,null,null,0,0,0]
[null,null,null,"○","Une stratégie a été élaborée pour combler les lacunes de financement",null,null,null,null,null,null,0,0,0]
[null,null,null,"○","Les budgets sont corrélés aux besoins en ressources des plans opérationnels pour des cibles nationales et infranationales",null,null,null,null,null,null,0,0,0]
[null,null,"Élaborer un plan de suivi et d’évaluation"]
[null,null,"Suivi de routine","Des indicateurs programmatiques de routine sont définis par le gouvernement et les partenaires de mise en œuvre rendent compte de ces indicateurs :",null,null,null,null,null,{"$f":"IFERROR(O179,\"-\")","v":"-"},null,null,null,null,{"$f":"IFERROR(ROUND(AVERAGEIF(L180:N188,\"<>0\",L180:N188),0),\"-\")","v":"-"}]
[null,null,null,"○","Des données complètes sont communiquées ",null,null,null,null,null,null,{"$f":"IF(ISBLANK(G180),0,1)","v":0},{"$f":"IF(ISBLANK(H180),0,3)","v":0},{"$f":"IF(ISBLANK(H180),0,5)","v":0}]
[null,null,null,null," > De façon régulière (mensuelle, trimestrielle)",null,null,null,null,null,null,0,0,{"$f":"IF(ISBLANK(H181),0,5)","v":0}]
[null,null,null,null," > De façon exhaustive",null,null,null,null,null,null,0,0,{"$f":"IF(ISBLANK(I182),0,5)","v":0}]
[null,null,null,null," > À tous les niveaux",null,null,null,null,null,null,0,0,0]
[null,null,null,null," > Par tous les partenaires de mise en œuvre",null,null,null,null,null,null,0,0,0]
[null,null,null,"○","Les données sont régulièrement examinées par toutes les parties prenantes (gouvernement, société civile, communauté AJF, partenaires de mise en œuvre, donateurs) et utilisées pour améliorer les programmes ",null,null,null,null,null,null,0,0,0]
[null,null,null,"○","Inclut un retour d’information régulier de la part des bénéficiaires",null,null,null,null,null,null,0,0,0]
[null,null,null,"○","Inclut des données des systèmes de santé ",null,null,null,null,null,null,0,0,0]
[null,null,null,"○","Contrôle la stratification des services",null,null,null,null,null,null,0,0,{"$f":"IF(ISBLANK(H188),0,5)","v":0}]
[null,null,"Suivi du système d’orientation vers d’autres services","Des systèmes de suivi des orientations sont en place et incluent :",null,null,null,null,null,{"$f":"IFERROR(O189,\"-\")","v":"-"},null,null,null,null,{"$f":"IFERROR(ROUND(AVERAGEIF(L190:N195,\"<>0\",L190:N195),0),\"-\")","v":"-"}]
[null,null,null,"○"," Définition et suivi régulier de la durabilité",null,null,null,null,null,null,{"$f":"IF(ISBLANK(G190),0,1)","v":0},{"$f":"IF(ISBLANK(H190),0,3)","v":0},{"$f":"IF(ISBLANK(I190),0,5)","v":0},null,{"$f":"IF(MAX(L190:N190)=0,\"\",MAX(L190:N190))","v":""}]
[null,null,null,"○","Un outil d’orientation largement disponible, comprenant une procédure opérationnelle permanente (POP) claire",null,null,null,null,null,null,0,0,0]
[null,null,null,"○","Un répertoire d’orientation dans l’établissement et dans les organisations de pairs-éducateurs de proximité, de pairs-testeurs ou d’agents de santé communautaires ",null,null,null,null,null,null,0,0,0]
[null,null,null,"○","Enregistrement des résultats ",null,null,null,null,null,null,0,0,0]
[null,null,null,"○","Mécanismes de retour d’information entre les patients et les prestataires (qui orientent) ",null,null,null,null,null,null,0,0,0]
[null,null,null,"○","Rapport sur les orientations (sur une base mensuelle) pour contrôler l’efficacité du système d’orientation",null,null,null,null,null,null,0,0,0]
[null,null,"Évaluation de la qualité","Des systèmes de collecte de données sur la qualité des programmes et des indicateurs connexes ont été définis et :\n",null,null,null,null,null,{"$f":"IFERROR(O196,\"-\")","v":"-"},null,null,null,null,{"$f":"IFERROR(ROUND(AVERAGEIF(L197:N201,\"<>0\",L197:N201),0),\"-\")","v":"-"}]
[null,null,null,"○","Des données précises sont collectées",null,null,null,null,null,null,{"$f":"IF(ISBLANK(G197),0,1)","v":0},{"$f":"IF(ISBLANK(H197),0,3)","v":0},{"$f":"IF(ISBLANK(I197),0,5)","v":0}]
[null,null,null,"○","Les données sont exploitées ",null,null,null,null,null,null,{"$f":"IF(ISBLANK(G198),0,1)","v":0},{"$f":"IF(ISBLANK(H198),0,3)","v":0},{"$f":"IF(ISBLANK(I198),0,5)","v":0}]
[null,null,null,"○","Des mécanismes de retour d’information permettent aux AJF d’évaluer les services qu’elles ont reçus de manière à contrôler la qualité du programme",null,null,null,null,null,null,{"$f":"IF(ISBLANK(G199),0,1)","v":0},{"$f":"IF(ISBLANK(H199),0,3)","v":0},{"$f":"IF(ISBLANK(I199),0,5)","v":0}]
[null,null,null,"○","Les données sont régulièrement vérifiées ",null,null,null,null,null,null,{"$f":"IF(ISBLANK(G200),0,1)","v":0},{"$f":"IF(ISBLANK(H200),0,3)","v":0},{"$f":"IF(ISBLANK(I200),0,5)","v":0}]
[null,null,null,"○","Des références sont en place en matière de qualité",null,null,null,null,null,null,{"$f":"IF(ISBLANK(G201),0,1)","v":0},{"$f":"IF(ISBLANK(H201),0,3)","v":0},{"$f":"IF(ISBLANK(I201),0,5)","v":0}]
[null,null,"Surveillance ","La surveillance autorise une description précise du contexte et des résultats/impacts du programme de prévention du VIH chez les AJF",null,null,null,null,null,{"$f":"IFERROR(O202,\"-\")","v":"-"},null,null,null,null,{"$f":"IFERROR(ROUND(AVERAGEIF(L203:N206,\"<>0\",L203:N206),0),\"-\")","v":"-"}]
[null,null,null,"○","Des résultats d’études sont utilisés pour éclairer la prise de décision et la correction des trajectoires ",null,null,null,null,null,null,{"$f":"IF(ISBLANK(G203),0,1)","v":0},{"$f":"IF(ISBLANK(H203),0,3)","v":0},{"$f":"IF(ISBLANK(I203),0,5)","v":0}]
[null,null,null,"○","Implique l’analyse et l’interprétation des données à intervalles réguliers ",null,null,null,null,null,null,{"$f":"IF(ISBLANK(G204),0,1)","v":0},{"$f":"IF(ISBLANK(H204),0,3)","v":0},{"$f":"IF(ISBLANK(I204),0,5)","v":0}]
[null,null,null,"○","Implique la diffusion régulière d’informations pour répondre aux besoins locaux, provinciaux et nationaux ",null,null,null,null,null,null,{"$f":"IF(ISBLANK(G205),0,1)","v":0},{"$f":"IF(ISBLANK(H205),0,3)","v":0},{"$f":"IF(ISBLANK(I205),0,5)","v":0}]
[null,null,null,"○","Inclut des enquêtes biologiques et comportementales, des enquêtes sentinelles et d’autres études de recherche portant sur des indicateurs afférents aux AJF ",null,null,null,null,null,null,{"$f":"IF(ISBLANK(G206),0,1)","v":0},{"$f":"IF(ISBLANK(H206),0,3)","v":0},{"$f":"IF(ISBLANK(I206),0,5)","v":0}]
[null,null,"Flux de données ","Les flux de données à chaque niveau ont été définis et :",null,null,null,null,null,{"$f":"IFERROR(O207,\"-\")","v":"-"},null,null,null,null,{"$f":"IFERROR(ROUND(AVERAGEIF(L208:N212,\"<>0\",L208:N212),0),\"-\")","v":"-"}]
[null,null,null,"○","Ils ont été élaborés pour chaque département/ministère concerné (ex. : santé, éducation, etc.)",null,null,null,null,null,null,{"$f":"IF(ISBLANK(G208),0,1)","v":0},{"$f":"IF(ISBLANK(H208),0,3)","v":0},{"$f":"IF(ISBLANK(I208),0,5)","v":0}]
[null,null,null,"○","L’utilisation des données a été définie à chaque niveau ",null,null,null,null,null,null,{"$f":"IF(ISBLANK(G209),0,1)","v":0},{"$f":"IF(ISBLANK(H209),0,3)","v":0},{"$f":"IF(ISBLANK(I209),0,5)","v":0}]
[null,null,null,"○","Plan d’accès ouvert en place ",null,null,null,null,null,null,{"$f":"IF(ISBLANK(G210),0,1)","v":0},{"$f":"IF(ISBLANK(H210),0,3)","v":0},{"$f":"IF(ISBLANK(I210),0,5)","v":0}]
[null,null,null,"○","Système de code d’identification unique élaboré ",null,null,null,null,null,null,{"$f":"IF(ISBLANK(G211),0,1)","v":0},{"$f":"IF(ISBLANK(H211),0,3)","v":0},{"$f":"IF(ISBLANK(I211),0,5)","v":0}]
[null,null,null,"○","Les données ont été intégrées dans le logiciel d’information sanitaire du district (LISD)",null,null,null,null,null,null,{"$f":"IF(ISBLANK(G212),0,1)","v":0},{"$f":"IF(ISBLANK(H212),0,3)","v":0},{"$f":"IF(ISBLANK(I212),0,5)","v":0}]
[null,null,"Données pour la prise de décision","Le Programme national, l’unité de suivi et d’évaluation du ministère de la Santé ou un organisme de coordination similaire supervise/coordonne la collecte et le traitement des données de suivi, d’enquête et de surveillance et :",null,null,null,null,null,{"$f":"IFERROR(O213,\"-\")","v":"-"},null,null,null,null,{"$f":"IFERROR(ROUND(AVERAGEIF(L214:N221,\"<>0\",L214:N221),0),\"-\")","v":"-"}]
[null,null,null,"○","Partage des données avec le GTT AFJ",null,null,null,null,null,null,{"$f":"IF(ISBLANK(G214),0,1)","v":0},{"$f":"IF(ISBLANK(H214),0,3)","v":0},{"$f":"IF(ISBLANK(I214),0,5)","v":0}]
[null,null,null,"○","Le GTT AFJ analyse chaque trimestre les données du programme existant et identifie les domaines nécessitant une correction de trajectoire",null,null,null,null,null,null,0,0,0]
[null,null,null,"○","Le GTT AFJ contribue à l’élaboration de stratégies visant à combler les lacunes ",null,null,null,null,null,null,0,0,0]
[null,null,null,"○","Des données de bonne qualité (valides, fiables, cohérentes, précises, opportunes, pertinentes) sont collectées et la plupart des besoins d’information sont satisfaits et, s’ils ne le sont pas, les lacunes sont comprises ",null,null,null,null,null,null,0,0,0]
[null,null,null,"○","Les données sont utilisées de manière cohérente et appropriée par les membres du GTT pour éclairer les décisions ",null,null,null,null,null,null,0,0,0]
[null,null,null,"○","Les données ont été dédupliquées entre les partenaires de mise en œuvre et les doublons sont minimes, voire inexistants",null,null,null,null,null,null,0,0,0]
[null,null,null,"○","Les données sont agrégées au niveau central mais peuvent être désagrégées par localité, sexe et âge",null,null,null,null,null,null,0,0,0]
[null,null,null,"○","Un plan de suivi et d’évaluation est lié au cadre de résultats et ancré dans les systèmes nationaux d’information sanitaire plus larges afin de faciliter le suivi et l’examen régulier des progrès vers les résultats",null,null,null,null,null,null,0,0,0]
[null,null,"Utilisation de Codes d’identification uniques pour le suivi des programmes","Le système utilisé pour le suivi du programme est pleinement opérationnel et adéquat pour suivre la performance du programme",null,null,null,null,null,{"$f":"IFERROR(O222,\"-\")","v":"-"},null,null,null,null,{"$f":"IFERROR(ROUND(AVERAGEIF(L223:N226,\"<>0\",L223:N226),0),\"-\")","v":"-"}]
[null,null,null,"○","Les codes d’identification uniques sont harmonisés",null,null,null,null,null,null,{"$f":"IF(ISBLANK(G223),0,1)","v":0},{"$f":"IF(ISBLANK(H223),0,3)","v":0},{"$f":"IF(ISBLANK(I223),0,5)","v":0}]
[null,null,null,"○","Le programme national utilise des données agrégées de code d’identification unique",null,null,null,null,null,null,{"$f":"IF(ISBLANK(G224),0,1)","v":0},{"$f":"IF(ISBLANK(H224),0,3)","v":0},{"$f":"IF(ISBLANK(I224),0,5)","v":0}]
[null,null,null,"○","Le code d’identification unique est capable de distinguer le contact et la portée, à des fins de déduplication ",null,null,null,null,null,null,{"$f":"IF(ISBLANK(G225),0,1)","v":0},{"$f":"IF(ISBLANK(H225),0,3)","v":0},{"$f":"IF(ISBLANK(I225),0,5)","v":0}]
[null,null,null,"○","Le code d’identification unique est électronique",null,null,null,null,null,null,{"$f":"IF(ISBLANK(G226),0,1)","v":0},{"$f":"IF(ISBLANK(H226),0,3)","v":0},{"$f":"IF(ISBLANK(I226),0,5)","v":0}]
[null,null,"Suivi budgétaire","Le suivi des performances financières et non financières du programme AJF est intégré et des rapports de routine sont générés : ",null,null,null,null,null,{"$f":"IFERROR(O227,\"-\")","v":"-"},null,null,null,null,{"$f":"IFERROR(ROUND(AVERAGEIF(L228:N230,\"<>0\",L228:N230),0),\"-\")","v":"-"}]
[null,null,null,"○","Les données sur les dépenses relatives aux interventions en faveur des AJF sont facilement accessibles et affectées aux interventions",null,null,null,null,null,null,{"$f":"IF(ISBLANK(G228),0,1)","v":0},{"$f":"IF(ISBLANK(H228),0,3)","v":0},{"$f":"IF(ISBLANK(I228),0,5)","v":0}]
[null,null,null,"○","Des mécanismes de reddition de comptes sur les dépenses insuffisantes et excédentaires sont en place",null,null,null,null,null,null,{"$f":"IF(ISBLANK(G229),0,1)","v":0},{"$f":"IF(ISBLANK(H229),0,3)","v":0},{"$f":"IF(ISBLANK(I229),0,5)","v":0}]
[null,null,null,"○","Des données financières et non financières sont utilisées pour évaluer le rapport qualité-prix",null,null,null,null,null,null,{"$f":"IF(ISBLANK(G230),0,1)","v":0},{"$f":"IF(ISBLANK(H230),0,3)","v":0},{"$f":"IF(ISBLANK(I230),0,5)","v":0}]
[]
[]
[null,null,null,null,""]
[]
[null,null,null,null,null,null,null,null,null,null,null,null,{"$f":"COUNTIF(O5:O234,\"-\")","v":32}]
[null,null,null,null,null,null,null,null,null,null,null,null,{"$f":"COUNTIF(O6:O234,\">0\")","v":0}]
[null,null,null,null,null,null,null,null,null,null,null,"Achèvement de la feuille",{"$f":"M236/(M235+M236)","v":0},{"$f":"1-M237","v":1}]

{"sheet":"TOUT – Toute incidence","index":7,"n_rows":147,"n_cols":15,"rows_kept":147,"cut":false,"hidden":false,"merged":[[4,2,4,10],[1,2,1,9],[3,3,3,4],[5,2,13,2],[5,3,5,4],[5,9,13,9],[13,3,13,4],[5,5,5,8],[14,9,30,9],[30,3,30,4],[31,3,31,4],[31,9,36,9],[36,3,36,4],[14,5,14,8],[31,5,31,8],[37,9,49,9],[44,3,44,4],[49,3,49,4],[44,5,44,8],[37,5,37,8],[78,9,89,9],[89,3,89,4],[50,2,67,2],[50,3,50,4],[50,9,67,9],[55,3,55,4],[62,3,62,4],[68,2,77,2],[77,3,77,4],[68,9,77,9],[50,5,50,8],[62,5,62,8],[78,2,89,2],[90,9,96,9],[96,3,96,4],[97,3,97,4],[97,9,102,9],[102,3,102,4],[90,5,90,8],[97,5,97,8],[103,9,109,9],[109,3,109,4],[110,3,110,4],[110,5,110,8],[110,9,118,9],[103,5,103,8],[142,2,143,2],[135,9,141,9],[141,3,141,4],[118,3,118,4],[119,3,119,4],[119,9,121,9],[121,3,121,4],[122,3,122,4],[122,9,134,9],[134,3,134,4],[119,5,119,8],[122,5,122,8],[135,5,135,8],[142,9,143,9],[135,2,141,2],[135,3,135,4],[103,2,109,2],[103,3,103,4],[90,2,96,2],[90,3,90,4],[122,2,134,2],[119,2,121,2],[110,2,118,2],[97,2,102,2],[31,2,36,2],[14,2,30,2],[68,5,68,8],[78,5,78,8],[67,3,67,4],[68,3,68,4],[78,3,78,4],[37,2,49,2],[37,3,37,4],[14,3,14,4]]}
[]
[null,null,"Mise en œuvre de programme"]
[]
[null,null,"Élément","Critères",null,"S/O","Absent","Présent mais non optimal","Présent et fonctionnel","Moyenne de l’élément","Commentaires (le cas échéant)","Absent","Present","Optimal","Average"]
[null,null,"Facteurs favorables au Programme national de prévention du VIH sur TOUS les sites"]
[null,null,"Accès à l’enseignement primaire et secondaire ","Des efforts visant à accroître l’accès des AJF à l’éducation ont été mis en œuvre avec succès et incluent : ",null,null,null,null,null,{"$f":"IFERROR(O6,\"-\")","v":"-"},null,null,null,null,{"$f":"IFERROR(ROUND(AVERAGEIF(L7:N14,\"<>0\",L7:N14),0),\"-\")","v":"-"}]
[null,null,null,"○","Rendre l’école primaire et secondaire obligatoire",null,null,null,null,null,null,{"$f":"IF(ISBLANK(G7),0,1)","v":0},{"$f":"IF(ISBLANK(H7),0,3)","v":0},{"$f":"IF(ISBLANK(I7),0,5)","v":0}]
[null,null,null,"○","Scolarité gratuite ou subventions pour les familles pauvres dans les pays affichant de faibles taux de scolarisation",null,null,null,null,null,null,0,0,0]
[null,null,null,"○","Construction d’écoles dans les zones rurales afin de réduire les distances à parcourir pour les JFA",null,null,null,null,null,null,0,0,0]
[null,null,null,"○","Accès aux uniformes scolaires et aux programmes d’alimentation ",null,null,null,null,null,null,0,0,0]
[null,null,null,"○","Accès aux produits de santé menstruelle ",null,null,null,null,null,null,0,0,0]
[null,null,null,"○","Interdiction de l’expulsion des AJF enceintes ",null,null,null,null,null,null,0,0,0]
[null,null,null,"○","Réinscription des jeunes mères couplée à des mécanismes de soutien financier",null,null,null,null,null,null,0,0,0]
[null,null,null,"Soutenu par d’autres mécanismes de financement de santé publique et de développement",null,null,null,null,null,null,null,0,0,0]
[null,null,"Introduction universelle de programmes complets d’éducation sexuelle et de santé scolaire ","Des modèles fondés sur des données probantes traitant des normes sociales et de genre, de la perception des risques et de la génération de la demande sont pleinement mis en œuvre et : ",null,null,null,null,null,{"$f":"IFERROR(O15,\"-\")","v":"-"},null,null,null,null,{"$f":"IFERROR(ROUND(AVERAGEIF(L16:N31,\"<>0\",L16:N31),0),\"-\")","v":"-"}]
[null,null,null,"○","Incluent la formation des enseignants ",null,null,null,null,null,null,{"$f":"IF(ISBLANK(H16),0,1)","v":0},{"$f":"IF(ISBLANK(H16),0,3)","v":0},0]
[null,null,null,"○","N’incluent pas uniquement la formation à l’abstinence ",null,null,null,null,null,null,0,0,0]
[null,null,null,"○","Incluent l’engagement des jeunes, des citoyens et des parents ",null,null,null,null,null,null,0,0,0]
[null,null,null,"○","Incluent des interventions visant à réduire le risque de VIH dans les relations entre personnes d’âges différents  ",null,null,null,null,null,null,0,0,0]
[null,null,null,"○","Orientent vers des centres de santé si les services ne sont pas fournis à l’école",null,null,null,null,null,null,0,0,0]
[null,null,null,"○","Une éducation sexuelle complète est dispensée conformément aux Lignes directrices internationales :",null,null,null,null,null,null,0,0,0]
[null,null,null,null,"> Fondée sur les droits humains ",null,null,null,null,null,null,0,0,0]
[null,null,null,null,"> Met l’accent sur le genre et l’égalité des sexes",null,null,null,null,null,null,0,0,0]
[null,null,null,null,"> Contient des informations complètes et scientifiquement exactes",null,null,null,null,null,null,0,0,0]
[null,null,null,null,"> Est dispensée dans un environnement d’apprentissage sûr et sain, exempt d’intimidation et de discrimination",null,null,null,null,null,null,0,0,0]
[null,null,null,null,"> Contient des liens vers des services de santé sexuelle et reproductive et d’autres initiatives visant à lutter contre les inégalités entre les sexes et à renforcer l’autonomie",null,null,null,null,null,null,0,0,0]
[null,null,null,null,"> Est menée avec des méthodes d’enseignement participatives",null,null,null,null,null,null,0,0,0]
[null,null,null,null,"> Comprend des cours sur les compétences de base pour l’engagement civique et la défense des intérêts",null,null,null,null,null,null,0,0,0]
[null,null,null,null,"> Le contenu est spécifiquement adapté au contexte culturel et aux besoins des jeunes ",null,null,null,null,null,null,0,0,0]
[null,null,null,null,"> Le contenu est adapté au développement de l’enfant, mais il est cohérent pour tous les groupes d’âge et s’applique aussi bien à l’école qu’à l’extérieur",null,null,null,null,null,null,0,0,0]
[null,null,null,"Soutenue par d’autres mécanismes de financement de santé publique et de développement",null,null,null,null,null,null,null,0,0,0]
[null,null,"Aide sociale et autonomisation économique des adolescents vulnérables","L’aide sociale et les mesures d’incitation à l’autonomie économique propres à chaque pays sont accessibles aux AJF présentant des vulnérabilités spécifiques",null,null,null,null,null,{"$f":"IFERROR(O32,\"-\")","v":"-"},null,null,null,null,{"$f":"IFERROR(ROUND(AVERAGEIF(L33:N37,\"<>0\",L33:N37),0),\"-\")","v":"-"}]
[null,null,null,"○","Les AJF ont accès à la protection sociale sous la forme d’initiatives de microfinance qui sont mises en œuvre parallèlement à d’autres interventions d’autonomisation sociale",null,null,null,null,null,null,0,0,0]
[null,null,null,"○","Priorité aux AJF âgées de 13-22 ans présentant des risques et des vulnérabilités qui peuvent être efficacement traités par des incitations économiques",null,null,null,null,null,null,0,0,0]
[null,null,null,"○","Les transferts monétaires sont complétés par d’autres programmes de prévention du VIH",null,null,null,null,null,null,0,0,0]
[null,null,null,"○","Une analyse au niveau national a été réalisée pour s’assurer que la conception du programme de transferts monétaires est appropriée et que son effet/impact peut être mesuré",null,null,null,null,null,null,0,0,0]
[null,null,null,"Soutenue par d’autres mécanismes de financement de santé publique et de développement",null,null,null,null,null,null,null,0,0,0]
[null,null,"Accès à la santé sexuelle et reproductive intégrée","Toutes les AJF ont accès à la planification familiale et à d’autres services de santé sexuelle et reproductive et :",null,null,null,null,null,{"$f":"IFERROR(O38,\"-\")","v":"-"},null,null,null,null,{"$f":"IFERROR(ROUND(AVERAGEIF(L39:N44,\"<>0\",L39:N44),0),\"-\")","v":"-"}]
[null,null,null,"○","Ont aussi accès à la vaccination contre le papillomavirus humain (PVH) et au dépistage du cancer du col de l’utérus ",null,null,null,null,null,null,{"$f":"IF(ISBLANK(G39),0,1)","v":0},{"$f":"IF(ISBLANK(H39),0,3)","v":0},{"$f":"IF(ISBLANK(I39),0,5)","v":0}]
[null,null,null,"○","Des méthodes contraceptives sont largement distribuées en quantité suffisante",null,null,null,null,null,null,0,0,0]
[null,null,null,"○","Des ateliers de démonstration sont régulièrement programmés ",null,null,null,null,null,null,0,0,0]
[null,null,null,"○","Ont accès à un éventail d’options contraceptives",null,null,null,null,null,null,0,0,0]
[null,null,null,"○","Des services sont intégrés à la prévention du VIH",null,null,null,null,null,null,0,0,0]
[null,null,null,"○","Fourni parallèlement à des services complets de lutte contre les infections sexuellement transmissibles",null,null,null,null,null,null,0,0,0]
[null,null,null,"Les AJF exposées à la violence, y compris la violence sexuelle, et/ou exposées au VIH ont accès à des services complets de lutte contre la violence à l’égard des femmes, y compris à des services de prévention du VIH, qui :",null,null,null,null,null,null,null,null,null,null,{"$f":"IFERROR(ROUND(AVERAGEIF(L46:N50,\"<>0\",L46:N50),0),\"-\")","v":"-"}]
[null,null,null,"○","Sont intégrés aux services de soins de santé existants ",null,null,null,null,null,null,0,0,0]
[null,null,null,"○","Sont dispensés par des professionnels de santé qui ont été formés pour offrir un soutien aux femmes victimes de violence sexiste",null,null,null,null,null,null,0,0,0]
[null,null,null,"○","Incluent un soutien de première ligne de la part de prestataires de soins de santé formés (écoute empathique, attitude de non-jugement, respect de la vie privée, confidentialité et mise en relation avec d’autres services)",null,null,null,null,null,null,0,0,0]
[null,null,null,"○","Incluent la contraception d’urgence, la prophylaxie des infections sexuellement transmissibles, y compris la prophylaxie post-exposition (PPE) dans les 72 heures et la mise en relation avec des services de soutien, de conseil et d’autres interventions, le cas échéant, en fonction des antécédents complets",null,null,null,null,null,null,0,0,0]
[null,null,null,"Soutenu par d’autres mécanismes de financement de santé",null,null,null,null,null,null,null,0,0,0]
[null,null,"Accès à la SSRDC, avec soutien juridique et politique ","Les efforts visant à accroître les connaissances en matière de santé sexuelle et reproductive et de droits connexes sont mis en œuvre, font l’objet d’une bonne publicité parmi les AJC et incluent : ",null,null,null,null,null,{"$f":"IFERROR(O51,\"-\")","v":"-"},null,null,null,null,{"$f":"IFERROR(ROUND(AVERAGEIF(L52:N68,\"<>0\",L52:N55),0),\"-\")","v":"-"}]
[null,null,null,"○","Application d’une législation qui prévient la discrimination ou la stigmatisation dans le cadre de l’accès aux services de santé sexuelle et reproductive",null,null,null,null,null,null,0,0,0]
[null,null,null,"○","Information des AJF sur leurs droits d’accès aux services de santé sexuelle et reproductive",null,null,null,null,null,null,0,0,0]
[null,null,null,"○","Interventions qui intègrent la justice et la santé par le biais de la collaboration (ex. : centres d’accueil et mécanismes de signalement des violations des droits)",null,null,null,null,null,null,0,0,0]
[null,null,null,"○","Groupes qui défendent activement les programmes AJF et le financement",null,null,null,null,null,null,0,0,0]
[null,null,null,"Des mécanismes de prévention de la violence à l’égard des AJF sont en place et incluent :",null,null,null,null,null,null,null,null,null,0,{"$f":"IFERROR(ROUND(AVERAGEIF(L57:N62,\"<>0\",L57:N62),0),\"-\")","v":"-"}]
[null,null,null,"○","  Informations sur la sécurité",null,null,null,null,null,null,0,0,0]
[null,null,null,"○","  Espaces sûrs (dont centres d’accueil)",null,null,null,null,null,null,0,0,0]
[null,null,null,"○","  Programmes scolaires de prévention de la violence dans les fréquentations amoureuses ",null,null,null,null,null,null,0,0,0]
[null,null,null,"○","  Formation en milieu scolaire pour aider les enfants à reconnaître et à éviter les situations potentiellement abusives sur le plan sexuel",null,null,null,null,null,null,0,{"$f":"IF(ISBLANK(H60),0,3)","v":0},{"$f":"IF(ISBLANK(H60),0,5)","v":0}]
[null,null,null,"○","  Mobilisation communautaire autour de la violence sexiste",null,null,null,null,null,null,0,{"$f":"IF(ISBLANK(H61),0,3)","v":0},{"$f":"IF(ISBLANK(H61),0,5)","v":0}]
[null,null,null,"○","  Travail avec des hommes et des garçons en groupes pour promouvoir des attitudes équitables entre les sexes dans les zones lourdement touchées",null,null,null,null,null,null,0,0,0]
[null,null,null,"La violence à l’égard des AJF a été systématiquement abordée et inclut :",null,null,null,null,null,null,null,null,null,null,{"$f":"IFERROR(ROUND(AVERAGEIF(L64:N68,\"<>0\",L64:N68),0),\"-\")","v":"-"}]
[null,null,null,"○","  Mécanismes d’orientation des jeunes femmes victimes de violence sexiste vers des programmes actifs de lutte contre la violence sexiste  ",null,null,null,null,null,null,0,0,0]
[null,null,null,"○","  Mécanismes d’orientation des enfants vers des services de protection de l’enfance appropriés",null,null,null,null,null,null,0,0,0]
[null,null,null,"○","  Mécanismes de suivi et de coordination des réponses au niveau communautaire ",null,null,null,null,null,null,0,0,0]
[null,null,null,"○","  Mécanismes fonctionnels de signalement des expériences de violence sexiste qui outrepassent les pouvoirs de la police et peuvent inclure un soutien parajuridique de la part des organisations",null,null,null,null,null,null,0,0,0]
[null,null,null,"Soutenu par d’autres mécanismes de financement de santé",null,null,null,null,null,null,null,0,0,0]
[null,null,"Systèmes de santé adaptés aux jeunes","La mise en place de systèmes de santé adaptés aux jeunes (avec prestataires formés, horaires propices, etc.) est considérée comme une priorité et soutenue par d’autres mécanismes de financement de santé",null,null,null,null,null,{"$f":"IFERROR(O69,\"-\")","v":"-"},null,null,null,null,{"$f":"IFERROR(ROUND(AVERAGEIF(L70:N78,\"<>0\",L70:N78),0),\"-\")","v":"-"}]
[null,null,null,"○","Équitables : tous les adolescents, et non pas seulement certains groupes, sont en mesure d’obtenir les services de santé dont ils ont besoin",null,null,null,null,null,null,{"$f":"IF(ISBLANK(G70),0,1)","v":0},{"$f":"IF(ISBLANK(H70),0,3)","v":0},{"$f":"IF(ISBLANK(I70),0,5)","v":0}]
[null,null,null,"○","Accessibles : les adolescents sont en mesure de bénéficier des services qui sont dispensés",null,null,null,null,null,null,0,0,0]
[null,null,null,"○","Acceptables : les services de santé sont dispensés d’une manière qui répond aux attentes des clients adolescents",null,null,null,null,null,null,0,0,0]
[null,null,null,"○","Appropriés : les services de santé dont les adolescents ont besoin sont fournis",null,null,null,null,null,null,0,0,0]
[null,null,null,"○","Efficaces : les bons services de santé sont dispensés de la bonne manière et contribuent de manière positive à la santé des adolescents",null,null,null,null,null,null,0,0,0]
[null,null,null,null,null,null,null,null,null,null,null,0,0,0]
[null,null,null,null,null,null,null,null,null,null,null,0,0,0]
[null,null,null,null,null,null,null,null,null,null,null,0,0,0]
[null,null,null,"Soutenus par d’autres mécanismes de financement de santé",null,null,null,null,null,null,null,0,0,0]
[null,null,"Services de dépistage et de traitement du VIH","Des services de dépistage, de traitement, de conseil et de soutien ciblés en matière de VIH sont à la disposition des AJF et de leurs partenaires sexuels et : ",null,null,null,null,null,{"$f":"IFERROR(O79,\"-\")","v":"-"},null,null,null,null,{"$f":"IFERROR(ROUND(AVERAGEIF(L80:N90,\"<>0\",L80:N90),0),\"-\")","v":"-"}]
[null,null,null,"○","Les normes de l’Organisation mondiale de la santé relatives aux services de dépistage du VIH sont appliquées",null,null,null,null,null,null,{"$f":"IF(ISBLANK(G80),0,1)","v":0},{"$f":"IF(ISBLANK(H80),0,3)","v":0},{"$f":"IF(ISBLANK(I80),0,5)","v":0}]
[null,null,null,"○","Des conseils sont prodigués avant et après le test de dépistage ",null,null,null,null,null,null,0,0,0]
[null,null,null,"○","Le traitement est administré immédiatement, l’approvisionnement est ininterrompu",null,null,null,null,null,null,0,0,0]
[null,null,null,"○","Les personnes séropositives sont orientées vers des réseaux de soins et de soutien après le diagnostic ",null,null,null,null,null,null,0,0,0]
[null,null,null,"○","L’accès aux services est distribué de manière équitable dans la communauté et pour toutes les AJF",null,null,null,null,null,null,0,0,0]
[null,null,null,"○","Des interventions visant à garantir l’observance sont en place pour les AJF vivant avec le VIH",null,null,null,null,null,null,0,0,0]
[null,null,null,"○","Suivi régulier de l’assiduité aux soins chez les AJF vivant avec le VIH",null,null,null,null,null,null,0,0,0]
[null,null,null,"○","Liens avec la prévention et le traitement des comorbidités fournis",null,null,null,null,null,null,0,0,0]
[null,null,null,"○","Tests de charge virale et de CD4 disponibles et accessibles pour les AJF vivant avec le VIH",null,null,null,null,null,null,0,0,0]
[null,null,null,"○","Des options d’autodiagnostic sont disponibles et largement distribuées ",null,null,null,null,null,null,0,0,0]
[null,null,null,"Soutenus par d’autres mécanismes de financement VIH",null,null,null,null,null,null,null,0,0,0]
[null,null,"PPE","Les AJF victimes d’agressions sexuelles et exposées au VIH ont accès à des services complets de lutte contre la violence sexiste et à des soins post-viol, qui :  ",null,null,null,null,null,{"$f":"IFERROR(O91,\"-\")","v":"-"},null,null,null,null,{"$f":"IFERROR(ROUND(AVERAGEIF(L92:N97,\"<>0\",L92:N97),0),\"-\")","v":"-"}]
[null,null,null,"○","Sont intégrés aux services de soins de santé existants ",null,null,null,null,null,null,0,0,0]
[null,null,null,"○","Sont dispensés par des professionnels de santé qui ont été formés pour offrir un soutien aux femmes victimes de violence sexiste",null,null,null,null,null,null,0,0,0]
[null,null,null,"○","Incluent un soutien de première ligne de la part de prestataires de soins de santé formés (écoute empathique, attitude de non-jugement, respect de la vie privée, confidentialité et mise en relation avec d’autres services)",null,null,null,null,null,null,0,0,0]
[null,null,null,"○","Incluent la contraception d’urgence, la prophylaxie des infections sexuellement transmissibles, y compris la PPE (dans les 72 heures) et la mise en relation avec des services de soutien, de conseil et d’autres interventions, le cas échéant, en fonction des antécédents complets",null,null,null,null,null,null,0,0,0]
[null,null,null,"○","Des centres de lutte contre la violence sexiste dirigés par la communauté ou basés dans la communauté sont disponibles et orientent activement les patients",null,null,null,null,null,null,0,0,0]
[null,null,null,"Soutenue par d’autres mécanismes de financement VIH",null,null,null,null,null,null,null,0,0,0]
[null,null,"Prévention de la transmission verticale du VIH dans le cadre de la santé maternelle ","Les femmes (y compris les AJF) ont accès à des soins prénatals complets qui incluent la prévention de la transmission du VIH de la mère à l’enfant (PTME) : ",null,null,null,null,null,{"$f":"IFERROR(O98,\"-\")","v":"-"},null,null,null,null,{"$f":"IFERROR(ROUND(AVERAGEIF(L99:N103,\"<>0\",L99:N103),0),\"-\")","v":"-"}]
[null,null,null,"○","Les femmes enceintes séropositives ont accès à des informations, des traitements et des soins appropriés pour prévenir la transmission du VIH de la mère à l’enfant",null,null,null,null,null,null,0,0,0]
[null,null,null,"○","Les femmes enceintes séronégatives bénéficient d’un dépistage régulier et répété",null,null,null,null,null,null,0,0,0]
[null,null,null,"○","Les femmes enceintes séronégatives à haut risque ont accès à la PaE",null,null,null,null,null,null,0,0,0]
[null,null,null,"○","Des informations sont fournies aux couples sérodiscordants qui souhaitent concevoir un enfant ",null,null,null,null,null,null,0,0,0]
[null,null,null,"Soutenue par d’autres mécanismes de financement VIH",null,null,null,null,null,null,null,0,0,0]
[null,null,"Action pour traiter les droits, la stigmatisation et la discrimination liés au VIH","Les politiques existantes et la mobilisation en faveur du changement de politique sont propices à l’amélioration de la mise en œuvre des programmes de lutte contre le VIH et des résultats de la prévention du VIH",null,null,null,null,null,{"$f":"IFERROR(O104,\"-\")","v":"-"},null,null,null,null,{"$f":"IFERROR(ROUND(AVERAGEIF(L105:N110,\"<>0\",L105:N110),0),\"-\")","v":"-"}]
[null,null,null,"○","Le respect de la vie privée, la confidentialité et la non-discrimination sont clairement communiqués et garantis pour les AJF qui accèdent aux services",null,null,null,null,null,null,0,0,0]
[null,null,null,"○","Les obstacles à l’accès aux services liés à l’âge ont été abordés et supprimés",null,null,null,null,null,null,0,0,0]
[null,null,null,"○","L’activité sexuelle consensuelle des adolescents est dépénalisée",null,null,null,null,null,null,0,0,0]
[null,null,null,"○","Les obstacles politiques et juridiques auxquels se heurtent les populations clés (notamment les jeunes travailleurs du sexe, les adolescents exploités dans le commerce du sexe, les jeunes hommes ayant des rapports sexuels avec des hommes, les personnes transgenres et les personnes qui s’injectent des drogues) ont été abordés et supprimés",null,null,null,null,null,null,0,0,0]
[null,null,null,"○","La société civile et les partenaires communautaires sont activement engagés et participent aux actions visant à traiter les droits, la stigmatisation et la discrimination liés au VIH",null,null,null,null,null,null,0,0,0]
[null,null,null,"Soutenue par d’autres mécanismes de financement VIH",null,null,null,null,null,null,null,0,0,0]
[null,null,"Préservatifs masculins et féminins et lubrifiants ","Toutes les AJF et leurs partenaires sexuels ont accès à des préservatifs et lubrifiants et savent où les trouver et comment les utiliser :",null,null,null,null,null,{"$f":"IFERROR(O111,\"-\")","v":"-"},null,null,null,null,{"$f":"IFERROR(ROUND(AVERAGEIF(L112:N119,\"<>0\",L112:N119),0),\"-\")","v":"-"}]
[null,null,null,"○","Des préservatifs sont disponibles en permanence et en quantité suffisante",null,null,null,null,null,null,0,0,0]
[null,null,null,"○","Des lubrifiants sont disponibles en permanence et en quantité suffisante",null,null,null,null,null,null,0,0,0]
[null,null,null,"○","Des préservatifs sont largement distribués et facilement accessibles dans les écoles/établissements d’enseignement supérieur et dans les milieux communautaires",null,null,null,null,null,null,0,0,0]
[null,null,null,"○","Des ateliers de démonstration sont régulièrement organisés dans les écoles et les établissements d’enseignement supérieur, afin de compléter les activités de distribution et de création de la demande",null,null,null,null,null,null,0,0,0]
[null,null,null,"○","Des préservatifs sont distribués dans le cadre des services mobiles adaptés aux adolescents et distribués en vrac ",null,null,null,null,null,null,0,0,0]
[null,null,null,"○","Des préservatifs sont fournis avec le matériel de communication interpersonnelle",null,null,null,null,null,null,0,0,0]
[null,null,null,"○","Des préservatifs sont fournis avec tous les services de santé sexuelle et reproductive",null,null,null,null,null,null,0,0,0]
[null,null,null,"Soutenus par d’autres mécanismes de financement de prévention du VIH",null,null,null,null,null,null,null,0,0,0]
[null,null,"Circoncisions masculines médicales volontaires dans les pays prioritaires concernés","Les programmes de circoncision masculine médicale volontaire (CMMV) sont adaptés au développement et des lignes directrices différenciées selon l’âge sont disponibles pour les adolescents et adultes de sexe masculin :",null,null,null,null,null,{"$f":"IFERROR(O120,\"-\")","v":"-"},null,null,null,null,{"$f":"IFERROR(ROUND(AVERAGEIF(L121:N122,\"<>0\",L121:N122),0),\"-\")","v":"-"}]
[null,null,null,"○","Le programme de CMMV comprend des liens avec des évaluations des risques et des orientations vers des services de SSR et de prévention et de dépistage du VIH qui sont différenciés selon l’âge",null,null,null,null,null,null,{"$f":"IF(ISBLANK(G121),0,1)","v":0},{"$f":"IF(ISBLANK(H121),0,3)","v":0},{"$f":"IF(ISBLANK(I121),0,5)","v":0}]
[null,null,null,"Soutenues par d’autres mécanismes de financement de prévention du VIH",null,null,null,null,null,null,null,0,0,0]
[null,null,"Informations nationales de base sur le VIH, communications sur la réduction des risques ","Des programmes et activités de communication sur le changement social et comportemental (CCSC) sont inclus et :",null,null,null,null,null,{"$f":"IFERROR(O123,\"-\")","v":"-"},null,null,null,null,{"$f":"IFERROR(ROUND(AVERAGEIF(L124:N135,\"<>0\",L124:N135),0),\"-\")","v":"-"}]
[null,null,null,"○","Impliquent à la fois les hommes et les femmes",null,null,null,null,null,null,0,0,0]
[null,null,null,"○","Incluent des approches innovantes en matière de multimédias et de nouveaux médias (y compris des approches radiophoniques et télévisuelles)",null,null,null,null,null,null,0,0,0]
[null,null,null,"○","Sont fondés sur des données probantes et ont une théorie du changement",null,null,null,null,null,null,0,0,0]
[null,null,null,"○","Disposent de supports d’information et de communication éducative (ICE) bien conçus et largement diffusés dans des endroits ciblés",null,null,null,null,null,null,0,0,0]
[null,null,null,"○","Ont des programmes éducatifs bien définis, une forte participation de la communauté et des approches transformatrices de genre qui s’attaquent aux inégalités entre les sexes ",null,null,null,null,null,null,0,0,0]
[null,null,null,"○","Ont des objectifs clairs et sont évalués quantitativement et qualitativement ",null,null,null,null,null,null,0,0,0]
[null,null,null,"○","Sont bien planifiés et dûment budgétisés",null,null,null,null,null,null,0,0,0]
[null,null,null,"○","Sont évalués régulièrement",null,null,null,null,null,null,0,0,0]
[null,null,null,"○","Les AJF ont été impliquées dans la conception et l’essai des interventions",null,null,null,null,null,null,0,0,0]
[null,null,null,"○","Les organisations et les personnes qui mettent en œuvre ces interventions sont expérimentées et formées à la CCSC",null,null,null,null,null,null,0,0,0]
[null,null,null,"○","Des interventions de communication sur le changement social et comportemental sont incluses dans les plans et activités de suivi et d’évaluation",null,null,null,null,null,null,0,0,0]
[null,null,null,"Soutenues par d’autres mécanismes de financement de prévention du VIH",null,null,null,null,null,null,null,0,0,0]
[null,null,"Paquets complets de prévention du VIH pour les jeunes clés et vulnérables","Les stratégies nationales et les programmes de prévention du VIH pour les groupes de population clé prennent en compte et traitent les besoins spécifiques et les stratégies des jeunes populations clés et vulnérables, y compris :",null,null,null,null,null,{"$f":"IFERROR(O136,\"-\")","v":"-"},null,null,null,null,{"$f":"IFERROR(ROUND(AVERAGEIF(L137:N142,\"<>0\",L137:N141),0),\"-\")","v":"-"}]
[null,null,null,"○","Jeunes femmes travailleuses du sexe",null,null,null,null,null,null,0,0,0]
[null,null,null,"○","Adolescents sexuellement exploités",null,null,null,null,null,null,0,0,0]
[null,null,null,"○","Jeunes transgenres",null,null,null,null,null,null,0,0,0]
[null,null,null,"○","Jeunes incarcérés",null,null,null,null,null,null,0,0,0]
[null,null,null,"○","Jeunes qui s’injectent des drogues",null,null,null,null,null,null,{"$f":"IF(ISBLANK(G141),0,1)","v":0},0,0]
[null,null,null,"Soutenus par d’autres mécanismes de financement de prévention du VIH",null,null,null,null,null,null,null,{"$f":"IF(ISBLANK(G142),0,1)","v":0},{"$f":"IF(ISBLANK(H142),0,3)","v":0},{"$f":"IF(ISBLANK(I142),0,5)","v":0}]
[null,null,"COVID -19","○","Des programmes sont en place pour encourager et suivre l’utilisation du vaccin COVID-19 chez les AJF",null,null,null,null,{"$f":"IFERROR(O143,\"-\")","v":"-"},null,{"$f":"IF(ISBLANK(G143),0,1)","v":0},{"$f":"IF(ISBLANK(H143),0,3)","v":0},0,{"$f":"IFERROR(ROUND(AVERAGEIF(L143:N144,\"<>0\",L143:N144),0),\"-\")","v":"-"}]
[null,null,null,"○","Maintien de la messagerie et de l’accès sécurisé aux modèles de prestation de services hors établissement (ex. : communautaires, à domicile, de télésanté) pendant les pics de COVID-19 afin d’éviter toute interruption de service",null,null,null,null,null,null,{"$f":"IF(ISBLANK(G144),0,1)","v":0},{"$f":"IF(ISBLANK(H144),0,3)","v":0},{"$f":"IF(ISBLANK(I144),0,5)","v":0}]
[null,null,null,null,null,null,null,null,null,null,null,null,{"$f":"COUNTIF(O6:O144,\"-\")","v":18}]
[null,null,null,null,null,null,null,null,null,null,null,null,{"$f":"COUNTIF(O6:O144,\">0\")","v":0}]
[null,null,null,null,null,null,null,null,null,null,null,"Achèvement de la feuille",{"$f":"M146/(M145+M146)","v":0},{"$f":"1-M147","v":1}]

{"sheet":"Incidence MODÉRÉE","index":8,"n_rows":61,"n_cols":15,"rows_kept":61,"cut":false,"hidden":false,"merged":[[1,2,1,9],[3,3,3,4],[55,3,55,4],[51,2,52,2],[51,3,51,4],[51,9,52,9],[53,3,53,4],[53,2,54,2],[53,9,54,9],[37,2,39,2],[37,3,37,4],[40,2,42,2],[28,2,31,2],[28,3,28,4],[28,9,31,9],[32,2,34,2],[40,3,40,4],[40,9,42,9],[20,3,20,4],[20,2,23,2],[24,3,24,4],[32,3,32,4],[37,9,39,9],[35,2,36,2],[35,3,35,4],[35,9,36,9],[17,2,19,2],[32,9,34,9],[24,9,27,9],[17,3,17,4],[17,9,19,9],[20,9,23,9],[24,2,27,2],[5,2,8,2],[5,3,5,4],[5,9,8,9],[13,3,13,4],[9,2,12,2],[9,3,9,4],[9,9,12,9],[13,2,16,2],[13,9,16,9],[4,2,4,10],[56,3,56,4],[43,3,43,4],[43,9,45,9],[46,2,48,2],[46,3,46,4],[46,9,48,9],[49,2,50,2],[49,3,49,4],[49,9,50,9],[43,2,45,2]]}
[]
[null,null,"Mise en œuvre de programme"]
[]
[null,null,"Élément","Critères",null,"S/O","Absent","Présent mais non optimal","Présent et fonctionnel","Moyenne de l’élément","Commentaires (le cas échéant)","Absent","Present","Optimal","Average"]
[null,null,"Paquets de prévention du VIH pour les AJF dans les lieux à incidence MODÉRÉE"]
[null,null,"Profil d’évaluation des risques liés au VIH et aux IST","Un profil d’évaluation des risques liés au VIH et aux IST est proposé : ",null,null,null,null,null,{"$f":"IFERROR(O6,\"-\")","v":"-"},null,null,null,null,{"$f":"IFERROR(ROUND(AVERAGEIF(L7:N9,\"<>0\",L7:N9),0),\"-\")","v":"-"}]
[null,null,null,"○","De façon routinière",null,null,null,null,null,null,{"$f":"IF(ISBLANK(G7),0,1)","v":0},{"$f":"IF(ISBLANK(H7),0,3)","v":0},{"$f":"IF(ISBLANK(I7),0,5)","v":0}]
[null,null,null,"○","Dans toutes les plateformes sanitaires et communautaires (points de prestation de services et établissements)",null,null,null,null,null,null,0,0,0]
[null,null,null,null,"Avec utilisation de mécanismes de financement de la prévention du VIH chez les AJF ",null,null,null,null,null,null,0,0,0]
[null,null,"Conseil en matière de réduction des risques liés au VIH et dépistage","Des conseils en matière de réduction des risques liés au VIH et des tests dépistage sont proposés :",null,null,null,null,null,{"$f":"IFERROR(O10,\"-\")","v":"-"},null,null,null,null,{"$f":"IFERROR(ROUND(AVERAGEIF(L11:N13,\"<>0\",L11:N13),0),\"-\")","v":"-"}]
[null,null,null,"○","De façon routinière",null,null,null,null,null,null,0,0,0]
[null,null,null,"○","Dans toutes les plateformes sanitaires et communautaires (points de prestation de services et établissements)",null,null,null,null,null,null,0,0,0]
[null,null,null,null,"Avec utilisation de mécanismes de financement de la prévention du VIH chez les AJF ",null,null,null,null,null,null,0,0,0]
[null,null,"Distribution et promotion actives de préservatifs et de lubrifiants à l’initiative du prestataire de soins","Une distribution et une promotion actives de préservatifs et de lubrifiants à l’initiative du prestataire sont proposées : ",null,null,null,null,null,{"$f":"IFERROR(O14,\"-\")","v":"-"},null,null,null,null,{"$f":"IFERROR(ROUND(AVERAGEIF(L15:N17,\"<>0\",L15:N17),0),\"-\")","v":"-"}]
[null,null,null,"○","De façon routinière",null,null,null,null,null,null,0,0,0]
[null,null,null,"○","Dans toutes les plateformes sanitaires et communautaires (points de prestation de services et établissements)",null,null,null,null,null,null,0,0,0]
[null,null,null,null,"Avec utilisation de mécanismes de financement de la prévention du VIH chez les AJF ",null,null,null,null,null,null,0,0,0]
[null,null,"Diagnostic et traitement des IST (y compris comme indicateur du risque de VIH) ","Un diagnostic et un traitement des IST (y compris en tant qu’indicateur du risque de VIH) sont disponibles : ",null,null,null,null,null,{"$f":"IFERROR(O18,\"-\")","v":"-"},null,null,null,null,{"$f":"IFERROR(ROUND(AVERAGEIF(L19:N20,\"<>0\",L19:N20),0),\"-\")","v":"-"}]
[null,null,null,"○","Dans toutes les plateformes sanitaires et communautaires (points de prestation de services et établissements), au besoin",null,null,null,null,null,null,0,0,0]
[null,null,null,null,"Avec utilisation d’autres financements (non liés à la prévention AJF)",null,null,null,null,null,null,0,0,0]
[null,null,"Intégration de services VIH et IST dans la planification familiale","L’intégration de services VIH et IST dans la planification familiale est disponible :",null,null,null,null,null,{"$f":"IFERROR(O21,\"-\")","v":"-"},null,null,null,null,{"$f":"IFERROR(ROUND(AVERAGEIF(L22:N24,\"<>0\",L22:N24),0),\"-\")","v":"-"}]
[null,null,null,"○","Sur des sites sélectionnés",null,null,null,null,null,null,0,0,0]
[null,null,null,"○","Sous forme d’offre focalisée/ciblée",null,null,null,null,null,null,0,0,0]
[null,null,null,null,"Avec utilisation de mécanismes de financement de la prévention du VIH chez les AJF ",null,null,null,null,null,null,0,0,0]
[null,null,"Dépistage des partenaires masculins (lettre d’invitation + autotest) avec orientation vers un traitement antirétroviral","Des services de dépistage des partenaires masculins et d’orientation vers des traitements antirétroviraux sont disponibles :",null,null,null,null,null,{"$f":"IFERROR(O25,\"-\")","v":"-"},null,null,null,null,{"$f":"IFERROR(ROUND(AVERAGEIF(L26:N28,\"<>0\",L26:N28),0),\"-\")","v":"-"}]
[null,null,null,"○","Sur des sites sélectionnés",null,null,null,null,null,null,0,0,0]
[null,null,null,"○","Sous forme d’offre focalisée/ciblée",null,null,null,null,null,null,0,0,0]
[null,null,null,null,"Avec utilisation de mécanismes de financement de la prévention du VIH chez les AJF ",null,null,null,null,null,null,0,0,0]
[null,null,"Services de PaE","Des services de PaE sont disponibles :",null,null,null,null,null,{"$f":"IFERROR(O29,\"-\")","v":"-"},null,null,null,null,{"$f":"IFERROR(ROUND(AVERAGEIF(L30:N32,\"<>0\",L30:N32),0),\"-\")","v":"-"}]
[null,null,null,"○","Sur des sites sélectionnés",null,null,null,null,null,null,0,0,0]
[null,null,null,"○","Sous forme d’offre focalisée/ciblée",null,null,null,null,null,null,0,0,0]
[null,null,null,null,"Avec utilisation de mécanismes de financement de la prévention du VIH chez les AJF ",null,null,null,null,null,null,0,0,0]
[null,null,"Campagnes de prévention du VIH en milieu scolaire (connaissances, perception des risques, méthodes, compétences, violence sexiste) liées à des services","Des campagnes de prévention du VIH en milieu scolaire et des liens avec les services sont mis en œuvre :",null,null,null,null,null,{"$f":"IFERROR(O33,\"-\")","v":"-"},null,null,null,null,{"$f":"IFERROR(ROUND(AVERAGEIF(L34:N35,\"<>0\",L34:N35),0),\"-\")","v":"-"}]
[null,null,null,"○","Dans des écoles et des établissements d’enseignement supérieur sélectionnés",null,null,null,null,null,null,0,0,0]
[null,null,null,null,"Avec utilisation de mécanismes de financement de la prévention du VIH chez les AJF ",null,null,null,null,null,null,0,0,0]
[null,null,"Introduction accélérée de l’éducation sexuelle complète ","L’introduction de l’éducation sexuelle complète est accélérée :",null,null,null,null,null,{"$f":"IFERROR(O36,\"-\")","v":"-"},null,null,null,null,{"$f":"IFERROR(ROUND(AVERAGEIF(L37:N37,\"<>0\",L37:N37),0),\"-\")","v":"-"}]
[null,null,null,null,"Avec utilisation d’autres financements (non liés à la prévention AJF)",null,null,null,null,null,null,0,0,0]
[null,null,"Mobilisation communautaire autour des connaissances de base en matière de prévention du VIH, de la perception des risques et des normes sociales connexes","La mobilisation communautaire autour des connaissances de base en matière de prévention du VIH, de la perception des risques et des normes sociales connexes est mise en œuvre :",null,null,null,null,null,{"$f":"IFERROR(O38,\"-\")","v":"-"},null,null,null,null,{"$f":"IFERROR(ROUND(AVERAGEIF(L39:N40,\"<>0\",L39:N40),0),\"-\")","v":"-"}]
[null,null,null,"○","Dans des communautés sélectionnées",null,null,null,null,null,null,0,0,0]
[null,null,null,null,"Avec utilisation de mécanismes de financement de la prévention du VIH chez les AJF ",null,null,null,null,null,null,0,0,0]
[null,null,"Services communautaires de prévention du VIH axés sur la génération de la demande et la sensibilisation","La génération de la demande et la sensibilisation de la communauté aux services de prévention du VIH (y compris les préservatifs, l’autodiagnostic, l’orientation, etc.) sont mises en œuvre :",null,null,null,null,null,{"$f":"IFERROR(O41,\"-\")","v":"-"},null,null,null,null,{"$f":"IFERROR(ROUND(AVERAGEIF(L42:N43,\"<>0\",L42:N43),0),\"-\")","v":"-"}]
[null,null,null,"○","Ciblant toutes les AJF et les hommes de 20 à 39 ans à haut risque",null,null,null,null,null,null,0,0,0]
[null,null,null,null,"Avec utilisation de mécanismes de financement de la prévention du VIH chez les AJF ",null,null,null,null,null,null,0,0,0]
[null,null,"Génération de la demande de PaE active","Des activités de génération de la demande de PaP sont activement mises en œuvre via des plateformes communautaires (ONG, OSC) :",null,null,null,null,null,{"$f":"IFERROR(O44,\"-\")","v":"-"},null,null,null,null,{"$f":"IFERROR(ROUND(AVERAGEIF(L45:N46,\"<>0\",L45:N46),0),\"-\")","v":"-"}]
[null,null,null,"○","Incluent des AJF dans les populations clés",null,null,null,null,null,null,0,0,0]
[null,null,null,null,"Avec utilisation de mécanismes de financement de la prévention du VIH chez les AJF ",null,null,null,null,null,null,0,0,0]
[null,null,"Sensibilisation à la communication interpersonnelle structurée (ex. : SASA !, etc.)","Des activités structurées de sensibilisation à la CIP sont mises en œuvre via des plateformes communautaires (ONG, OSC) :",null,null,null,null,null,{"$f":"IFERROR(O47,\"-\")","v":"-"},null,null,null,null,{"$f":"IFERROR(ROUND(AVERAGEIF(L48:N49,\"<>0\",L48:N49),0),\"-\")","v":"-"}]
[null,null,null,"○","Dans des communautés sélectionnées",null,null,null,null,null,null,0,0,0]
[null,null,null,null,"Avec utilisation de mécanismes de financement de la prévention du VIH chez les AJF ",null,null,null,null,null,null,0,0,0]
[null,null,"Transferts monétaires, incitations, autonomisation économique","Des transferts monétaires, des incitations, des initiatives d’autonomisation économique sont disponibles :",null,null,null,null,null,{"$f":"IFERROR(O50,\"-\")","v":"-"},null,null,null,null,{"$f":"IFERROR(ROUND(AVERAGEIF(L51:N51,\"<>0\",L51:N51),0),\"-\")","v":"-"}]
[null,null,null,null,"Avec utilisation d’autres financements (non liés à la prévention AJF)",null,null,null,null,null,null,0,0,0]
[null,null,"Renforcement des actifs sociaux, espaces sécurisés, programmes de parentalité, mentorat","Des services de renforcement des actifs sociaux, des espaces sécurisés, des programmes d’éducation parentale et de mentorat sont disponibles :",null,null,null,null,null,{"$f":"IFERROR(O52,\"-\")","v":"-"},null,null,null,null,{"$f":"IFERROR(ROUND(AVERAGEIF(L53:N53,\"<>0\",L53:N53),0),\"-\")","v":"-"}]
[null,null,null,null,"Avec utilisation d’autres financements (non liés à la prévention AJF)",null,null,null,null,null,null,0,0,0]
[null,null,"Aide à la scolarisation / éducation des filles","Des programmes d’aide à la scolarisation / éducation des filles sont disponibles :",null,null,null,null,null,{"$f":"IFERROR(O54,\"-\")","v":"-"},null,null,null,null,{"$f":"IFERROR(ROUND(AVERAGEIF(L55:N55,\"<>0\",L55:N55),0),\"-\")","v":"-"}]
[null,null,null,null,"Avec utilisation d’autres financements (non liés à la prévention AJF)",null,null,null,null,null,null,0,0,0]
[null,null,"Le bureau local du sida mène un examen régulier et la résolution des problèmes","Le bureau local du sida mène un examen régulier et la résolution des problèmes (comme recommandé)",null,null,null,null,null,{"$f":"IFERROR(O56,\"-\")","v":"-"},null,0,0,0,{"$f":"IFERROR(ROUND(AVERAGEIF(L56:N56,\"<>0\",L56:N56),0),\"-\")","v":"-"}]
[null,null,"Une AJF est présente à plein temps dans le bureau local du sida","Une responsable AJF est présente à plein temps dans le bureau local du sida (facultatif)",null,null,null,null,null,{"$f":"IFERROR(O57,\"-\")","v":"-"},null,0,0,0,{"$f":"IFERROR(ROUND(AVERAGEIF(L57:N57,\"<>0\",L57:N57),0),\"-\")","v":"-"}]
[]
[null,null,null,null,null,null,null,null,null,null,null,null,{"$f":"COUNTIF(O6:O57,\"-\")","v":18}]
[null,null,null,null,null,null,null,null,null,null,null,null,{"$f":"COUNTIF(O6:O57,\">0\")","v":0}]
[null,null,null,null,null,null,null,null,null,null,null,"Achèvement de la feuille",{"$f":"M60/(M59+M60)","v":0},{"$f":"1-M61","v":1}]

{"sheet":"Incidence ÉLEVÉE","index":9,"n_rows":79,"n_cols":15,"rows_kept":79,"cut":false,"hidden":false,"merged":[[41,5,41,8],[1,2,1,9],[3,3,3,4],[5,2,8,2],[5,3,5,4],[5,9,8,9],[4,2,4,10],[5,5,5,8],[28,2,32,2],[28,3,28,4],[28,9,32,9],[13,2,17,2],[13,3,13,4],[13,9,17,9],[18,2,22,2],[18,9,22,9],[9,2,12,2],[9,9,12,9],[23,2,27,2],[23,3,23,4],[23,9,27,9],[18,3,18,4],[57,2,60,2],[57,3,57,4],[57,9,60,9],[41,2,43,2],[41,3,41,4],[41,9,43,9],[44,2,46,2],[44,3,44,4],[44,9,46,9],[47,2,49,2],[47,3,47,4],[47,9,49,9],[50,2,53,2],[50,3,50,4],[33,2,37,2],[38,2,40,2],[50,9,53,9],[54,2,56,2],[54,3,54,4],[54,9,56,9],[43,4,43,5],[49,4,49,5],[38,3,38,4],[38,9,40,9],[33,9,37,9],[33,3,33,4],[69,3,69,4],[70,3,70,4],[61,2,64,2],[61,3,61,4],[61,9,64,9],[65,2,68,2],[65,3,65,4],[65,9,68,9]]}
[]
[null,null,"Mise en œuvre de programme"]
[]
[null,null,"Élément","Critères",null,"S/O","Absent","Présent mais non optimal","Présent et fonctionnel","Moyenne de l’élément","Commentaires (le cas échéant)","Absent","Present","Optimal","Average"]
[null,null,"Paquets de prévention du VIH pour les AJF dans les lieux à incidence MODÉRÉE"]
[null,null,"Profil d’évaluation des risques liés au VIH et aux IST","Un profil d’évaluation des risques liés au VIH et aux IST est proposé : ",null,null,null,null,null,{"$f":"IFERROR(O6,\"-\")","v":"-"},null,null,null,null,{"$f":"IFERROR(ROUND(AVERAGEIF(L7:N9,\"<>0\",L7:N9),0),\"-\")","v":"-"}]
[null,null,null,"○","De façon routinière",null,null,null,null,null,null,{"$f":"IF(ISBLANK(G7),0,1)","v":0},{"$f":"IF(ISBLANK(H7),0,3)","v":0},{"$f":"IF(ISBLANK(I7),0,5)","v":0}]
[null,null,null,"○","Dans toutes les plateformes sanitaires et communautaires (points de prestation de services et établissements)",null,null,null,null,null,null,0,0,0]
[null,null,null,null,"Avec utilisation de mécanismes de financement de la prévention du VIH chez les AJF ",null,null,null,null,null,null,0,0,0]
[null,null,"Conseil en matière de réduction des risques liés au VIH et dépistage","Des conseils en matière de réduction des risques liés au VIH et des tests dépistage sont proposés :",null,null,null,null,null,{"$f":"IFERROR(O10,\"-\")","v":"-"},null,null,null,null,{"$f":"IFERROR(ROUND(AVERAGEIF(L11:N13,\"<>0\",L11:N13),0),\"-\")","v":"-"}]
[null,null,null,"○","De façon routinière",null,null,null,null,null,null,0,0,0]
[null,null,null,"○","Dans toutes les plateformes sanitaires et communautaires (points de prestation de services et établissements)",null,null,null,null,null,null,0,0,0]
[null,null,null,null,"Avec utilisation de mécanismes de financement de la prévention du VIH chez les AJF ",null,null,null,null,null,null,0,0,0]
[null,null,"Distribution et promotion actives de préservatifs et de lubrifiants à l’initiative du prestataire de soins","Une distribution et une promotion actives de préservatifs et de lubrifiants à l’initiative du prestataire sont proposées : ",null,null,null,null,null,{"$f":"IFERROR(O14,\"-\")","v":"-"},null,null,null,null,{"$f":"IFERROR(ROUND(AVERAGEIF(L15:N18,\"<>0\",L15:N18),0),\"-\")","v":"-"}]
[null,null,null,"○","De façon routinière",null,null,null,null,null,null,0,0,0]
[null,null,null,"○","Dans toutes les plateformes sanitaires et communautaires (points de prestation de services et établissements)",null,null,null,null,null,null,0,0,0]
[null,null,null,"○","À toutes les AJF à haut risque",null,null,null,null,null,null,0,0,0]
[null,null,null,null,"Avec utilisation de mécanismes de financement de la prévention du VIH chez les AJF ",null,null,null,null,null,null,0,0,0]
[null,null,"Diagnostic et traitement des IST (y compris comme indicateur du risque de VIH) ","Un diagnostic et un traitement des IST (y compris en tant qu’indicateur du risque de VIH) sont disponibles : ",null,null,null,null,null,{"$f":"IFERROR(O19,\"-\")","v":"-"},null,null,null,null,{"$f":"IFERROR(ROUND(AVERAGEIF(L20:N23,\"<>0\",L20:N23),0),\"-\")","v":"-"}]
[null,null,null,"○","De façon routinière",null,null,null,null,null,null,{"$f":"IF(ISBLANK(G20),0,1)","v":0},{"$f":"IF(ISBLANK(H20),0,3)","v":0},{"$f":"IF(ISBLANK(I20),0,5)","v":0}]
[null,null,null,"○","Dans toutes les plateformes sanitaires et communautaires (points de prestation de services et établissements)",null,null,null,null,null,null,0,0,0]
[null,null,null,"○","À toutes les AJF à haut risque",null,null,null,null,null,null,0,0,0]
[null,null,null,null,"Avec utilisation de mécanismes de financement de la prévention du VIH chez les AJF ",null,null,null,null,null,null,0,0,0]
[null,null,"Intégration de services VIH et IST dans la planification familiale ","L’intégration de services VIH et IST dans la planification familiale est disponible :",null,null,null,null,null,{"$f":"IFERROR(O24,\"-\")","v":"-"},null,null,null,null,{"$f":"IFERROR(ROUND(AVERAGEIF(L25:N28,\"<>0\",L25:N28),0),\"-\")","v":"-"}]
[null,null,null,"○","De façon routinière",null,null,null,null,null,null,0,0,0]
[null,null,null,"○","Dans toutes les plateformes sanitaires et communautaires (points de prestation de services et établissements)",null,null,null,null,null,null,0,0,0]
[null,null,null,"○","À toutes les AJF à haut risque",null,null,null,null,null,null,0,0,0]
[null,null,null,null,"Avec utilisation de mécanismes de financement de la prévention du VIH chez les AJF ",null,null,null,null,null,null,0,0,0]
[null,null,"Dépistage des partenaires masculins (lettre d’invitation + autotest) avec orientation vers un traitement antirétroviral ","Des services de dépistage des partenaires masculins et d’orientation vers des traitements antirétroviraux sont disponibles :",null,null,null,null,null,{"$f":"IFERROR(O29,\"-\")","v":"-"},null,null,null,null,{"$f":"IFERROR(ROUND(AVERAGEIF(L30:N33,\"<>0\",L30:N33),0),\"-\")","v":"-"}]
[null,null,null,"○","De façon routinière",null,null,null,null,null,null,0,0,0]
[null,null,null,"○","Dans toutes les plateformes sanitaires et communautaires (points de prestation de services et établissements)",null,null,null,null,null,null,0,0,0]
[null,null,null,"○","À toutes les AJF à haut risque",null,null,null,null,null,null,0,0,0]
[null,null,null,null,"Avec utilisation de mécanismes de financement de la prévention du VIH chez les AJF ",null,null,null,null,null,null,0,0,0]
[null,null,"Services de PaE","Des services de PaE sont disponibles :",null,null,null,null,null,{"$f":"IFERROR(O34,\"-\")","v":"-"},null,null,null,null,{"$f":"IFERROR(ROUND(AVERAGEIF(L35:N38,\"<>0\",L35:N38),0),\"-\")","v":"-"}]
[null,null,null,"○","De façon routinière",null,null,null,null,null,null,0,0,0]
[null,null,null,"○","Dans toutes les plateformes sanitaires et communautaires (points de prestation de services et établissements)",null,null,null,null,null,null,0,0,0]
[null,null,null,"○","À toutes les AJF à haut risque",null,null,null,null,null,null,0,0,0]
[null,null,null,null,"Avec utilisation de mécanismes de financement de la prévention du VIH chez les AJF ",null,null,null,null,null,null,0,0,0]
[null,null,"Campagnes de prévention du VIH en milieu scolaire (connaissances, perception des risques, méthodes, compétences, violence sexiste) liées à des services","Des campagnes de prévention du VIH en milieu scolaire et des liens avec les services sont mis en œuvre :",null,null,null,null,null,{"$f":"IFERROR(O39,\"-\")","v":"-"},null,null,null,null,{"$f":"IFERROR(ROUND(AVERAGEIF(L40:N41,\"<>0\",L40:N41),0),\"-\")","v":"-"}]
[null,null,null,"○","Dans toutes les écoles et tous les établissements d’enseignement supérieur/universités",null,null,null,null,null,null,0,0,0]
[null,null,null,null,"Avec utilisation de mécanismes de financement de la prévention du VIH chez les AJF ",null,null,null,null,null,null,0,0,0]
[null,null,"Introduction accélérée de l’ESC","L’introduction de l’éducation sexuelle complète est accélérée :",null,null,null,null,null,{"$f":"IFERROR(O42,\"-\")","v":"-"},null,null,null,null,{"$f":"IFERROR(ROUND(AVERAGEIF(L43:N44,\"<>0\",L43:N44),0),\"-\")","v":"-"}]
[null,null,null,"○","Dans toutes les écoles et tous les établissements d’enseignement supérieur/universités",null,null,null,null,null,null,0,0,0]
[null,null,null,null,"Avec utilisation de mécanismes de financement de la prévention du VIH chez les AJF ",null,null,null,null,null,null,0,0,0]
[null,null,"Mobilisation communautaire autour des connaissances de base en matière de prévention du VIH, de la perception des risques et des normes sociales connexes","La mobilisation communautaire autour des connaissances de base en matière de prévention du VIH, de la perception des risques et des normes sociales connexes est mise en œuvre :",null,null,null,null,null,{"$f":"IFERROR(O45,\"-\")","v":"-"},null,null,null,null,{"$f":"IFERROR(ROUND(AVERAGEIF(L46:N47,\"<>0\",L46:N47),0),\"-\")","v":"-"}]
[null,null,null,"○","Dans toutes les communautés",null,null,null,null,null,null,0,0,0]
[null,null,null,null,"Avec utilisation de mécanismes de financement de la prévention du VIH chez les AJF ",null,null,null,null,null,null,0,0,0]
[null,null,"Services communautaires de prévention du VIH axés sur la génération de la demande et la sensibilisation","La génération de la demande et la sensibilisation de la communauté aux services de prévention du VIH (y compris les préservatifs, l’autodiagnostic, l’orientation, etc.) sont mises en œuvre :",null,null,null,null,null,{"$f":"IFERROR(O48,\"-\")","v":"-"},null,null,null,null,{"$f":"IFERROR(ROUND(AVERAGEIF(L49:N50,\"<>0\",L49:N50),0),\"-\")","v":"-"}]
[null,null,null,"○","Ciblant toutes les AJF et les hommes de 20 à 39 ans",null,null,null,null,null,null,0,0,0]
[null,null,null,null,"Avec utilisation de mécanismes de financement de la prévention du VIH chez les AJF ",null,null,null,null,null,null,0,0,0]
[null,null,"Génération de la demande de PaE active","Des activités de génération de la demande de PaP sont activement mises en œuvre via des plateformes communautaires (ONG, OSC) :",null,null,null,null,null,{"$f":"IFERROR(O51,\"-\")","v":"-"},null,null,null,null,{"$f":"IFERROR(ROUND(AVERAGEIF(L52:N54,\"<>0\",L52:N54),0),\"-\")","v":"-"}]
[null,null,null,"○","À l’échelle de la communauté",null,null,null,null,null,null,0,0,0]
[null,null,null,"○","Ciblant toutes les AJF à haut risque",null,null,null,null,null,null,0,0,0]
[null,null,null,null,"Avec utilisation de mécanismes de financement de la prévention du VIH chez les AJF ",null,null,null,null,null,null,0,0,0]
[null,null,"Sensibilisation à la communication interpersonnelle structurée (ex. : SASA !, etc.)","Des activités structurées de sensibilisation à la CIP sont mises en œuvre via des plateformes communautaires (ONG, OSC) :",null,null,null,null,null,{"$f":"IFERROR(O55,\"-\")","v":"-"},null,null,null,null,{"$f":"IFERROR(ROUND(AVERAGEIF(L56:N57,\"<>0\",L56:N57),0),\"-\")","v":"-"}]
[null,null,null,"○","Dans toutes les communautés",null,null,null,null,null,null,0,0,0]
[null,null,null,null,"Avec utilisation de mécanismes de financement de la prévention du VIH chez les AJF ",null,null,null,null,null,null,0,0,0]
[null,null,"Transferts monétaires, incitations, autonomisation économique","Des transferts monétaires, des incitations, des initiatives d’autonomisation économique sont disponibles :",null,null,null,null,null,{"$f":"IFERROR(O58,\"-\")","v":"-"},null,null,null,null,{"$f":"IFERROR(ROUND(AVERAGEIF(L59:N61,\"<>0\",L59:N61),0),\"-\")","v":"-"}]
[null,null,null,"○","À toutes les AJF à haut risque",null,null,null,null,null,null,0,0,0]
[null,null,null,null,"Avec utilisation de mécanismes de financement de la prévention du VIH chez les AJF ",null,null,null,null,null,null,0,0,0]
[null,null,null,null,"Avec utilisation d’autres financements (non liés à la prévention AJF)",null,null,null,null,null,null,0,0,0]
[null,null,"Renforcement des actifs sociaux, espaces sécurisés, programmes de parentalité, mentorat","Des services de renforcement des actifs sociaux, des espaces sécurisés, des programmes d’éducation parentale et de mentorat sont disponibles :",null,null,null,null,null,{"$f":"IFERROR(O62,\"-\")","v":"-"},null,null,null,null,{"$f":"IFERROR(ROUND(AVERAGEIF(L63:N65,\"<>0\",L63:N65),0),\"-\")","v":"-"}]
[null,null,null,"○","À toutes les AJF à haut risque",null,null,null,null,null,null,0,0,0]
[null,null,null,null,"Avec utilisation de mécanismes de financement de la prévention du VIH chez les AJF ",null,null,null,null,null,null,0,0,0]
[null,null,null,null,"Avec utilisation d’autres financements (non liés à la prévention AJF)",null,null,null,null,null,null,0,0,0]
[null,null,"Aide à la scolarisation / éducation des filles","Des programmes d’aide à la scolarisation / éducation des filles sont disponibles :",null,null,null,null,null,{"$f":"IFERROR(O66,\"-\")","v":"-"},null,null,null,null,{"$f":"IFERROR(ROUND(AVERAGEIF(L67:N69,\"<>0\",L67:N69),0),\"-\")","v":"-"}]
[null,null,null,"○","À toutes les AJF à haut risque",null,null,null,null,null,null,0,0,0]
[null,null,null,null,"Avec utilisation de mécanismes de financement de la prévention du VIH chez les AJF ",null,null,null,null,null,null,0,0,0]
[null,null,null,null,"Avec utilisation d’autres financements (non liés à la prévention AJF)",null,null,null,null,null,null,0,0,0]
[null,null,"Le bureau local du sida mène un examen régulier et la résolution des problèmes","Le bureau local du sida mène un examen régulier et la résolution des problèmes (comme recommandé)",null,null,null,null,null,{"$f":"IFERROR(O70,\"-\")","v":"-"},null,0,0,0,{"$f":"IFERROR(ROUND(AVERAGEIF(L70:N70,\"<>0\",L70:N70),0),\"-\")","v":"-"}]
[null,null,"Une AJF est présente à plein temps dans le bureau local du sida","Une responsable AJF est présente à plein temps dans le bureau local du sida (comme recommandé)",null,null,null,null,null,{"$f":"IFERROR(O71,\"-\")","v":"-"},null,0,0,0,{"$f":"IFERROR(ROUND(AVERAGEIF(L71:N71,\"<>0\",L71:N71),0),\"-\")","v":"-"}]
[]
[null,null,null,null,null,null,null,null,null,null,null,null,{"$f":"COUNTIF(O6:O71,\"-\")","v":18}]
[null,null,null,null,null,null,null,null,null,null,null,null,{"$f":"COUNTIF(O6:O71,\">0\")","v":0}]
[null,null,null,null,null,null,null,null,null,null,null,"Achèvement de la feuille",{"$f":"M74/(M73+M74)","v":0},{"$f":"1-M75","v":1}]
[]
[null,null,null,null,null,null,null,null,null,null,null,null,18]
[null,null,null,null,null,null,null,null,null,null,null,null,{"$f":"M75+'Incidence MODÉRÉE'!M60","v":0}]
[null,null,null,null,null,null,null,null,null,null,null,"Achèvement de la feuille",{"$f":"M78/M77","v":0},{"$f":"1-M79","v":1}]

{"sheet":"Résultats de programme ","index":10,"n_rows":29,"n_cols":15,"rows_kept":29,"cut":false,"hidden":false,"merged":[[1,2,1,9],[3,3,3,4],[4,2,4,9],[6,2,6,4],[7,2,7,4],[8,2,8,4],[9,2,9,4],[15,2,15,4],[10,2,10,4],[11,2,11,4],[12,2,12,4],[13,2,13,4],[20,2,20,4],[22,2,22,4],[24,2,24,4],[16,2,16,4],[17,2,17,4],[18,2,18,4],[19,2,19,4],[21,2,21,4],[23,2,23,4]]}
[]
[null,null,"Résultats de programme"]
[]
[null,null,"Élément","Critères",null,"S/O","Pas d’objectif","Objectif non atteint ou non conforme aux prévisions","Objectif atteint ou en passe de l’être","Moyenne de l’élément","Commentaires          (le cas échéant)","Absent","Present","Optimal","Average"]
[null,null,"Résultats et indicateurs"]
[null,null,"Indicateurs clés"]
[null,null,"Nombre de nouvelles infections au VIH parmi les AJF",null,null,null,null,null,null,{"$f":"IFERROR(O7,\"-\")","v":"-"},null,{"$f":"IF(ISBLANK(G7),0,1)","v":0},{"$f":"IF(ISBLANK(H7),0,3)","v":0},{"$f":"IF(ISBLANK(I7),0,5)","v":0},{"$f":"IFERROR(IF(ISBLANK(G7),ROUND(AVERAGEIF(L7:N7,\"<>0\",L7:N7),0),L7),\"-\")","v":"-"}]
[null,null,"Pourcentage d’AJF (estimatif) vivant avec le VIH qui connaissent leur statut",null,null,null,null,null,null,"-",null,0,0,0,{"$f":"IFERROR(IF(ISBLANK(G8),ROUND(AVERAGEIF(L8:N8,\"<>0\",L8:N8),0),L8),\"-\")","v":"-"}]
[null,null,"Pourcentage d’AJF vivant avec le VIH et sous traitement antirétroviral qui sont virologiquement négatives",null,null,null,null,null,null,{"$f":"IFERROR(O9,\"-\")","v":"-"},null,{"$f":"IF(ISBLANK(G9),0,1)","v":0},{"$f":"IF(ISBLANK(H9),0,3)","v":0},{"$f":"IF(ISBLANK(I9),0,5)","v":0},{"$f":"IFERROR(IF(ISBLANK(G9),ROUND(AVERAGEIF(L9:N9,\"<>0\",L9:N9),0),L9),\"-\")","v":"-"}]
[null,null,"Pourcentage de partenaires masculins vivant avec le VIH et sous traitement antirétroviral qui sont virologiquement négatifs",null,null,null,null,null,null,"-",null,0,0,0,"-"]
[null,null,"Pourcentage de districts prioritaires (zones administratives) disposant de programmes dédiés aux jeunes femmes et aux partenaires masculins (paquet complet) ",null,null,null,null,null,null,"-",null,0,0,0,"-"]
[null,null,"Pourcentage d’AJF à haut risque de VIH ayant bénéficié de programmes de prévention du VIH au cours des 3 derniers mois",null,null,null,null,null,null,"-",null,0,0,0,"-"]
[null,null,"Utilisation du préservatif avec des partenaires non réguliers (jeunes femmes de 15 à 29 ans)",null,null,null,null,null,null,{"$f":"IFERROR(O13,\"-\")","v":"-"},null,0,0,0,"-"]
[null,null,"Pourcentage d’utilisation de la PaE chez les AJF (par catégorie de risque)",null,null,null,null,null,null,{"$f":"IFERROR(O14,\"-\")","v":"-"},null,{"$f":"IF(ISBLANK(G14),0,1)","v":0},{"$f":"IF(ISBLANK(H14),0,3)","v":0},{"$f":"IF(ISBLANK(I14),0,5)","v":0},{"$f":"IFERROR(IF(ISBLANK(G14),ROUND(AVERAGEIF(L14:N14,\"<>0\",L14:N14),0),L14),\"-\")","v":"-"}]
[null,null,"Indicateurs complémentaires"]
[null,null,"Pourcentage de femmes âgées de 15 à 49 ans, mariées ou en concubinage, qui ont subi des violences physiques ou sexuelles de la part d’un partenaire intime masculin au cours des 12 derniers mois",null,null,null,null,null,null,"-",null,0,0,0,{"$f":"IFERROR(IF(ISBLANK(G16),ROUND(AVERAGEIF(L16:N16,\"<>0\",L16:N16),0),L16),\"-\")","v":"-"}]
[null,null,"Pourcentage d’AJF sexuellement actives ayant eu des partenaires sexuels multiples ",null,null,null,null,null,null,"-",null,{"$f":"IF(ISBLANK(G17),0,1)","v":0},{"$f":"IF(ISBLANK(H17),0,3)","v":0},{"$f":"IF(ISBLANK(I17),0,5)","v":0},"-"]
[null,null,"Pourcentage d’hommes sexuellement actifs ayant eu des partenaires sexuels multiples (hommes de 15 à 49 ans)",null,null,null,null,null,null,"-",null,0,0,0,"-"]
[null,null,"A connaissance d’une source officielle de préservatifs (jeunes femmes de 15 à 29 ans) ",null,null,null,null,null,null,"-",null,0,0,0,"-"]
[null,null,"A connaissance d’une source formelle de préservatifs (jeunes hommes de 15à 29 ans) ",null,null,null,null,null,null,"-",null,0,0,0,"-"]
[null,null,"Utilisation du préservatif avec des partenaires non réguliers (jeunes femmes de 15 à 29 ans) ",null,null,null,null,null,null,{"$f":"IFERROR(O21,\"-\")","v":"-"},null,0,0,0,"-"]
[null,null,"Pourcentage d’AJF dont on sait qu’elles sont sous traitement 12 mois après le début de la thérapie antirétrovirale",null,null,null,null,null,null,{"$f":"IFERROR(O22,\"-\")","v":"-"},null,0,0,0,"-"]
[null,null,"Pourcentage de jeunes ne travaillant pas, ne suivant pas d’études ou de formation (NTEF)",null,null,null,null,null,null,{"$f":"IFERROR(O23,\"-\")","v":"-"},null,0,0,0,"-"]
[null,null,"Accès à la PPE dans le cadre d’une évaluation des risques et d’un soutien",null,null,null,null,null,null,{"$f":"IFERROR(O24,\"-\")","v":"-"},null,{"$f":"IF(ISBLANK(G24),0,1)","v":0},{"$f":"IF(ISBLANK(H24),0,3)","v":0},{"$f":"IF(ISBLANK(I24),0,5)","v":0},{"$f":"IFERROR(IF(ISBLANK(G24),ROUND(AVERAGEIF(L24:N24,\"<>0\",L24:N24),0),L24),\"-\")","v":"-"}]
[null,null,"Pourcentage d’AJF ayant terminé l’enseignement secondaire",null,null,null,null,null,null,{"$f":"IFERROR(O25,\"-\")","v":"-"},null,0,0,0,"-"]
[]
[null,null,null,null,null,null,null,null,null,null,null,null,{"$f":"COUNTIF(O7:O25,\"-\")","v":18}]
[null,null,null,null,null,null,null,null,null,null,null,null,{"$f":"COUNTIF(O7:O25,\">0\")","v":0}]
[null,null,null,null,null,null,null,null,null,null,null,"Achèvement de la feuille",{"$f":"M28/(M27+M28)","v":0},{"$f":"1-M29","v":1}]

{"sheet":"Résumé des notes","index":11,"n_rows":104,"n_cols":11,"rows_kept":104,"cut":false,"hidden":false,"merged":[[1,2,1,6],[8,3,9,3],[10,3,14,3],[2,3,7,3],[2,2,14,2],[47,3,60,3],[61,3,78,3],[47,2,78,2],[79,3,86,3],[87,3,96,3],[79,2,98,2],[15,2,46,2],[15,3,18,3],[19,3,20,3],[21,3,24,3],[25,3,27,3],[28,3,35,3],[37,3,38,3],[39,3,46,3]]}
[]
[null,null,"Résumé des notes"]
[null,null,"Gestion de programme","Leadership et coordination",null,"Stratégie nationale et Plan stratégique",{"$f":"'Gestion de programme'!O6","v":"-"}]
[null,null,null,null,null,"Plans nationaux et infranationaux",{"$f":"'Gestion de programme'!O19","v":"-"}]
[null,null,null,null,null,"Groupe de travail technique national (GTT) pour la prévention chez les AJF/jeunes",{"$f":"'Gestion de programme'!O20","v":"-"}]
[null,null,null,null,null,"Obligation de rendre compte",{"$f":"'Gestion de programme'!O31","v":"-"}]
[null,null,null,null,null,"Plan de renforcement des capacités et d’assistance technique",{"$f":"'Gestion de programme'!O40","v":"-"}]
[null,null,null,null,null,"Plan de durabilité et feuille de route de transition",{"$f":"'Gestion de programme'!O48","v":"-"}]
[null,null,null,"Stratégie, politique et réglementation",null,"Politiques et lois",{"$f":"'Gestion de programme'!O53","v":"-"}]
[null,null,null,null,null,"Lignes directrices",{"$f":"'Gestion de programme'!O65","v":"-"}]
[null,null,null,"Financement",null,"Calcul des coûts",{"$f":"'Gestion de programme'!O76","v":"-"}]
[null,null,null,null,null,"Mobilisation des ressources et financement",{"$f":"'Gestion de programme'!O79","v":"-"}]
[null,null,null,null,null,"Ressourcement national",{"$f":"'Gestion de programme'!O80","v":"-"}]
[null,null,null,null,null,"Contrats sociaux",{"$f":"'Gestion de programme'!O81","v":"-"}]
[null,null,null,null,null,"Planification budgétaire",{"$f":"'Gestion de programme'!O83","v":"-"}]
[null,null,"Mise en œuvre de programme","Ciblage et planification",null,"Évaluation démographique et désagrégation",{"$f":"'Mise en œuvre de programme'!O6","v":"-"}]
[null,null,null,null,null,"Évaluation des besoins",{"$f":"'Mise en œuvre de programme'!O12","v":"-"}]
[null,null,null,null,null,"Caractérisation des partenaires masculins des AJF",{"$f":"'Mise en œuvre de programme'!O16","v":"-"}]
[null,null,null,null,null,"Définition de cibles",{"$f":"'Mise en œuvre de programme'!O21","v":"-"}]
[null,null,null,"Estimation de la taille de la population par niveau d’incidence du VIH",null,"Estimation de la taille de la population - incidence modérée",{"$f":"'Mise en œuvre de programme'!O30","v":"-"}]
[null,null,null,null,null,"Estimation de la taille de la population - incidence élevée",{"$f":"'Mise en œuvre de programme'!O34","v":"-"}]
[null,null,null,"Identifier les groupes « les plus vulnérables » ou « les plus à risque »",null,"Évaluation épidémiologique (enquête de séroprévalence et déterminants du risque)",{"$f":"'Mise en œuvre de programme'!O39","v":"-"}]
[null,null,null,null,null,"Facteurs de risque comportementaux",{"$f":"'Mise en œuvre de programme'!O49","v":"-"}]
[null,null,null,null,null,"Facteurs de risque biologiques",{"$f":"'Mise en œuvre de programme'!O60","v":"-"}]
[null,null,null,null,null,"Facteurs de risque structurels",{"$f":"'Mise en œuvre de programme'!O65","v":"-"}]
[null,null,null,"Élaborer un cadre de résultats (théorie du changement)",null,"Définir et prioriser les paquets de prévention du VIH par catégorie d’incidence applicable",{"$f":"'Mise en œuvre de programme'!O78","v":"-"}]
[null,null,null,null,null,"Cadre de résultats/Théorie du changement comprenant des cibles de couverture du programme",{"$f":"'Mise en œuvre de programme'!O79","v":"-"}]
[null,null,null,null,null,"Cadre de résultats/Théorie du changement comprenant des activités transversales et des actions complémentaires",{"$f":"'Mise en œuvre de programme'!O84","v":"-"}]
[null,null,null,"Définir/Élaborer des systèmes de prestation",null,"Élaborer/Assurer des plateformes de santé",{"$f":"'Mise en œuvre de programme'!O94","v":"-"}]
[null,null,null,null,null,"Élaborer/Assurer des plateformes d’éducation",{"$f":"'Mise en œuvre de programme'!O103","v":"-"}]
[null,null,null,null,null,"Développer/Assurer des plateformes communautaires (dirigées par des organisations non gouvernementales (ONG)/organisations de la société civile (OSC)) ",{"$f":"'Mise en œuvre de programme'!O108","v":"-"}]
[null,null,null,null,null,"Services accessibles",{"$f":"'Mise en œuvre de programme'!O118","v":"-"}]
[null,null,null,null,null,"Services adaptés aux jeunes/acceptables",{"$f":"'Mise en œuvre de programme'!O126","v":"-"}]
[null,null,null,null,null,"Services sur-mesure/appropriés",{"$f":"'Mise en œuvre de programme'!O134","v":"-"}]
[null,null,null,null,null,"Pairs-éducateurs de proximité (PEP), pairs-testeurs et agents de santé communautaires",{"$f":"'Mise en œuvre de programme'!O138","v":"-"}]
[null,null,null,null,null,"Engagement significatif des communautés affectées dans le leadership et la coordination",{"$f":"'Mise en œuvre de programme'!O147","v":"-"}]
[null,null,null,"Définir le mécanisme de gestion",null,"Systèmes de gestion nationaux et infranationaux",{"$f":"'Mise en œuvre de programme'!O152","v":"-"}]
[null,null,null,"Élaborer un plan opérationnel chiffré",null,"Plan opérationnel",{"$f":"'Mise en œuvre de programme'!O167","v":"-"}]
[null,null,null,null,null,"Ressources disponibles",{"$f":"'Mise en œuvre de programme'!O171","v":"-"}]
[null,null,null,"Élaborer un plan de suivi et d’évaluation",null,"Suivi de routine",{"$f":"'Mise en œuvre de programme'!O179","v":"-"}]
[null,null,null,null,null,"Suivi du système d’orientation vers d’autres services",{"$f":"'Mise en œuvre de programme'!O189","v":"-"}]
[null,null,null,null,null,"Évaluation de la qualité",{"$f":"'Mise en œuvre de programme'!O196","v":"-"}]
[null,null,null,null,null,"Surveillance ",{"$f":"'Mise en œuvre de programme'!O202","v":"-"}]
[null,null,null,null,null,"Flux de données",{"$f":"'Mise en œuvre de programme'!O207","v":"-"}]
[null,null,null,null,null,"Données pour la prise de décision",{"$f":"'Mise en œuvre de programme'!O213","v":"-"}]
[null,null,null,null,null,"Utilisation de Codes d’identification uniques pour le suivi des programmes",{"$f":"'Mise en œuvre de programme'!O222","v":"-"}]
[null,null,null,null,null,"Suivi budgétaire",{"$f":"'Mise en œuvre de programme'!O227","v":"-"}]
[null,null,"Paquet de prévention AJF","Facteurs favorables au Programme national de prévention du VIH sur TOUS les sites",null,"Accès à l’enseignement primaire et secondaire ",{"$f":"'TOUT – Toute incidence'!O6","v":"-"}]
[null,null,null,null,null,"Introduction universelle de programmes complets d’éducation sexuelle et de santé scolaire ",{"$f":"'TOUT – Toute incidence'!O15","v":"-"}]
[null,null,null,null,null,"Aide sociale et autonomisation économique des adolescents vulnérables",{"$f":"'TOUT – Toute incidence'!O32","v":"-"}]
[null,null,null,null,null,"Accès à la santé sexuelle et reproductive intégrée",{"$f":"'TOUT – Toute incidence'!O38","v":"-"}]
[null,null,null,null,null,"Accès à la SSRDC, avec soutien juridique et politique ",{"$f":"'TOUT – Toute incidence'!O51","v":"-"}]
[null,null,null,null,null,"Systèmes de santé adaptés aux jeunes ",{"$f":"'TOUT – Toute incidence'!O69","v":"-"}]
[null,null,null,null,null,"Services de dépistage et de traitement du VIH",{"$f":"'TOUT – Toute incidence'!O79","v":"-"}]
[null,null,null,null,null,"PPE",{"$f":"'TOUT – Toute incidence'!O91","v":"-"}]
[null,null,null,null,null,"Prévention de la transmission verticale du VIH dans le cadre de la santé maternelle ",{"$f":"'TOUT – Toute incidence'!O98","v":"-"}]
[null,null,null,null,null,"Action pour traiter les droits, la stigmatisation et la discrimination liés au VIH",{"$f":"'TOUT – Toute incidence'!O104","v":"-"}]
[null,null,null,null,null,"Préservatifs masculins et féminins et lubrifiants ",{"$f":"'TOUT – Toute incidence'!O111","v":"-"}]
[null,null,null,null,null,"Circoncisions masculines médicales volontaires dans les pays prioritaires concernés",{"$f":"'TOUT – Toute incidence'!O120","v":"-"}]
[null,null,null,null,null,"Informations nationales de base sur le VIH, communications sur la réduction des risques ",{"$f":"'TOUT – Toute incidence'!O123","v":"-"}]
[null,null,null,null,null,"Paquets complets de prévention du VIH pour les jeunes clés et vulnérables",{"$f":"'TOUT – Toute incidence'!O136","v":"-"}]
[null,null,null,"Paquets de prévention du VIH pour les AJF dans les lieux à incidence ÉLEVÉE",null,"Profil d’évaluation des risques liés au VIH et aux IST",{"$f":"IF('Incidence MODÉRÉE'!O6<>\"-\",'Incidence MODÉRÉE'!O6,'Incidence ÉLEVÉE'!O6)","v":"-"}]
[null,null,null,null,null,"Conseil en matière de réduction des risques liés au VIH et dépistage ",{"$f":"IF('Incidence MODÉRÉE'!O10<>\"-\",'Incidence MODÉRÉE'!O10,'Incidence ÉLEVÉE'!O10)","v":"-"}]
[null,null,null,null,null,"Distribution et promotion actives de préservatifs et de lubrifiants à l’initiative du prestataire de soins",{"$f":"IF('Incidence MODÉRÉE'!O14<>\"-\",'Incidence MODÉRÉE'!O14,'Incidence ÉLEVÉE'!O14)","v":"-"}]
[null,null,null,null,null,"Diagnostic et traitement des IST (y compris comme indicateur du risque de VIH) ",{"$f":"IF('Incidence MODÉRÉE'!O18<>\"-\",'Incidence MODÉRÉE'!O18,'Incidence ÉLEVÉE'!O19)","v":"-"}]
[null,null,null,null,null,"Intégration de services VIH et IST dans la planification familiale",{"$f":"IF('Incidence MODÉRÉE'!O21<>\"-\",'Incidence MODÉRÉE'!O21,'Incidence ÉLEVÉE'!O24)","v":"-"}]
[null,null,null,null,null,"Dépistage des partenaires masculins (lettre d’invitation + autotest) avec orientation vers un traitement antirétroviral",{"$f":"IF('Incidence MODÉRÉE'!O25<>\"-\",'Incidence MODÉRÉE'!O25,'Incidence ÉLEVÉE'!O29)","v":"-"}]
[null,null,null,null,null,"Services de PaE",{"$f":"IF('Incidence MODÉRÉE'!O29<>\"-\",'Incidence MODÉRÉE'!O29,'Incidence ÉLEVÉE'!O34)","v":"-"}]
[null,null,null,null,null,"Campagnes de prévention du VIH en milieu scolaire (connaissances, perception des risques, méthodes, compétences, violence sexiste) liées à des services",{"$f":"IF('Incidence MODÉRÉE'!O33<>\"-\",'Incidence MODÉRÉE'!O33,'Incidence ÉLEVÉE'!O39)","v":"-"}]
[null,null,null,null,null,"Introduction accélérée de l’éducation sexuelle complète",{"$f":"IF('Incidence MODÉRÉE'!O36<>\"-\",'Incidence MODÉRÉE'!O36,'Incidence ÉLEVÉE'!O42)","v":"-"}]
[null,null,null,null,null,"Mobilisation communautaire autour des connaissances de base en matière de prévention du VIH, de la perception des risques et des normes sociales connexes",{"$f":"IF('Incidence MODÉRÉE'!O38<>\"-\",'Incidence MODÉRÉE'!O38,'Incidence ÉLEVÉE'!O45)","v":"-"}]
[null,null,null,null,null,"Génération de la demande et la sensibilisation de la communauté aux services de prévention du VIH     (y compris les préservatifs, l’autodiagnostic, l’orientation)",{"$f":"IF('Incidence MODÉRÉE'!O41<>\"-\",'Incidence MODÉRÉE'!O41,'Incidence ÉLEVÉE'!O48)","v":"-"}]
[null,null,null,null,null,"Génération de la demande de PaE active",{"$f":"IF('Incidence MODÉRÉE'!O44<>\"-\",'Incidence MODÉRÉE'!O44,'Incidence ÉLEVÉE'!O51)","v":"-"}]
[null,null,null,null,null,"Sensibilisation à la communication interpersonnelle structurée (ex. : SASA !, etc.)",{"$f":"IF('Incidence MODÉRÉE'!O47<>\"-\",'Incidence MODÉRÉE'!O47,'Incidence ÉLEVÉE'!O55)","v":"-"}]
[null,null,null,null,null,"Transferts monétaires, incitations, autonomisation économique",{"$f":"IF('Incidence MODÉRÉE'!O50<>\"-\",'Incidence MODÉRÉE'!O50,'Incidence ÉLEVÉE'!O58)","v":"-"}]
[null,null,null,null,null,"Renforcement des actifs sociaux, espaces sécurisés, programmes de parentalité, mentorat",{"$f":"IF('Incidence MODÉRÉE'!O52<>\"-\",'Incidence MODÉRÉE'!O52,'Incidence ÉLEVÉE'!O62)","v":"-"}]
[null,null,null,null,null,"Aide à la scolarisation / éducation des filles",{"$f":"IF('Incidence MODÉRÉE'!O54<>\"-\",'Incidence MODÉRÉE'!O54,'Incidence ÉLEVÉE'!O66)","v":"-"}]
[null,null,null,null,null,"Le bureau local du sida mène un examen régulier et la résolution des problèmes",{"$f":"IF('Incidence MODÉRÉE'!O56<>\"-\",'Incidence MODÉRÉE'!O56,'Incidence ÉLEVÉE'!O70)","v":"-"}]
[null,null,null,null,null,"Présence d’une AJF à plein temps dans le bureau local du sida",{"$f":"IF('Incidence MODÉRÉE'!O57<>\"-\",'Incidence MODÉRÉE'!O57,'Incidence ÉLEVÉE'!O71)","v":"-"}]
[null,null,"Résultats de programme","Indicateurs clés",null,"Nombre de nouvelles infections au VIH parmi les AJF",{"$f":"'Résultats de programme '!O7","v":"-"}]
[null,null,null,null,null,"Pourcentage d’AJF (estimatif) vivant avec le VIH qui connaissent leur statut",{"$f":"'Résultats de programme '!O8","v":"-"}]
[null,null,null,null,null,"Pourcentage d’AJF vivant avec le VIH et sous traitement antirétroviral qui sont virologiquement négatives",{"$f":"'Résultats de programme '!O9","v":"-"}]
[null,null,null,null,null,"Pourcentage de partenaires masculins vivant avec le VIH et sous traitement antirétroviral qui sont virologiquement négatifs",{"$f":"'Résultats de programme '!O10","v":"-"}]
[null,null,null,null,null,"Pourcentage de districts prioritaires (zones administratives) disposant de programmes dédiés aux jeunes femmes et aux partenaires masculins (paquet complet) ",{"$f":"'Résultats de programme '!O11","v":"-"}]
[null,null,null,null,null,"Pourcentage d’AJF à haut risque de VIH ayant bénéficié de programmes de prévention du VIH au cours des 3 derniers mois",{"$f":"'Résultats de programme '!O12","v":"-"}]
[null,null,null,null,null,"Utilisation du préservatif avec des partenaires non réguliers (jeunes femmes de 15 à 29 ans)",{"$f":"'Résultats de programme '!O13","v":"-"}]
[null,null,null,null,null,"Pourcentage d’utilisation de la PaE chez les AJF (par catégorie de risque)",{"$f":"'Résultats de programme '!O14","v":"-"}]
[null,null,null,"Indicateurs complémentaires",null,"Pourcentage de femmes âgées de 15 à 49 ans, mariées ou en concubinage, qui ont subi des violences physiques ou sexuelles de la part d’un partenaire intime masculin au cours des 12 derniers mois",{"$f":"'Résultats de programme '!O16","v":"-"}]
[null,null,null,null,null,"Pourcentage d’AJF sexuellement actives ayant eu des partenaires sexuels multiples ",{"$f":"'Résultats de programme '!O17","v":"-"}]
[null,null,null,null,null,"Pourcentage d’hommes sexuellement actifs ayant eu des partenaires sexuels multiples (hommes de 15 à 49 ans)",{"$f":"'Résultats de programme '!O18","v":"-"}]
[null,null,null,null,null,"A connaissance d’une source officielle de préservatifs (jeunes femmes de 15 à 29 ans) ",{"$f":"'Résultats de programme '!O19","v":"-"}]
[null,null,null,null,null,"A connaissance d’une source formelle de préservatifs (jeunes hommes de 15 à 29 ans) ",{"$f":"'Résultats de programme '!O20","v":"-"}]
[null,null,null,null,null,"Utilisation du préservatif avec des partenaires non réguliers (jeunes femmes de 15 à 29 ans) ",{"$f":"'Résultats de programme '!O21","v":"-"}]
[null,null,null,null,null,"Pourcentage d’AJF dont on sait qu’elles sont sous traitement 12 mois après le début de la thérapie antirétrovirale",{"$f":"'Résultats de programme '!O22","v":"-"}]
[null,null,null,null,null,"Pourcentage de jeunes ne travaillant pas, ne suivant pas d’études ou de formation (NTEF)",{"$f":"'Résultats de programme '!O23","v":"-"}]
[null,null,null,null,null,"Accès à la PPE dans le cadre d’une évaluation des risques et d’un soutien",{"$f":"'Résultats de programme '!O24","v":"-"}]
[null,null,null,null,null,"Pourcentage d’AJF ayant terminé l’enseignement secondaire",{"$f":"'Résultats de programme '!O25","v":"-"}]
[null,null,null,"Indicateurs de durabilité",null,null,{"$f":"IFERROR(ROUND(AVERAGE('Gestion de programme'!P6:P86),0),\"-\")","v":"-"}]
[null,null,null,"Indicateurs COVID-19 (et autres pandémies)",null,null,{"$f":" IF((SUM('Gestion de programme'!L74:N74)+SUM('TOUT – Toute incidence'!L143:N143)+SUM('TOUT – Toute incidence'!L144:N144))/3=0,\"-\", ROUND((SUM('Gestion de programme'!L74:N74)+SUM('TOUT – Toute incidence'!L143:N143)+SUM('TOUT – Toute incidence'!L144:N144))/3,0))","v":"-"}]
[]
[]
[null,null,null,null,null,null,null,null,null,{"$f":"COUNTIF(G3:G99,\"-\")","v":97}]
[null,null,null,null,null,null,null,null,null,{"$f":"COUNTIF(G3:G99,\">0\")","v":0}]
[null,null,null,null,null,null,null,null,"Achèvement de l'OEAP",{"$f":"J103/(J102+J103)","v":0},{"$f":"1-J104","v":1}]

{"sheet":"Étapes suivantes","index":12,"n_rows":54,"n_cols":8,"rows_kept":54,"cut":false,"hidden":false,"merged":[[1,2,1,8],[11,2,11,3]]}
[]
[null,null,"Étapes suivantes"]
[]
[null,null,null,null,null,"Élément à traiter/améliorer","Raison de la mauvaise performance","Actions proposées (ex. : soutien requis ou actions correctives). Le cas échéant, veillez à désagréger les actions proposées par catégorie d’âge : 15-19, 20-24 et 25-29 ans"]
[null,null,null,null,1,{"$f":"IFERROR(INDEX('Résumé des notes'!$F$1:$F$99,SMALL(IF('Résumé des notes'!$G$1:$G$99<=$C$12,ROW('Résumé des notes'!$G$1:$G$99)),ROW(3:3))),\"\")","v":""}]
[null,null,null,null,2,{"$f":"IFERROR(INDEX('Résumé des notes'!$F$1:$F$99,SMALL(IF('Résumé des notes'!$G$1:$G$99<=$C$12,ROW('Résumé des notes'!$G$1:$G$99)),ROW(4:4))),\"\")","v":""}]
[null,null,null,null,3,{"$f":"IFERROR(INDEX('Résumé des notes'!$F$1:$F$99,SMALL(IF('Résumé des notes'!$G$1:$G$99<=$C$12,ROW('Résumé des notes'!$G$1:$G$99)),ROW(5:5))),\"\")","v":""}]
[null,null,null,null,4,{"$f":"IFERROR(INDEX('Résumé des notes'!$F$1:$F$99,SMALL(IF('Résumé des notes'!$G$1:$G$99<=$C$12,ROW('Résumé des notes'!$G$1:$G$99)),ROW(6:6))),\"\")","v":""}]
[null,null,null,null,5,{"$f":"IFERROR(INDEX('Résumé des notes'!$F$1:$F$99,SMALL(IF('Résumé des notes'!$G$1:$G$99<=$C$12,ROW('Résumé des notes'!$G$1:$G$99)),ROW(7:7))),\"\")","v":""}]
[null,null,null,null,6,{"$f":"IFERROR(INDEX('Résumé des notes'!$F$1:$F$99,SMALL(IF('Résumé des notes'!$G$1:$G$99<=$C$12,ROW('Résumé des notes'!$G$1:$G$99)),ROW(8:8))),\"\")","v":""}]
[null,null,null,null,7,{"$f":"IFERROR(INDEX('Résumé des notes'!$F$1:$F$99,SMALL(IF('Résumé des notes'!$G$1:$G$99<=$C$12,ROW('Résumé des notes'!$G$1:$G$99)),ROW(9:9))),\"\")","v":""}]
[null,null,1,null,8,{"$f":"IFERROR(INDEX('Résumé des notes'!$F$1:$F$99,SMALL(IF('Résumé des notes'!$G$1:$G$99<=$C$12,ROW('Résumé des notes'!$G$1:$G$99)),ROW(10:10))),\"\")","v":""}]
[null,null,null,null,9,{"$f":"IFERROR(INDEX('Résumé des notes'!$F$1:$F$99,SMALL(IF('Résumé des notes'!$G$1:$G$99<=$C$12,ROW('Résumé des notes'!$G$1:$G$99)),ROW(11:11))),\"\")","v":""}]
[null,null,null,null,10,{"$f":"IFERROR(INDEX('Résumé des notes'!$F$1:$F$99,SMALL(IF('Résumé des notes'!$G$1:$G$99<=$C$12,ROW('Résumé des notes'!$G$1:$G$99)),ROW(12:12))),\"\")","v":""}]
[null,null,null,null,11,{"$f":"IFERROR(INDEX('Résumé des notes'!$F$1:$F$99,SMALL(IF('Résumé des notes'!$G$1:$G$99<=$C$12,ROW('Résumé des notes'!$G$1:$G$99)),ROW(13:13))),\"\")","v":""}]
[null,null,null,null,12,{"$f":"IFERROR(INDEX('Résumé des notes'!$F$1:$F$99,SMALL(IF('Résumé des notes'!$G$1:$G$99<=$C$12,ROW('Résumé des notes'!$G$1:$G$99)),ROW(14:14))),\"\")","v":""}]
[null,null,null,null,13,{"$f":"IFERROR(INDEX('Résumé des notes'!$F$1:$F$99,SMALL(IF('Résumé des notes'!$G$1:$G$99<=$C$12,ROW('Résumé des notes'!$G$1:$G$99)),ROW(15:15))),\"\")","v":""}]
[null,null,null,null,14,{"$f":"IFERROR(INDEX('Résumé des notes'!$F$1:$F$99,SMALL(IF('Résumé des notes'!$G$1:$G$99<=$C$12,ROW('Résumé des notes'!$G$1:$G$99)),ROW(16:16))),\"\")","v":""}]
[null,null,null,null,15,{"$f":"IFERROR(INDEX('Résumé des notes'!$F$1:$F$99,SMALL(IF('Résumé des notes'!$G$1:$G$99<=$C$12,ROW('Résumé des notes'!$G$1:$G$99)),ROW(17:17))),\"\")","v":""}]
[null,null,null,null,16,{"$f":"IFERROR(INDEX('Résumé des notes'!$F$1:$F$99,SMALL(IF('Résumé des notes'!$G$1:$G$99<=$C$12,ROW('Résumé des notes'!$G$1:$G$99)),ROW(18:18))),\"\")","v":""}]
[null,null,null,null,17,{"$f":"IFERROR(INDEX('Résumé des notes'!$F$1:$F$99,SMALL(IF('Résumé des notes'!$G$1:$G$99<=$C$12,ROW('Résumé des notes'!$G$1:$G$99)),ROW(19:19))),\"\")","v":""}]
[null,null,null,null,18,{"$f":"IFERROR(INDEX('Résumé des notes'!$F$1:$F$99,SMALL(IF('Résumé des notes'!$G$1:$G$99<=$C$12,ROW('Résumé des notes'!$G$1:$G$99)),ROW(20:20))),\"\")","v":""}]
[null,null,null,null,19,{"$f":"IFERROR(INDEX('Résumé des notes'!$F$1:$F$99,SMALL(IF('Résumé des notes'!$G$1:$G$99<=$C$12,ROW('Résumé des notes'!$G$1:$G$99)),ROW(21:21))),\"\")","v":""}]
[null,null,null,null,20,{"$f":"IFERROR(INDEX('Résumé des notes'!$F$1:$F$99,SMALL(IF('Résumé des notes'!$G$1:$G$99<=$C$12,ROW('Résumé des notes'!$G$1:$G$99)),ROW(22:22))),\"\")","v":""}]
[null,null,null,null,21,{"$f":"IFERROR(INDEX('Résumé des notes'!$F$1:$F$99,SMALL(IF('Résumé des notes'!$G$1:$G$99<=$C$12,ROW('Résumé des notes'!$G$1:$G$99)),ROW(23:23))),\"\")","v":""}]
[null,null,null,null,22,{"$f":"IFERROR(INDEX('Résumé des notes'!$F$1:$F$99,SMALL(IF('Résumé des notes'!$G$1:$G$99<=$C$12,ROW('Résumé des notes'!$G$1:$G$99)),ROW(24:24))),\"\")","v":""}]
[null,null,null,null,23,{"$f":"IFERROR(INDEX('Résumé des notes'!$F$1:$F$99,SMALL(IF('Résumé des notes'!$G$1:$G$99<=$C$12,ROW('Résumé des notes'!$G$1:$G$99)),ROW(25:25))),\"\")","v":""}]
[null,null,null,null,24,{"$f":"IFERROR(INDEX('Résumé des notes'!$F$1:$F$99,SMALL(IF('Résumé des notes'!$G$1:$G$99<=$C$12,ROW('Résumé des notes'!$G$1:$G$99)),ROW(26:26))),\"\")","v":""}]
[null,null,null,null,25,{"$f":"IFERROR(INDEX('Résumé des notes'!$F$1:$F$99,SMALL(IF('Résumé des notes'!$G$1:$G$99<=$C$12,ROW('Résumé des notes'!$G$1:$G$99)),ROW(27:27))),\"\")","v":""}]
[null,null,null,null,26,{"$f":"IFERROR(INDEX('Résumé des notes'!$F$1:$F$99,SMALL(IF('Résumé des notes'!$G$1:$G$99<=$C$12,ROW('Résumé des notes'!$G$1:$G$99)),ROW(28:28))),\"\")","v":""}]
[null,null,null,null,27,{"$f":"IFERROR(INDEX('Résumé des notes'!$F$1:$F$99,SMALL(IF('Résumé des notes'!$G$1:$G$99<=$C$12,ROW('Résumé des notes'!$G$1:$G$99)),ROW(29:29))),\"\")","v":""}]
[null,null,null,null,28,{"$f":"IFERROR(INDEX('Résumé des notes'!$F$1:$F$99,SMALL(IF('Résumé des notes'!$G$1:$G$99<=$C$12,ROW('Résumé des notes'!$G$1:$G$99)),ROW(30:30))),\"\")","v":""}]
[null,null,null,null,29,{"$f":"IFERROR(INDEX('Résumé des notes'!$F$1:$F$99,SMALL(IF('Résumé des notes'!$G$1:$G$99<=$C$12,ROW('Résumé des notes'!$G$1:$G$99)),ROW(31:31))),\"\")","v":""}]
[null,null,null,null,30,{"$f":"IFERROR(INDEX('Résumé des notes'!$F$1:$F$99,SMALL(IF('Résumé des notes'!$G$1:$G$99<=$C$12,ROW('Résumé des notes'!$G$1:$G$99)),ROW(32:32))),\"\")","v":""}]
[null,null,null,null,31,{"$f":"IFERROR(INDEX('Résumé des notes'!$F$1:$F$99,SMALL(IF('Résumé des notes'!$G$1:$G$99<=$C$12,ROW('Résumé des notes'!$G$1:$G$99)),ROW(33:33))),\"\")","v":""}]
[null,null,null,null,32,{"$f":"IFERROR(INDEX('Résumé des notes'!$F$1:$F$99,SMALL(IF('Résumé des notes'!$G$1:$G$99<=$C$12,ROW('Résumé des notes'!$G$1:$G$99)),ROW(34:34))),\"\")","v":""}]
[null,null,null,null,33,{"$f":"IFERROR(INDEX('Résumé des notes'!$F$1:$F$99,SMALL(IF('Résumé des notes'!$G$1:$G$99<=$C$12,ROW('Résumé des notes'!$G$1:$G$99)),ROW(35:35))),\"\")","v":""}]
[null,null,null,null,34,{"$f":"IFERROR(INDEX('Résumé des notes'!$F$1:$F$99,SMALL(IF('Résumé des notes'!$G$1:$G$99<=$C$12,ROW('Résumé des notes'!$G$1:$G$99)),ROW(36:36))),\"\")","v":""}]
[null,null,null,null,35,{"$f":"IFERROR(INDEX('Résumé des notes'!$F$1:$F$99,SMALL(IF('Résumé des notes'!$G$1:$G$99<=$C$12,ROW('Résumé des notes'!$G$1:$G$99)),ROW(37:37))),\"\")","v":""}]
[null,null,null,null,36,{"$f":"IFERROR(INDEX('Résumé des notes'!$F$1:$F$99,SMALL(IF('Résumé des notes'!$G$1:$G$99<=$C$12,ROW('Résumé des notes'!$G$1:$G$99)),ROW(38:38))),\"\")","v":""}]
[null,null,null,null,37,{"$f":"IFERROR(INDEX('Résumé des notes'!$F$1:$F$99,SMALL(IF('Résumé des notes'!$G$1:$G$99<=$C$12,ROW('Résumé des notes'!$G$1:$G$99)),ROW(39:39))),\"\")","v":""}]
[null,null,null,null,38,{"$f":"IFERROR(INDEX('Résumé des notes'!$F$1:$F$99,SMALL(IF('Résumé des notes'!$G$1:$G$99<=$C$12,ROW('Résumé des notes'!$G$1:$G$99)),ROW(40:40))),\"\")","v":""}]
[null,null,null,null,39,{"$f":"IFERROR(INDEX('Résumé des notes'!$F$1:$F$99,SMALL(IF('Résumé des notes'!$G$1:$G$99<=$C$12,ROW('Résumé des notes'!$G$1:$G$99)),ROW(41:41))),\"\")","v":""}]
[null,null,null,null,40,{"$f":"IFERROR(INDEX('Résumé des notes'!$F$1:$F$99,SMALL(IF('Résumé des notes'!$G$1:$G$99<=$C$12,ROW('Résumé des notes'!$G$1:$G$99)),ROW(42:42))),\"\")","v":""}]
[null,null,null,null,41,{"$f":"IFERROR(INDEX('Résumé des notes'!$F$1:$F$99,SMALL(IF('Résumé des notes'!$G$1:$G$99<=$C$12,ROW('Résumé des notes'!$G$1:$G$99)),ROW(43:43))),\"\")","v":""}]
[null,null,null,null,42,{"$f":"IFERROR(INDEX('Résumé des notes'!$F$1:$F$99,SMALL(IF('Résumé des notes'!$G$1:$G$99<=$C$12,ROW('Résumé des notes'!$G$1:$G$99)),ROW(44:44))),\"\")","v":""}]
[null,null,null,null,43,{"$f":"IFERROR(INDEX('Résumé des notes'!$F$1:$F$99,SMALL(IF('Résumé des notes'!$G$1:$G$99<=$C$12,ROW('Résumé des notes'!$G$1:$G$99)),ROW(45:45))),\"\")","v":""}]
[null,null,null,null,44,{"$f":"IFERROR(INDEX('Résumé des notes'!$F$1:$F$99,SMALL(IF('Résumé des notes'!$G$1:$G$99<=$C$12,ROW('Résumé des notes'!$G$1:$G$99)),ROW(46:46))),\"\")","v":""}]
[null,null,null,null,45,{"$f":"IFERROR(INDEX('Résumé des notes'!$F$1:$F$99,SMALL(IF('Résumé des notes'!$G$1:$G$99<=$C$12,ROW('Résumé des notes'!$G$1:$G$99)),ROW(47:47))),\"\")","v":""}]
[null,null,null,null,46,{"$f":"IFERROR(INDEX('Résumé des notes'!$F$1:$F$99,SMALL(IF('Résumé des notes'!$G$1:$G$99<=$C$12,ROW('Résumé des notes'!$G$1:$G$99)),ROW(48:48))),\"\")","v":""}]
[null,null,null,null,47,{"$f":"IFERROR(INDEX('Résumé des notes'!$F$1:$F$99,SMALL(IF('Résumé des notes'!$G$1:$G$99<=$C$12,ROW('Résumé des notes'!$G$1:$G$99)),ROW(49:49))),\"\")","v":""}]
[null,null,null,null,48,{"$f":"IFERROR(INDEX('Résumé des notes'!$F$1:$F$99,SMALL(IF('Résumé des notes'!$G$1:$G$99<=$C$12,ROW('Résumé des notes'!$G$1:$G$99)),ROW(50:50))),\"\")","v":""}]
[null,null,null,null,49,{"$f":"IFERROR(INDEX('Résumé des notes'!$F$1:$F$99,SMALL(IF('Résumé des notes'!$G$1:$G$99<=$C$12,ROW('Résumé des notes'!$G$1:$G$99)),ROW(51:51))),\"\")","v":""}]
[null,null,null,null,50,{"$f":"IFERROR(INDEX('Résumé des notes'!$F$1:$F$99,SMALL(IF('Résumé des notes'!$G$1:$G$99<=$C$12,ROW('Résumé des notes'!$G$1:$G$99)),ROW(52:52))),\"\")","v":""}]

{"sheet":"Bibliographie","index":13,"n_rows":53,"n_cols":4,"rows_kept":53,"cut":false,"hidden":false,"merged":[[1,2,1,3]]}
[]
[null,null,"Bibliographie"]
[null,null,1,"Global Fund. (2018). Measurement framework for adolescent girls and young women. "]
[null,null,2,"Global HIV Prevention Coalition (2020). Decision-making Aide for Investments into HIV Prevention Programmes among Adolescent Girls and Young Women "]
[null,null,3,"International AIDS Society. (2018). Differentiated service delivery for HIV: A decision framework for HIV testing services. "]
[null,null,4,"International AIDS Society. (2018). Differentiated service delivery: A decision framework for differentiated antiretroviral therapy for key populations. "]
[null,null,5,"Joint United Nations Programme on HIV/AIDS (UNAIDS). (2016). HIV prevention among adolescent girls and young women. Geneva, Switzerland."]
[null,null,6,"Joint United Nations Programme on HIV/AIDS. (2008). A framework for monitoring and evaluating HIV prevention programmes for most-at-risk populations. Geneva: UNAIDS."]
[null,null,7,"Joint United Nations Programme on HIV/AIDS. (2012). Key programmes to reduce stigma and discrimination and increase access to justice in national HIV responses. Guidance Note"]
[null,null,8,"Joint United Nations Programme on HIV/AIDS. (2016). HIV prevention among adolescent girls and young women: Putting HIV prevention among adolescent girls and young women on the fast-track and engaging men and boys."]
[null,null,9,"Joint United Nations Programme on HIV/AIDS. (2017). HIV prevention 2020 road map—accelerating HIV prevention to reduce new infections by 75%. Geneva: UNAIDS."]
[null,null,10,"Joint United Nations Programme on HIV/AIDS. (2018). Global AIDS Monitoring 2019: Indicators for Monitoring the 2016 Political Declaration on Ending AIDS. Geneva: UNAIDS."]
[null,null,11,"Joint United Nations Programme on HIV/AIDS. (2018). Implementation of the HIV Prevention 2020 Road Map - First progress report, March 2018. Geneva: UNAIDS."]
[null,null,12,"Joint United Nations Programme on HIV/AIDS. (2018.) Miles To Go: Closing the gaps, breaking barriers, righting injustices."]
[null,null,13,"Joint United Nations Programme on HIV/AIDS. (2019). Gender Assessment Tool — Towards a gender-transformative HIV response"]
[null,null,14,"Joint United Nations Programme on HIV/AIDS. (2019) Communities at the centre: Defending rights breaking barriers, reaching people with HIV services"]
[null,null,15,"Joint United Nations Programme on HIV/AIDS. (2020). HIV Prevention Scorecard for AGYW. Geneva: UNAIDS."]
[null,null,16,"Joint United Nations Programme on HIV/AIDS. (2020). HIV Prevention Scorecard for Key Populations. Geneva: UNAIDS."]
[null,null,17,"Joint United Nations Programme on HIV/AIDS. (2020) Fourth progress report of the GPC. "]
[null,null,18,"Joint United Nations Programme on HIV/AIDS. (2020). Maintaining and prioritizing HIV prevention services in the time of COVID-19."]
[null,null,19,"Joint United Nations Programme on HIV/AIDS. (2020). Condoms and lubricants in the time of COVID-19. Sustaining supplies and people-centred approaches to meet the need in low- and middle-income countries."]
[null,null,20,"Joint United Nations Programme on HIV/AIDS. (2020). UNAIDS highlights six critical actions to put gender equality at the centre of COVID-19 responses. "]
[null,null,21,"Joint United Nations Programme on HIV/AIDS. (2020). Strategic Considerations for Mitigating the Impact of COVID-19 on Key-Population-Focused HIV Programs."]
[null,null,22,"Joint United Nations Programme on HIV/AIDS. (2020). Preventing HIV and other STIs among women and girls using contraceptive services in contexts with high HIV incidence. "]
[null,null,23,"Joint United Nations Programme on HIV/AIDS. (2021). Going Online: A Budgeting and Programming Aid for Virtual HIV Interventions. "]
[null,null,24,"Kageni, A., Mwangi, L., Mugyenyi, C., & Macintyre, K. (2015). Representation and participation of key populations on country coordinating mechanisms (CCMs) in sex countries in Southern Africa. Final report."]
[null,null,25,"LINKAGES. (2015). HIV cascade framework for Key Populations. "]
[null,null,26,"LINKAGES. (2016). Annex 2: Acceleration Technical Assistance Checklist of Accelerating the Implementation and Scale-up of Comprehensive Programs for HIV Prevention, Diagnosis, Treatment and Care for Key Populations."]
[null,null,27,"LINKAGES. (2017). Key Population Programme Implementation Guide. "]
[null,null,28,"NASCOP. (2014). Ministry of Health National Guidelines of HIV and STI Programming with Key Populations. Kenya"]
[null,null,29,"SANAC. (2016). South African National Strategic Plan 2017-2020."]
[null,null,30,"Saul. (2018). The DREAMS core package of interventions: A comprehensive approach to preventing HIV among adolescent girls and young women."]
[null,null,31,"The Global Fund. (2018). Measurement framework for adolescent girls and young women. "]
[null,null,32,"The Global Fund. (2019). Adolescent Girls and Young Women in high-HIV burden settings: Technical Brief"]
[null,null,33,"United Nations Office on Drugs and Crime, International Network of People Who Use Drugs, Joint United Nations Programme on HIV/AIDS, United Nations Development Programme, United Nations Population Fund, World Health Organization, United States Agency for International Development. (2017). Implementing comprehensive HIV and HCV programmes with people who inject drugs: practical guidance for collaborative interventions. Vienna: United Nations Office on Drugs and Crime."]
[null,null,34,"United Nations Population Fund. (2019). Rights and choices for all adolescents and youth: a UNFPA global strategy."]
[null,null,35,"World Health Organization. (2007). Guide to starting and managing needle and syringe programmes."]
[null,null,36,"World Health Organization. (2009). Toolkit for Monitoring and Evaluation of interventions for sex workers. "]
[null,null,37,"World Health Organization. (2010). Delivering HIV test results and messages for re-testing and counselling in adults. "]
[null,null,38,"World Health Organization. (2011). Guidelines on surveillance among populations most at risk for HIV."]
[null,null,39,"World Health Organization. (2011). Preventing HIV in Sex Work in Sub-Saharan Africa."]
[null,null,40,"World Health Organization. (2012). Guidance on Pre-Exposure Prophylaxis (PrEP) for serodiscordant couples, men and transgender women who have sex with men at high risk of HIV."]
[null,null,41,"World Health Organization. (2012). Prevention and treatment of HIV and other sexually transmitted infections for sex workers in low-and middle-income countries: recommendations for a public health approach. World Health Organization."]
[null,null,42,"World Health Organization. (2012). Responding to intimate partner violence and sexual violence against women. "]
[null,null,43,"World Health Organization. (2012). Service delivery approaches to HIV testing and counselling (HTC): A strategic HTC programme framework."]
[null,null,44,"World Health Organization. (2015). Tool to set and monitor targets for HIV prevention, diagnosis, treatment and care for key populations: supplement to the 2014 consolidated guidelines for HIV prevention, diagnosis, treatment and care for key populations. World Health Organization."]
[null,null,45,"World Health Organization. (2016). Consolidated guideline on HIV prevention diagnosis, treatment and care for Key Populations - 2016 update. "]
[null,null,46,"World Health Organization. (2016). Global standards for quality health-care services for adolescents - a guide to implement a standards-driven approach to improve the quality of health-care services for adolescents."]
[null,null,47,"World Health Organization. (2017). Consolidated guidelines on person-centred HIV patient monitoring and case surveillance."]
[null,null,48,"World Health Organization (2017). Global Accelerated Action for the Health of Adolescents (AA-HA!): guidance to support country implementation."]
[null,null,49,"World Health Organization. (2018). mhGAP operations manual."]
[null,null,50,"World Health Organisation and UNICEF (2019): Adolescent-friendly health services for adolescents living with HIV: From Theory to Practice"]
[null,null,51,"YIELD. (2019). Young People Advancing Sexual and Reproductive Health: Toward a New Normal. Report of working group, CCM assessment."]

{"sheet":"Acronymes","index":14,"n_rows":36,"n_cols":4,"rows_kept":36,"cut":false,"hidden":false,"merged":[[1,2,1,3]]}
[]
[null,null,"Acronymes"]
[null,null,"Adolescentes et jeunes femmes ","AJF"]
[null,null,"Accès libre","AL"]
[null,null,"Assistance technique","AT"]
[null,null,"Communication sur le changement de comportement social","CCCS"]
[null,null,"Code d’identification unique","CIU"]
[null,null,"Circoncision masculine médicale volontaire","CMMV"]
[null,null,"Éducation sexuelle complète","ESC"]
[null,null,"Estimation de la taille de la population","ETP"]
[null,null,"Groupe de travail technique ","GTT"]
[null,null,"Infection sexuellement transmissible","IST"]
[null,null,"Logiciel d’information sur la santé des districts","LISD"]
[null,null,"Ne travaillant pas, ne suivant pas d’études ou de formation","NTEF"]
[null,null,"Outil d’auto-évaluation de la prévention","OAEP"]
[null,null,"Organisation communautaire","OC"]
[null,null,"Organisation non-gouvernementale","ONG"]
[null,null,"Programme commun des Nations unies sur le VIH/sida ","ONUSIDA"]
[null,null,"Organisations de la société civile ","OSC"]
[null,null,"Prophylaxie avant exposition","PaE"]
[null,null,"Pairs-éducateurs de proximité","PEP"]
[null,null,"Planification familiale","PF"]
[null,null,"Procédure opérationnelle permanente ","POP"]
[null,null,"Prophylaxie post-exposition","PPE"]
[null,null,"Prévention de la transmission mère-enfant","PTME"]
[null,null,"Personnes vivant avec le VIH","PVVIH"]
[null,null,"Suivi et évaluation","S&E"]
[null,null,"Services de dépistage du VIH","SDV"]
[null,null,"Soins prénataux","SP"]
[null,null,"Santé sexuelle reproductive ","SSR"]
[null,null,"Santé sexuelle reproductive et droits connexes","SSRDC"]
[null,null,"Traitement antirétroviral","TAR"]
[null,null,"Tuberculose","TB"]
[null,null,"Théorie du changement","TC"]
[null,null,"Travailleur(se) du sexe","TS"]
[null,null,"Violence sexiste","VS"]